NUMERO_MANDATO;RIGA_MANDATO;QUIET;IMPORTO_RIGA;IMPORTO_MANDATO;BENEFICIARIO;CIG;TITOLO_PAGAMENTO;DATA_MANDATO;CAPITOLO;ARTICOLO;NUMERO_IMPEGNO;TITOLO;DESCR_TITOLO;LIVELLO_II;DESCR_LIVELLO_II;LIVELLO_III;DESCR_LIVELLO_III;LIVELLO_IV;DESCR_LIVELLO_IV;LIVELLO_V;DESCR_LIVELLO_V;DATA_PAG_EFF;
1;1;0;"150,00";"150,00";CATTAZZO MICHELE - ECONOMO COMUNALE; ;Rimborso bollette;12-01-2017;50;0;768;1;Spese correnti;3;Acquisto di beni e servizi;2;Acquisto di servizi;2;"Organizzazione eventi, pubblicita` e servizi per trasferta";2;Indennità di missione e di trasferta;12-01-2017;
2;1;0;"19,03";"19,03";CATTAZZO MICHELE - ECONOMO COMUNALE; ;Rimborso bollette;12-01-2017;105;0;779;1;Spese correnti;3;Acquisto di beni e servizi;2;Acquisto di servizi;16;Servizi amministrativi;2;Spese postali;12-01-2017;
3;1;0;"48,80";"48,80";CATTAZZO MICHELE - ECONOMO COMUNALE; ;Rimborso bollette;12-01-2017;110;0;769;1;Spese correnti;3;Acquisto di beni e servizi;1;Acquisto di beni;2;Altri beni di consumo;8;Strumenti tecnico-specialistici non sanitari;12-01-2017;
4;1;0;"101,00";"101,00";CATTAZZO MICHELE - ECONOMO COMUNALE; ;Rimborso bollette;12-01-2017;110;0;770;1;Spese correnti;3;Acquisto di beni e servizi;1;Acquisto di beni;2;Altri beni di consumo;999;Altri beni e materiali di consumo n.a.c.;12-01-2017;
5;1;0;"124,81";"124,81";CATTAZZO MICHELE - ECONOMO COMUNALE; ;Rimborso bollette;12-01-2017;110;0;771;1;Spese correnti;3;Acquisto di beni e servizi;1;Acquisto di beni;2;Altri beni di consumo;1;"Carta, cancelleria e stampati";12-01-2017;
6;1;0;"171,22";"171,22";CATTAZZO MICHELE - ECONOMO COMUNALE; ;Rimborso bollette;12-01-2017;110;0;772;1;Spese correnti;3;Acquisto di beni e servizi;1;Acquisto di beni;2;Altri beni di consumo;11;Generi alimentari;12-01-2017;
7;1;0;"244,00";"244,00";CATTAZZO MICHELE - ECONOMO COMUNALE; ;Rimborso bollette;12-01-2017;110;0;773;1;Spese correnti;3;Acquisto di beni e servizi;1;Acquisto di beni;2;Altri beni di consumo;6;Materiale informatico;12-01-2017;
8;1;0;"26,30";"26,30";CATTAZZO MICHELE - ECONOMO COMUNALE; ;Rimborso bollette;12-01-2017;110;0;780;1;Spese correnti;3;Acquisto di beni e servizi;1;Acquisto di beni;2;Altri beni di consumo;999;Altri beni e materiali di consumo n.a.c.;12-01-2017;
9;1;0;"9,15";"9,15";CATTAZZO MICHELE - ECONOMO COMUNALE; ;Rimborso bollette;12-01-2017;290;0;774;1;Spese correnti;3;Acquisto di beni e servizi;1;Acquisto di beni;2;Altri beni di consumo;2;"Carburanti, combustibili e lubrificanti";12-01-2017;
10;1;0;"47,99";"47,99";CATTAZZO MICHELE - ECONOMO COMUNALE; ;Rimborso bollette;12-01-2017;290;0;775;1;Spese correnti;3;Acquisto di beni e servizi;1;Acquisto di beni;2;Altri beni di consumo;8;Strumenti tecnico-specialistici non sanitari;12-01-2017;
11;1;0;"221,50";"221,50";CATTAZZO MICHELE - ECONOMO COMUNALE; ;Rimborso bollette;12-01-2017;330;0;776;1;Spese correnti;3;Acquisto di beni e servizi;1;Acquisto di beni;2;Altri beni di consumo;1;"Carta, cancelleria e stampati";12-01-2017;
15;1;0;"3.709,22";"3.709,22";AMMINISTRATORI COMUNALI; ;EROGAZIONE INDENNITA' DI CARICA MESE DI GENNAIO 2017;24-01-2017;10;0;8;1;Spese correnti;3;Acquisto di beni e servizi;2;Acquisto di servizi;1;Organi e incarichi istituzionali dell'amministrazione;1;Organi istituzionali dell'amministrazione - Indennità;24-01-2017;
101;1;0;"2.357,55";"2.357,55";CIDIELLE COOPERATIVA SOCIALE;Z4B1BACA8F;SALDO Fatt.n. 143/02  del 30/11/2016 FATTURA;25-01-2017;117;0;639;1;Spese correnti;3;Acquisto di beni e servizi;2;Acquisto di servizi;13;Servizi ausiliari per il funzionamento dell'ente;2;Servizi di pulizia e lavanderia;25-01-2017;
102;1;0;"152,99";"152,99";INGROS CARTA GIUSTACCHINI SPA;ZBC19DBBCE;SALDO Fatt.n. PAM/0001504  del 31/12/2016 FATTURA;25-01-2017;110;0;330;1;Spese correnti;3;Acquisto di beni e servizi;1;Acquisto di beni;2;Altri beni di consumo;1;"Carta, cancelleria e stampati";25-01-2017;
103;1;0;"188,73";"188,73";OLIVETTI  SPA;ZA31A76D7F;SALDO Fatt.n. 1136910827  del 31/12/2016 FATTURA;25-01-2017;109;0;408;1;Spese correnti;3;Acquisto di beni e servizi;2;Acquisto di servizi;7;Utilizzo di beni di terzi;4;Noleggi di hardware;25-01-2017;
104;1;0;"137,50";"137,50";NICO & LORE DI MACCINI LORENZO;Z711BD35AC;SALDO Fatt.n. 02PA  del 15/11/2016 Fornitura di una corona d'alloro per cerimonia " 4 NOVEMBRE" - Impegno N.640/2016;25-01-2017;110;0;640;1;Spese correnti;3;Acquisto di beni e servizi;1;Acquisto di beni;2;Altri beni di consumo;9;Beni per attività di rappresentanza;25-01-2017;
105;1;0;"1.969,16";"1.969,16";SOCIETA' COOPERATIVA CULTURE;5539394489;SALDO Fatt.n. 974/FE  del 20/12/2016 FATTURA;25-01-2017;680;0;121;1;Spese correnti;3;Acquisto di beni e servizi;2;Acquisto di servizi;15;Contratti di servizio pubblico;999;Altre spese per contratti di servizio pubblico;25-01-2017;
106;1;0;"10,50";"10,50";LEGGERE SRL;ZE818F6506;SALDO Fatt.n. 15627  del 30/11/2016 FATTURA;25-01-2017;681;0;271;1;Spese correnti;3;Acquisto di beni e servizi;1;Acquisto di beni;1;"Giornali, riviste e pubblicazioni";2;Pubblicazioni;25-01-2017;
107;1;0;"0,05";"305,33";LEGGERE SRL;ZE818F6506;SALDO Fatt.n. 15628  del 30/11/2016 VENDITA;25-01-2017;681;0;271;1;Spese correnti;3;Acquisto di beni e servizi;1;Acquisto di beni;1;"Giornali, riviste e pubblicazioni";2;Pubblicazioni;25-01-2017;
107;2;0;"305,28";"305,33";LEGGERE SRL;ZE818F6506;ACCONTO Fatt.n. 15628  del 30/11/2016 VENDITA;25-01-2017;681;0;271;1;Spese correnti;3;Acquisto di beni e servizi;1;Acquisto di beni;1;"Giornali, riviste e pubblicazioni";2;Pubblicazioni;25-01-2017;
108;1;0;"0,01";"38,26";LEGGERE SRL;ZE818F6506;SALDO Fatt.n. 17507  del 29/12/2016 FATTURA;25-01-2017;681;0;271;1;Spese correnti;3;Acquisto di beni e servizi;1;Acquisto di beni;1;"Giornali, riviste e pubblicazioni";2;Pubblicazioni;25-01-2017;
108;2;0;"38,25";"38,26";LEGGERE SRL;ZE818F6506;ACCONTO Fatt.n. 17507  del 29/12/2016 FATTURA;25-01-2017;681;0;271;1;Spese correnti;3;Acquisto di beni e servizi;1;Acquisto di beni;1;"Giornali, riviste e pubblicazioni";2;Pubblicazioni;25-01-2017;
109;1;0;"0,08";"271,05";LEGGERE SRL;ZE818F6506;SALDO Fatt.n. 17508  del 29/12/2016 FATTURA;25-01-2017;681;0;271;1;Spese correnti;3;Acquisto di beni e servizi;1;Acquisto di beni;1;"Giornali, riviste e pubblicazioni";2;Pubblicazioni;25-01-2017;
109;2;0;"270,97";"271,05";LEGGERE SRL;ZE818F6506;ACCONTO Fatt.n. 17508  del 29/12/2016 FATTURA;25-01-2017;681;0;271;1;Spese correnti;3;Acquisto di beni e servizi;1;Acquisto di beni;1;"Giornali, riviste e pubblicazioni";2;Pubblicazioni;25-01-2017;
110;1;0;"351,04";"351,04";INGROS CARTA GIUSTACCHINI SPA;ZBC19DBBCE;SALDO Fatt.n. PAM/0001306  del 30/11/2016 FATTURA;25-01-2017;110;0;330;1;Spese correnti;3;Acquisto di beni e servizi;1;Acquisto di beni;2;Altri beni di consumo;1;"Carta, cancelleria e stampati";25-01-2017;
111;1;0;"770,00";"770,00";CIRCOLO CULTURALE DI TOMBETTA;Z0C1B912FF;SALDO Fatt.n. FATTPA 10_16  del 19/12/2016 FATTURA;25-01-2017;686;0;610;1;Spese correnti;3;Acquisto di beni e servizi;2;Acquisto di servizi;2;"Organizzazione eventi, pubblicita` e servizi per trasferta";5;Organizzazione e partecipazione a manifestazioni e convegni;25-01-2017;
112;1;0;"770,00";"770,00";LA MOSCHETA - COMPAGNIA TEATRALE;Z371B912D2;SALDO Fatt.n. FATTPA 6_16  del 12/12/2016 FATTURA;25-01-2017;686;0;609;1;Spese correnti;3;Acquisto di beni e servizi;2;Acquisto di servizi;2;"Organizzazione eventi, pubblicita` e servizi per trasferta";5;Organizzazione e partecipazione a manifestazioni e convegni;25-01-2017;
113;1;0;"3.150,00";"3.150,00";MONTEVERDE SOC.COOP. DI SOLIDARIETA'. ONLUS;ZA317BC522;SALDO Fatt.n. 000207/PA  del 30/11/2016 Scissione pagamenti art. 17ter DPR 633/72;25-01-2017;663;0;647;1;Spese correnti;3;Acquisto di beni e servizi;2;Acquisto di servizi;15;Contratti di servizio pubblico;999;Altre spese per contratti di servizio pubblico;25-01-2017;
114;1;0;"9.148,36";"9.148,36";EURORISTORAZIONE SRL;Z981AFAF5D;SALDO Fatt.n. 16CPA03674  del 30/11/2016 FATTURA;25-01-2017;662;0;495;1;Spese correnti;3;Acquisto di beni e servizi;2;Acquisto di servizi;15;Contratti di servizio pubblico;6;Contratti di servizio per le mense scolastiche;25-01-2017;
115;1;0;"6.783,45";"6.783,45";EURORISTORAZIONE SRL;Z981AFAF5D;SALDO Fatt.n. 16CPA03987  del 31/12/2016 fattura;25-01-2017;662;0;495;1;Spese correnti;3;Acquisto di beni e servizi;2;Acquisto di servizi;15;Contratti di servizio pubblico;6;Contratti di servizio per le mense scolastiche;25-01-2017;
116;1;0;"4.752,51";"4.752,51";CONSORZIO DI BACINO VERONA DUE DEL QUADRILATERO;4923072787;SALDO Fatt.n. 004015/02  del 29/11/2016 FATTURA;25-01-2017;841;0;137;1;Spese correnti;4;Trasferimenti correnti;1;Trasferimenti correnti a Amministrazioni Pubbliche;2;Trasferimenti correnti a Amministrazioni Locali;18;Trasferimenti correnti a Consorzi di enti locali;25-01-2017;
117;1;0;"-944,40";"558,15";CONSORZIO DI BACINO VERONA DUE DEL QUADRILATERO;4923072787;SALDO Fatt.n. 001757/02  del 31/05/2016 RIF DELIBERA ASSEMBLEA DEI SINDACI N 6 DEL 25/05/16;25-01-2017;841;0;205;1;Spese correnti;4;Trasferimenti correnti;1;Trasferimenti correnti a Amministrazioni Pubbliche;2;Trasferimenti correnti a Amministrazioni Locali;18;Trasferimenti correnti a Consorzi di enti locali;25-01-2017;
117;2;0;"707,31";"558,15";CONSORZIO DI BACINO VERONA DUE DEL QUADRILATERO;4923072787;SALDO Fatt.n. 001806/02  del 08/06/2016 MAGGIORAZIONI TARIFFE SMALTIMENTO RIFIUTI;25-01-2017;841;0;205;1;Spese correnti;4;Trasferimenti correnti;1;Trasferimenti correnti a Amministrazioni Pubbliche;2;Trasferimenti correnti a Amministrazioni Locali;18;Trasferimenti correnti a Consorzi di enti locali;25-01-2017;
117;3;0;"795,24";"558,15";CONSORZIO DI BACINO VERONA DUE DEL QUADRILATERO;4923072787;SALDO Fatt.n. 003894/02  del 16/11/2016 FATTURA;25-01-2017;841;0;205;1;Spese correnti;4;Trasferimenti correnti;1;Trasferimenti correnti a Amministrazioni Pubbliche;2;Trasferimenti correnti a Amministrazioni Locali;18;Trasferimenti correnti a Consorzi di enti locali;25-01-2017;
118;1;0;"30.994,74";"30.994,74";CONSORZIO DI BACINO VERONA DUE DEL QUADRILATERO;4923072787;SALDO Fatt.n. 003949/02  del 29/11/2016 FATTURA;25-01-2017;840;0;136;1;Spese correnti;3;Acquisto di beni e servizi;2;Acquisto di servizi;15;Contratti di servizio pubblico;4;Contratti di servizio per la raccolta rifiuti;25-01-2017;
119;1;0;"877,49";"877,49";CONSORZIO DI BACINO VERONA DUE DEL QUADRILATERO;4923072787;SALDO Fatt.n. 003715/02  del 14/11/2016 FATTURA;25-01-2017;840;0;136;1;Spese correnti;3;Acquisto di beni e servizi;2;Acquisto di servizi;15;Contratti di servizio pubblico;4;Contratti di servizio per la raccolta rifiuti;25-01-2017;
120;1;0;"87,19";"87,19";CONSORZIO DI BACINO VERONA DUE DEL QUADRILATERO;4923072787;SALDO Fatt.n. 003847/02  del 16/11/2016 FATTURA;25-01-2017;840;0;136;1;Spese correnti;3;Acquisto di beni e servizi;2;Acquisto di servizi;15;Contratti di servizio pubblico;4;Contratti di servizio per la raccolta rifiuti;25-01-2017;
121;1;0;"1.088,03";"1.088,03";CONSORZIO DI BACINO VERONA DUE DEL QUADRILATERO;4923072787;SALDO Fatt.n. 003804/02  del 15/11/2016 FATTURA;25-01-2017;840;0;136;1;Spese correnti;3;Acquisto di beni e servizi;2;Acquisto di servizi;15;Contratti di servizio pubblico;4;Contratti di servizio per la raccolta rifiuti;25-01-2017;
122;1;0;"5.964,13";"5.964,13";CONSORZIO DI BACINO VERONA DUE DEL QUADRILATERO;4923072787;SALDO Fatt.n. 003757/02  del 15/11/2016 FATTURA;25-01-2017;840;0;136;1;Spese correnti;3;Acquisto di beni e servizi;2;Acquisto di servizi;15;Contratti di servizio pubblico;4;Contratti di servizio per la raccolta rifiuti;25-01-2017;
123;1;0;"7.691,19";"7.691,19";CONSORZIO DI BACINO VERONA DUE DEL QUADRILATERO;4923072787;SALDO Fatt.n. 003699/02  del 14/11/2016 FATTURA;25-01-2017;840;0;136;1;Spese correnti;3;Acquisto di beni e servizi;2;Acquisto di servizi;15;Contratti di servizio pubblico;4;Contratti di servizio per la raccolta rifiuti;25-01-2017;
124;1;0;"9.881,22";"9.881,22";CONSORZIO DI BACINO VERONA DUE DEL QUADRILATERO;4923072787;SALDO Fatt.n. 004133/02  del 19/12/2016 FATTURA;25-01-2017;840;0;136;1;Spese correnti;3;Acquisto di beni e servizi;2;Acquisto di servizi;15;Contratti di servizio pubblico;4;Contratti di servizio per la raccolta rifiuti;25-01-2017;
125;1;0;"5.256,56";"5.256,56";CONSORZIO DI BACINO VERONA DUE DEL QUADRILATERO;4923072787;SALDO Fatt.n. 004227/02  del 19/12/2016 FATTURA;25-01-2017;840;0;136;1;Spese correnti;3;Acquisto di beni e servizi;2;Acquisto di servizi;15;Contratti di servizio pubblico;4;Contratti di servizio per la raccolta rifiuti;25-01-2017;
126;1;0;"30.994,74";"30.994,74";CONSORZIO DI BACINO VERONA DUE DEL QUADRILATERO;4923072787;SALDO Fatt.n. 004316/02  del 21/12/2016 FATTURA;25-01-2017;840;0;136;1;Spese correnti;3;Acquisto di beni e servizi;2;Acquisto di servizi;15;Contratti di servizio pubblico;4;Contratti di servizio per la raccolta rifiuti;25-01-2017;
127;1;0;"810,70";"810,70";CONSORZIO DI BACINO VERONA DUE DEL QUADRILATERO;4923072787;SALDO Fatt.n. 004183/02  del 19/12/2016 FATTURA;25-01-2017;840;0;136;1;Spese correnti;3;Acquisto di beni e servizi;2;Acquisto di servizi;15;Contratti di servizio pubblico;4;Contratti di servizio per la raccolta rifiuti;25-01-2017;
128;1;0;"118,80";"118,80";CONSORZIO DI BACINO VERONA DUE DEL QUADRILATERO;4923072787;SALDO Fatt.n. 004270/02  del 20/12/2016 FATTURA;25-01-2017;840;0;136;1;Spese correnti;3;Acquisto di beni e servizi;2;Acquisto di servizi;15;Contratti di servizio pubblico;4;Contratti di servizio per la raccolta rifiuti;25-01-2017;
129;1;0;"735,29";"735,29";CONSORZIO DI BACINO VERONA DUE DEL QUADRILATERO;4923072787;SALDO Fatt.n. 004365/02  del 21/12/2016 FATTURA;25-01-2017;842;0;633;1;Spese correnti;3;Acquisto di beni e servizi;1;Acquisto di beni;2;Altri beni di consumo;999;Altri beni e materiali di consumo n.a.c.;25-01-2017;
130;1;0;"4.945,27";"4.945,27";ELETTRA SERVICE SNC;Z0E18ABDD3;SALDO Fatt.n. 90/2016  del 30/12/2016 FATTURA;25-01-2017;352;0;145;1;Spese correnti;3;Acquisto di beni e servizi;2;Acquisto di servizi;9;Manutenzione ordinaria e riparazioni;8;Manutenzione ordinaria e riparazioni di beni immobili;25-01-2017;
131;1;0;"75,95";"75,95";LA RONDA - SERVIZI DI VIGILANZA;Z5213D74A5;ACCONTO Fatt.n. 0015485  del 31/12/2016 FATTURA;26-01-2017;352;0;204;1;Spese correnti;3;Acquisto di beni e servizi;2;Acquisto di servizi;9;Manutenzione ordinaria e riparazioni;8;Manutenzione ordinaria e riparazioni di beni immobili;26-01-2017;
132;1;0;"53,22";"53,22";LA RONDA - SERVIZI DI VIGILANZA;ZE618FE5E8;SALDO Fatt.n. 0015485  del 31/12/2016 FATTURA;26-01-2017;357;0;171;1;Spese correnti;3;Acquisto di beni e servizi;2;Acquisto di servizi;13;Servizi ausiliari per il funzionamento dell'ente;1;"Servizi di sorveglianza, custodia e accoglienza";26-01-2017;
133;1;0;"1.269,78";"1.269,78";COOPERATIVA SOCIALE VENETA ONLUS;Z72122AFF3;SALDO Fatt.n. 000273-2016-PA  del 31/12/2016 FATTURA;26-01-2017;782;0;9;1;Spese correnti;3;Acquisto di beni e servizi;2;Acquisto di servizi;9;Manutenzione ordinaria e riparazioni;8;Manutenzione ordinaria e riparazioni di beni immobili;26-01-2017;
134;1;0;"366,00";"366,00";UNI SECUR S.R.L.;Z501B75881;SALDO Fatt.n. 16 B  del 22/12/2016 Ft. vendita split payment;26-01-2017;275;0;588;1;Spese correnti;3;Acquisto di beni e servizi;2;Acquisto di servizi;18;Servizi sanitari;1;Spese per accertamenti sanitari resi necessari dall'attività lavorativa;26-01-2017;
135;1;0;"158,60";"158,60";PIZZEGHELLA E STEVAN SRL STEVAN;Z7717CE25B;SALDO Fatt.n. 200  del 28/12/2016 FATTURA;26-01-2017;352;0;652;1;Spese correnti;3;Acquisto di beni e servizi;2;Acquisto di servizi;9;Manutenzione ordinaria e riparazioni;8;Manutenzione ordinaria e riparazioni di beni immobili;26-01-2017;
136;1;0;"158,60";"158,60";PIZZEGHELLA E STEVAN SRL STEVAN;Z7717CE25B;SALDO Fatt.n. 201  del 28/12/2016 FATTURA;26-01-2017;352;0;652;1;Spese correnti;3;Acquisto di beni e servizi;2;Acquisto di servizi;9;Manutenzione ordinaria e riparazioni;8;Manutenzione ordinaria e riparazioni di beni immobili;26-01-2017;
137;1;0;"332,45";"332,45";PIZZEGHELLA E STEVAN SRL STEVAN;Z7717CE25B;SALDO Fatt.n. 202  del 28/12/2016 FATTURA;26-01-2017;352;0;652;1;Spese correnti;3;Acquisto di beni e servizi;2;Acquisto di servizi;9;Manutenzione ordinaria e riparazioni;8;Manutenzione ordinaria e riparazioni di beni immobili;26-01-2017;
138;1;0;"366,00";"366,00";PIZZEGHELLA E STEVAN SRL STEVAN;ZE71936558;SALDO Fatt.n. 203  del 28/12/2016 FATTURA;26-01-2017;352;0;256;1;Spese correnti;3;Acquisto di beni e servizi;2;Acquisto di servizi;9;Manutenzione ordinaria e riparazioni;8;Manutenzione ordinaria e riparazioni di beni immobili;26-01-2017;
139;1;0;"0,01";"1.226,56";EDILTOSI S.R.L.;Z4518ABCF6;SALDO Fatt.n. 006592  del 31/12/2016 FATTURA;26-01-2017;350;0;141;1;Spese correnti;3;Acquisto di beni e servizi;1;Acquisto di beni;2;Altri beni di consumo;999;Altri beni e materiali di consumo n.a.c.;26-01-2017;
139;2;0;"1.226,55";"1.226,56";EDILTOSI S.R.L.;Z4518ABCF6;ACCONTO Fatt.n. 006592  del 31/12/2016 FATTURA;26-01-2017;350;0;141;1;Spese correnti;3;Acquisto di beni e servizi;1;Acquisto di beni;2;Altri beni di consumo;999;Altri beni e materiali di consumo n.a.c.;26-01-2017;
140;1;0;"3.690,50";"3.690,50";SORDATO SRL;Z9D17C9556;SALDO Fatt.n. PA-0037  del 22/12/2016 FATTURA;26-01-2017;114;0;654;1;Spese correnti;3;Acquisto di beni e servizi;2;Acquisto di servizi;9;Manutenzione ordinaria e riparazioni;4;Manutenzione ordinaria e riparazioni di impianti e macchinari;26-01-2017;
141;1;0;"36,60";"36,60";CIDIELLE COOPERATIVA SOCIALE;Z12128DA1F;ACCONTO Fatt.n. 158/02  del 31/12/2016 FATTURA;26-01-2017;870;0;110;1;Spese correnti;3;Acquisto di beni e servizi;2;Acquisto di servizi;9;Manutenzione ordinaria e riparazioni;8;Manutenzione ordinaria e riparazioni di beni immobili;26-01-2017;
142;1;0;"1.159,00";"1.159,00";CIDIELLE COOPERATIVA SOCIALE;Z491B038E8;SALDO Fatt.n. 158/02  del 31/12/2016 FATTURA;26-01-2017;870;0;503;1;Spese correnti;3;Acquisto di beni e servizi;2;Acquisto di servizi;9;Manutenzione ordinaria e riparazioni;8;Manutenzione ordinaria e riparazioni di beni immobili;26-01-2017;
143;1;0;"23.912,00";"23.912,00";CIDIELLE COOPERATIVA SOCIALE;604820724F;SALDO Fatt.n. 159/02  del 31/12/2016 FATTURA;26-01-2017;870;0;8;1;Spese correnti;3;Acquisto di beni e servizi;2;Acquisto di servizi;9;Manutenzione ordinaria e riparazioni;8;Manutenzione ordinaria e riparazioni di beni immobili;26-01-2017;
144;1;0;"6.582,75";"6.582,75";CIDIELLE COOPERATIVA SOCIALE;Z8311C4B3A;ACCONTO Fatt.n. 161/02  del 31/12/2016 FATTURA;26-01-2017;952;0;110;1;Spese correnti;3;Acquisto di beni e servizi;2;Acquisto di servizi;9;Manutenzione ordinaria e riparazioni;8;Manutenzione ordinaria e riparazioni di beni immobili;26-01-2017;
145;1;0;"668,63";"668,63";CIDIELLE COOPERATIVA SOCIALE;Z12128DA1F;SALDO Fatt.n. 161/02  del 31/12/2016 FATTURA;26-01-2017;870;0;110;1;Spese correnti;3;Acquisto di beni e servizi;2;Acquisto di servizi;9;Manutenzione ordinaria e riparazioni;8;Manutenzione ordinaria e riparazioni di beni immobili;26-01-2017;
146;1;0;"4.050,40";"4.050,40";CIDIELLE COOPERATIVA SOCIALE;ZEC18B1909;SALDO Fatt.n. 160/02  del 31/12/2016 FATTURA;26-01-2017;870;0;151;1;Spese correnti;3;Acquisto di beni e servizi;2;Acquisto di servizi;9;Manutenzione ordinaria e riparazioni;8;Manutenzione ordinaria e riparazioni di beni immobili;26-01-2017;
147;1;0;"61,04";"122,08";SERVIZIO ELETTRICO NAZIONALE  - Servizio Maggior Tutela;Z041BC7D61;SALDO Fatt.n. 230604005028251  del 21/10/2016 fattura;26-01-2017;354;0;655;1;Spese correnti;3;Acquisto di beni e servizi;2;Acquisto di servizi;5;Utenze e canoni;4;Energia elettrica;26-01-2017;
147;2;0;"61,04";"122,08";SERVIZIO ELETTRICO NAZIONALE  - Servizio Maggior Tutela;Z041BC7D61;SALDO Fatt.n. 230604105065661  del 28/10/2016 fattura;26-01-2017;354;0;655;1;Spese correnti;3;Acquisto di beni e servizi;2;Acquisto di servizi;5;Utenze e canoni;4;Energia elettrica;26-01-2017;
148;1;0;"996,00";"996,00";EDILTOSI S.R.L.;ZCA1AC2B0B;ACCONTO Fatt.n. 006528  del 28/12/2016 FATTURA;26-01-2017;260;0;441;1;Spese correnti;3;Acquisto di beni e servizi;1;Acquisto di beni;2;Altri beni di consumo;4;Vestiario;26-01-2017;
149;1;0;"0,01";"819,67";EDILTOSI S.R.L.;ZCA1AC2B0B;ACCONTO Fatt.n. 006528  del 28/12/2016 FATTURA;26-01-2017;260;0;441;1;Spese correnti;3;Acquisto di beni e servizi;1;Acquisto di beni;2;Altri beni di consumo;4;Vestiario;26-01-2017;
149;2;0;"819,66";"819,67";EDILTOSI S.R.L.;ZCA1AC2B0B;ACCONTO Fatt.n. 006528  del 28/12/2016 FATTURA;26-01-2017;260;0;441;1;Spese correnti;3;Acquisto di beni e servizi;1;Acquisto di beni;2;Altri beni di consumo;4;Vestiario;26-01-2017;
150;1;0;"686,99";"686,99";AGRIGARDEN DI ALBERTINI RENATO;Z3218EA4D2;SALDO Fatt.n. 7/PA  del 29/12/2016 MANUTENZIONI ORDINARIE MEZZI COMUNALI - CIG Z3218EA4D2;26-01-2017;292;0;162;1;Spese correnti;3;Acquisto di beni e servizi;2;Acquisto di servizi;9;Manutenzione ordinaria e riparazioni;1;"Manutenzione ordinaria e riparazioni di mezzi di trasporto ad uso civile, di sicurezza e ordine pubblico";26-01-2017;
151;1;0;"488,00";"488,00";CACCIATORI MARIO E MIRKO S.N.C.;Z5018ABDF7;SALDO Fatt.n. 3/38  del 28/12/2016 FATTURA;26-01-2017;352;0;148;1;Spese correnti;3;Acquisto di beni e servizi;2;Acquisto di servizi;9;Manutenzione ordinaria e riparazioni;8;Manutenzione ordinaria e riparazioni di beni immobili;26-01-2017;
152;1;0;"1.958,10";"1.958,10";VALLE FER SNC;Z4418ABDAC;SALDO Fatt.n. 04/PA  del 29/12/2016 FATTURA;26-01-2017;352;0;144;1;Spese correnti;3;Acquisto di beni e servizi;2;Acquisto di servizi;9;Manutenzione ordinaria e riparazioni;8;Manutenzione ordinaria e riparazioni di beni immobili;26-01-2017;
153;1;0;"1.171,20";"1.171,20";FONDERIA VELO SRL;Z201C1C817;SALDO Fatt.n. 1600352  del 19/12/2016 VENDITA;26-01-2017;950;0;691;1;Spese correnti;3;Acquisto di beni e servizi;1;Acquisto di beni;2;Altri beni di consumo;999;Altri beni e materiali di consumo n.a.c.;26-01-2017;
154;1;0;"66,88";"85,18";CALDIERO GOMME DI GROBBERIO L.;ZDA18EA500;SALDO Fatt.n. 343  del 14/12/2016 REVISIONI IMMEDIATE;26-01-2017;292;0;163;1;Spese correnti;3;Acquisto di beni e servizi;2;Acquisto di servizi;9;Manutenzione ordinaria e riparazioni;1;"Manutenzione ordinaria e riparazioni di mezzi di trasporto ad uso civile, di sicurezza e ordine pubblico";26-01-2017;
154;2;0;"18,30";"85,18";CALDIERO GOMME DI GROBBERIO L.;ZDA18EA500;SALDO Fatt.n. 658  del 19/12/2016 FATTURA IMMEDIATA;26-01-2017;292;0;163;1;Spese correnti;3;Acquisto di beni e servizi;2;Acquisto di servizi;9;Manutenzione ordinaria e riparazioni;1;"Manutenzione ordinaria e riparazioni di mezzi di trasporto ad uso civile, di sicurezza e ordine pubblico";26-01-2017;
155;1;0;"594,38";"594,38";SISE SISTEMI SEGNALETICI SRL;ZCB1AFF5FA;SALDO Fatt.n. F4-1601080  del 14/12/2016 FATTURA;26-01-2017;955;0;513;1;Spese correnti;3;Acquisto di beni e servizi;2;Acquisto di servizi;9;Manutenzione ordinaria e riparazioni;8;Manutenzione ordinaria e riparazioni di beni immobili;26-01-2017;
156;1;0;"7.599,38";"7.599,38";PADANA SRL;Z361AFF604;SALDO Fatt.n. 205/PA  del 07/12/2016 FATTURA;26-01-2017;955;0;514;1;Spese correnti;3;Acquisto di beni e servizi;2;Acquisto di servizi;9;Manutenzione ordinaria e riparazioni;8;Manutenzione ordinaria e riparazioni di beni immobili;26-01-2017;
157;1;0;"112,80";"112,80";FERRAMENTA BELLOMI DI FOLLETTO G. E L. SAS;ZA418CDE37;SALDO Fatt.n. 97  del 30/11/2016 VENDITA;26-01-2017;350;0;158;1;Spese correnti;3;Acquisto di beni e servizi;1;Acquisto di beni;2;Altri beni di consumo;999;Altri beni e materiali di consumo n.a.c.;26-01-2017;
158;1;0;"192,50";"192,50";MATTARANETTA SOCIETA' COOPERATIVA SOCIALE;Z3C1CA95E4;ACCONTO Fatt.n. 43/FE  del 28/12/2016 FATTURA IMMEDIATA;26-01-2017;840;0;746;1;Spese correnti;3;Acquisto di beni e servizi;2;Acquisto di servizi;15;Contratti di servizio pubblico;4;Contratti di servizio per la raccolta rifiuti;26-01-2017;
159;1;0;"1.125,85";"1.125,85";MATTARANETTA SOCIETA' COOPERATIVA SOCIALE;Z8717B1201;SALDO Fatt.n. 43/FE  del 28/12/2016 FATTURA IMMEDIATA;26-01-2017;840;0;631;1;Spese correnti;3;Acquisto di beni e servizi;2;Acquisto di servizi;15;Contratti di servizio pubblico;4;Contratti di servizio per la raccolta rifiuti;26-01-2017;
160;1;0;"95,77";"466,83";KUWAIT PETROLEUM ITALIA SPA;ZA91845EEC;ACCONTO Fatt.n. PJ00061777  del 31/12/2016 FATTURA;26-01-2017;290;0;86;1;Spese correnti;3;Acquisto di beni e servizi;1;Acquisto di beni;2;Altri beni di consumo;2;"Carburanti, combustibili e lubrificanti";26-01-2017;
160;2;0;"371,06";"466,83";KUWAIT PETROLEUM ITALIA SPA;ZA91845EEC;SALDO Fatt.n. PJ00061777  del 31/12/2016 FATTURA;26-01-2017;290;0;86;1;Spese correnti;3;Acquisto di beni e servizi;1;Acquisto di beni;2;Altri beni di consumo;2;"Carburanti, combustibili e lubrificanti";26-01-2017;
161;1;0;"17.934,00";"17.934,00";CIDIELLE COOPERATIVA SOCIALE;604820724F;SALDO Fatt.n. 155/02  del 30/11/2016 fattura;26-01-2017;870;0;8;1;Spese correnti;3;Acquisto di beni e servizi;2;Acquisto di servizi;9;Manutenzione ordinaria e riparazioni;8;Manutenzione ordinaria e riparazioni di beni immobili;26-01-2017;
162;1;0;"448,96";"1.459,12";CIDIELLE COOPERATIVA SOCIALE;Z8311C4B3A;SALDO Fatt.n. 128/02  del 30/11/2016 FATTURA;26-01-2017;840;0;109;1;Spese correnti;3;Acquisto di beni e servizi;2;Acquisto di servizi;15;Contratti di servizio pubblico;4;Contratti di servizio per la raccolta rifiuti;26-01-2017;
162;2;0;"448,96";"1.459,12";CIDIELLE COOPERATIVA SOCIALE;Z8311C4B3A;SALDO Fatt.n. 138/02  del 30/11/2016 FATTURA;26-01-2017;840;0;109;1;Spese correnti;3;Acquisto di beni e servizi;2;Acquisto di servizi;15;Contratti di servizio pubblico;4;Contratti di servizio per la raccolta rifiuti;26-01-2017;
162;3;0;"561,20";"1.459,12";CIDIELLE COOPERATIVA SOCIALE;Z8311C4B3A;SALDO Fatt.n. 126/02  del 30/11/2016 fattura;26-01-2017;840;0;109;1;Spese correnti;3;Acquisto di beni e servizi;2;Acquisto di servizi;15;Contratti di servizio pubblico;4;Contratti di servizio per la raccolta rifiuti;26-01-2017;
163;1;0;"7.856,80";"7.856,80";CIDIELLE COOPERATIVA SOCIALE;ZEC18B1909;SALDO Fatt.n. 129/02  del 30/11/2016 FATTURA;26-01-2017;870;0;151;1;Spese correnti;3;Acquisto di beni e servizi;2;Acquisto di servizi;9;Manutenzione ordinaria e riparazioni;8;Manutenzione ordinaria e riparazioni di beni immobili;26-01-2017;
164;1;0;"500,00";"500,00";ASSOCIAZIONE NOI CALDIERINO -  EX CIRC. ANSPI (ONLUS); ;"EROGAZIONE CONTRIBUTO ECONOMICO ALL'ASSOCIAZIONE NOI DI CALDIERINO PER LE ATTIVITA' SOCIO-EDUCATIVE DELL'ANNO 2016, APPROVATO CON DELIBERA DI GIUNTA N.140/2016.";26-01-2017;891;2;759;1;Spese correnti;4;Trasferimenti correnti;4;Trasferimenti correnti a Istituzioni Sociali Private;1;Trasferimenti correnti a Istituzioni Sociali Private;1;Trasferimenti correnti a Istituzioni Sociali Private;26-01-2017;
165;1;0;"2.000,00";"2.000,00";PARROCCHIA S.PIETRO APOSTOLO (CALDIERO); ;EROGAZIONE CONTRIBUTO ECONOMICO ALLA PARROCCHIA DI CALDIERO E ALLA PARROCCHIA DI STRA' DI COLOGNOLA AI COLLI PER LE ATTIVITA' ESTIVE DI GREST 2016.;26-01-2017;891;2;760;1;Spese correnti;4;Trasferimenti correnti;4;Trasferimenti correnti a Istituzioni Sociali Private;1;Trasferimenti correnti a Istituzioni Sociali Private;1;Trasferimenti correnti a Istituzioni Sociali Private;26-01-2017;
166;1;0;"1.000,00";"1.000,00";PARROCCHIA DI STRA'; ;EROGAZIONE CONTRIBUTO ECONOMICO ALLA PARROCCHIA DI CALDIERO E ALLA PARROCCHIA DI STRA' DI COLOGNOLA AI COLLI PER LE ATTIVITA' ESTIVE DI GREST 2016.;26-01-2017;891;2;760;1;Spese correnti;4;Trasferimenti correnti;4;Trasferimenti correnti a Istituzioni Sociali Private;1;Trasferimenti correnti a Istituzioni Sociali Private;1;Trasferimenti correnti a Istituzioni Sociali Private;26-01-2017;
167;1;0;"3.000,00";"3.000,00";BOMMARTINI MARIA; ;PATRIMONIO COMUNALE - CONTRATTO DI LOCAZIONE COMMERCIALE DI UN IMMOBILE ED AREA ESTERNA DA ADIBIRE A DEPOSITO COMUNALE - IMPEGNO DI SPESA RELATIVO AL TERZO ANNO CONTRATTUALE;26-01-2017;280;0;520;1;Spese correnti;3;Acquisto di beni e servizi;2;Acquisto di servizi;7;Utilizzo di beni di terzi;1;Locazione di beni immobili;26-01-2017;
168;1;0;"150,00";"150,00";ASTROFILI VAL D'ILLASI; ;"EROGAZIONE CONTRIBUTO ECONOMICO ALL'ASSOCIAZIONE GRUPPO ASTROFILI VALDILLASI, APPROVATO CON DELIBERA DI GIUNTA N. 154/2016";26-01-2017;690;0;745;1;Spese correnti;4;Trasferimenti correnti;4;Trasferimenti correnti a Istituzioni Sociali Private;1;Trasferimenti correnti a Istituzioni Sociali Private;1;Trasferimenti correnti a Istituzioni Sociali Private;26-01-2017;
169;1;0;"1.952,00";"1.952,00";ACCATRE SRL;Z651BA64BC;SALDO Fatt.n. 1/161444  del 27/12/2016 FATTURA;26-01-2017;115;0;631;1;Spese correnti;3;Acquisto di beni e servizi;2;Acquisto di servizi;11;Prestazioni professionali e specialistiche;999;Altre prestazioni professionali e specialistiche n.a.c.;26-01-2017;
170;1;0;"488,49";"488,49";MYO SRL;Z5C1A14F2E;SALDO Fatt.n. 2040/160031337  del 25/11/2016 FATTURA;26-01-2017;330;0;328;1;Spese correnti;3;Acquisto di beni e servizi;1;Acquisto di beni;2;Altri beni di consumo;14;Stampati specialistici;26-01-2017;
171;1;0;"1.945,91";"1.945,91";COOPERATIVA SOCIALE VITA  ONLUS;Z661B48AD9;SALDO Fatt.n. 2/AP  del 30/11/2016 FATTURA VENDITA P.A .- Tipo A reg 3;30-01-2017;115;0;580;1;Spese correnti;3;Acquisto di beni e servizi;2;Acquisto di servizi;11;Prestazioni professionali e specialistiche;999;Altre prestazioni professionali e specialistiche n.a.c.;30-01-2017;
172;1;0;"2.316,56";"2.316,56";COOPERATIVA SOCIALE VITA  ONLUS;Z661B48AD9;SALDO Fatt.n. 1/AP  del 31/10/2016 FATTURA VENDITA P.A .- Tipo A reg 3;30-01-2017;115;0;580;1;Spese correnti;3;Acquisto di beni e servizi;2;Acquisto di servizi;11;Prestazioni professionali e specialistiche;999;Altre prestazioni professionali e specialistiche n.a.c.;30-01-2017;
174;1;0;"30,04";"780,80";STUDIO GIALLO SRL;Z1317BEDBD;SALDO Fatt.n. 404/11  del 19/12/2016 FATTURA 404/11 del 19/12/16_SERVIZIO BUSTE PAGA 2016;31-01-2017;378;0;638;1;Spese correnti;3;Acquisto di beni e servizi;2;Acquisto di servizi;16;Servizi amministrativi;999;Altre spese per servizi amministrativi;31-01-2017;
174;2;0;"750,76";"780,80";STUDIO GIALLO SRL;Z1317BEDBD;ACCONTO Fatt.n. 404/11  del 19/12/2016 FATTURA 404/11 del 19/12/16_SERVIZIO BUSTE PAGA 2016;31-01-2017;378;0;638;1;Spese correnti;3;Acquisto di beni e servizi;2;Acquisto di servizi;16;Servizi amministrativi;999;Altre spese per servizi amministrativi;31-01-2017;
175;1;0;"391,41";"391,41";TELECOM ITALIA;Z7215900F5;SALDO Fatt.n. 7X04947763  del 15/12/2016 1BIM 2017;31-01-2017;113;0;78;1;Spese correnti;3;Acquisto di beni e servizi;2;Acquisto di servizi;5;Utenze e canoni;2;Telefonia mobile;31-01-2017;
176;1;0;"58,23";"230,08";TELECOM ITALIA;Z8A08BEC62;EROGATORE SERVIZI TELEFONICI-PAGAMENTO TELEFONO MANDATO 8002010000450765002313 NOME TELECOMITALIA SPA2F 5 (P.       5 -R.       7);31-01-2017;113;0;627;1;Spese correnti;3;Acquisto di beni e servizi;2;Acquisto di servizi;5;Utenze e canoni;1;Telefonia fissa;31-01-2017;
176;2;0;"61,56";"230,08";TELECOM ITALIA;Z8A08BEC62;EROGATORE SERVIZI TELEFONICI-PAGAMENTO TELEFONO MANDATO 8002010000450615155519 NOME TELECOMITALIA SPA2F 5 (P.       3 -R.       5);31-01-2017;113;0;627;1;Spese correnti;3;Acquisto di beni e servizi;2;Acquisto di servizi;5;Utenze e canoni;1;Telefonia fissa;31-01-2017;
176;3;0;"110,29";"230,08";TELECOM ITALIA;Z8A08BEC62;EROGATORE SERVIZI TELEFONICI-PAGAMENTO TELEFONO MANDATO 8002010000450615014815 NOME TELECOMITALIA SPA2F 5 (P.       2 -R.       4);31-01-2017;113;0;627;1;Spese correnti;3;Acquisto di beni e servizi;2;Acquisto di servizi;5;Utenze e canoni;1;Telefonia fissa;31-01-2017;
177;1;0;"111,69";"111,69";TELECOM ITALIA;Z8A08BEC62;EROGATORE SERVIZI TELEFONICI-PAGAMENTO TELEFONO MANDATO 8002010000450615250211 NOME TELECOMITALIA SPA2F 5 (P.       4 -R.       6);31-01-2017;213;0;628;1;Spese correnti;3;Acquisto di beni e servizi;2;Acquisto di servizi;5;Utenze e canoni;1;Telefonia fissa;31-01-2017;
178;1;0;"30,68";"73,67";TELECOM ITALIA;Z8A08BEC62;EROGATORE SERVIZI TELEFONICI-PAGAMENTO TELEFONO MANDATO 8002010000450765242414 NOME TELECOMITALIA SPA2F 5 (P.       7 -R.       9);31-01-2017;543;0;629;1;Spese correnti;3;Acquisto di beni e servizi;2;Acquisto di servizi;5;Utenze e canoni;1;Telefonia fissa;31-01-2017;
178;2;0;"42,99";"73,67";TELECOM ITALIA;Z8A08BEC62;EROGATORE SERVIZI TELEFONICI-PAGAMENTO TELEFONO MANDATO 8002010000450765278715 NOME TELECOMITALIA SPA2F 5 (P.       8 -R.      10);31-01-2017;543;0;629;1;Spese correnti;3;Acquisto di beni e servizi;2;Acquisto di servizi;5;Utenze e canoni;1;Telefonia fissa;31-01-2017;
179;1;0;"164,95";"164,95";TELECOM ITALIA;Z8A08BEC62;EROGATORE SERVIZI TELEFONICI-PAGAMENTO TELEFONO MANDATO 8002010000450765004814 NOME TELECOMITALIA SPA2F 5 (P.       6 -R.       8);31-01-2017;583;0;630;1;Spese correnti;3;Acquisto di beni e servizi;2;Acquisto di servizi;5;Utenze e canoni;1;Telefonia fissa;31-01-2017;
180;1;0;"12,81";"12,81";TELECOM ITALIA;Z8A08BEC62;SALDO Fatt.n. 8E01075814  del 06/10/2016 6BIM 2016;31-01-2017;113;0;627;1;Spese correnti;3;Acquisto di beni e servizi;2;Acquisto di servizi;5;Utenze e canoni;1;Telefonia fissa;31-01-2017;
181;1;0;"13,54";"13,54";TELECOM ITALIA;Z8A08BEC62;SALDO Fatt.n. 8E01075908  del 06/10/2016 6BIM 2016;31-01-2017;113;0;627;1;Spese correnti;3;Acquisto di beni e servizi;2;Acquisto di servizi;5;Utenze e canoni;1;Telefonia fissa;31-01-2017;
182;1;0;"24,26";"24,26";TELECOM ITALIA;Z8A08BEC62;SALDO Fatt.n. 8E01071017  del 06/10/2016 6BIM 2016;31-01-2017;113;0;627;1;Spese correnti;3;Acquisto di beni e servizi;2;Acquisto di servizi;5;Utenze e canoni;1;Telefonia fissa;31-01-2017;
183;1;0;"24,57";"24,57";TELECOM ITALIA;Z8A08BEC62;SALDO Fatt.n. 8E01066450  del 06/10/2016 6BIM 2016;31-01-2017;213;0;628;1;Spese correnti;3;Acquisto di beni e servizi;2;Acquisto di servizi;5;Utenze e canoni;1;Telefonia fissa;31-01-2017;
184;1;0;"6,75";"6,75";TELECOM ITALIA;Z8A08BEC62;SALDO Fatt.n. 8E01080358  del 06/10/2016 6BIM 2016;31-01-2017;543;0;629;1;Spese correnti;3;Acquisto di beni e servizi;2;Acquisto di servizi;5;Utenze e canoni;1;Telefonia fissa;31-01-2017;
185;1;0;"9,46";"9,46";TELECOM ITALIA;Z8A08BEC62;SALDO Fatt.n. 8E01070406  del 06/10/2016 6BIM 2016;31-01-2017;543;0;629;1;Spese correnti;3;Acquisto di beni e servizi;2;Acquisto di servizi;5;Utenze e canoni;1;Telefonia fissa;31-01-2017;
186;1;0;"36,29";"36,29";TELECOM ITALIA;Z8A08BEC62;SALDO Fatt.n. 8E01070493  del 06/10/2016 6BIM 2016;31-01-2017;583;0;630;1;Spese correnti;3;Acquisto di beni e servizi;2;Acquisto di servizi;5;Utenze e canoni;1;Telefonia fissa;31-01-2017;
188;1;0;"3.026,90";"3.026,90";MINISTERO DELL'ECONOMIA E DELLE FINANZE; ;IVA A DEBITO RELATIVA AL MESE DI GENNAIO 2017;31-01-2017;1070;0;88;1;Spese correnti;10;Altre spese correnti;3;Versamenti IVA a debito;1;Versamenti IVA a debito per le gestioni commerciali;1;Versamenti IVA a debito per le gestioni commerciali;31-01-2017;
189;1;0;"1.830,21";"1.830,21";GP GLOBAL POWER SPA;5952652BD1;SALDO Fatt.n. V6/3202  del 18/01/2017 FORNITURA GAS;03-02-2017;582;0;793;1;Spese correnti;3;Acquisto di beni e servizi;2;Acquisto di servizi;5;Utenze e canoni;6;Gas;03-02-2017;
190;1;0;"246,28";"246,28";GP GLOBAL POWER SPA;5952652BD1;SALDO Fatt.n. V6/3203  del 18/01/2017 FORNITURA GAS;03-02-2017;353;0;799;1;Spese correnti;3;Acquisto di beni e servizi;2;Acquisto di servizi;5;Utenze e canoni;6;Gas;03-02-2017;
191;1;0;"858,33";"858,33";GP GLOBAL POWER SPA;5952652BD1;SALDO Fatt.n. V6/3204  del 18/01/2017 FORNITURA GAS;03-02-2017;353;0;799;1;Spese correnti;3;Acquisto di beni e servizi;2;Acquisto di servizi;5;Utenze e canoni;6;Gas;03-02-2017;
192;1;0;"1.457,90";"1.457,90";GP GLOBAL POWER SPA;5952652BD1;SALDO Fatt.n. V6/3205  del 18/01/2017 FORNITURA GAS;03-02-2017;542;0;794;1;Spese correnti;3;Acquisto di beni e servizi;2;Acquisto di servizi;5;Utenze e canoni;6;Gas;03-02-2017;
193;1;0;"800,21";"800,21";GP GLOBAL POWER SPA;5952652BD1;SALDO Fatt.n. V6/3206  del 18/01/2017 FORNITURA GAS;03-02-2017;542;0;794;1;Spese correnti;3;Acquisto di beni e servizi;2;Acquisto di servizi;5;Utenze e canoni;6;Gas;03-02-2017;
194;1;0;"1.003,95";"1.003,95";GP GLOBAL POWER SPA;5952652BD1;SALDO Fatt.n. V6/3207  del 18/01/2017 FORNITURA GAS;03-02-2017;112;0;795;1;Spese correnti;3;Acquisto di beni e servizi;2;Acquisto di servizi;5;Utenze e canoni;6;Gas;03-02-2017;
195;1;0;"438,55";"438,55";GP GLOBAL POWER SPA;5952652BD1;SALDO Fatt.n. V6/3208  del 18/01/2017 FORNITURA GAS;03-02-2017;212;0;796;1;Spese correnti;3;Acquisto di beni e servizi;2;Acquisto di servizi;5;Utenze e canoni;6;Gas;03-02-2017;
196;1;0;"1.087,45";"1.087,45";GP GLOBAL POWER SPA;5952652BD1;SALDO Fatt.n. V6/3209  del 18/01/2017 FORNITURA GAS;03-02-2017;884;0;797;1;Spese correnti;3;Acquisto di beni e servizi;2;Acquisto di servizi;5;Utenze e canoni;6;Gas;03-02-2017;
197;1;0;"1.787,84";"1.787,84";GP GLOBAL POWER SPA;5952652BD1;SALDO Fatt.n. V6/3210  del 18/01/2017 FORNITURA GAS;03-02-2017;888;0;798;1;Spese correnti;3;Acquisto di beni e servizi;2;Acquisto di servizi;5;Utenze e canoni;6;Gas;03-02-2017;
198;1;0;"2,41";"2,41";GP GLOBAL POWER SPA;5952652BD1;SALDO Fatt.n. V6/3211  del 18/01/2017 FORNITURA GAS;03-02-2017;353;0;799;1;Spese correnti;3;Acquisto di beni e servizi;2;Acquisto di servizi;5;Utenze e canoni;6;Gas;03-02-2017;
199;1;0;"51,78";"51,78";GP GLOBAL POWER SPA;5952652BD1;SALDO Fatt.n. V6/3212  del 18/01/2017 FORNITURA GAS;03-02-2017;353;0;799;1;Spese correnti;3;Acquisto di beni e servizi;2;Acquisto di servizi;5;Utenze e canoni;6;Gas;03-02-2017;
200;1;0;"1.279,76";"1.279,76";SERVIZIO ELETTRICO NAZIONALE  - Servizio Maggior Tutela;Z041BC7D61;SALDO Fatt.n. 230600103031033  del 13/01/2017 fattura;03-02-2017;885;0;650;1;Spese correnti;3;Acquisto di beni e servizi;2;Acquisto di servizi;5;Utenze e canoni;6;Gas;03-02-2017;
201;1;0;"1.029,92";"1.029,92";SERVIZIO ELETTRICO NAZIONALE  - Servizio Maggior Tutela;Z041BC7D61;SALDO Fatt.n. 230600305006134  del 13/01/2017 FATTURA;03-02-2017;541;0;651;1;Spese correnti;3;Acquisto di beni e servizi;2;Acquisto di servizi;5;Utenze e canoni;4;Energia elettrica;03-02-2017;
202;1;0;"634,66";"634,66";SERVIZIO ELETTRICO NAZIONALE  - Servizio Maggior Tutela;Z041BC7D61;SALDO Fatt.n. 230601205018234  del 13/01/2017 FATTURA;03-02-2017;581;0;652;1;Spese correnti;3;Acquisto di beni e servizi;2;Acquisto di servizi;5;Utenze e canoni;4;Energia elettrica;03-02-2017;
203;1;0;"185,22";"185,22";SERVIZIO ELETTRICO NAZIONALE  - Servizio Maggior Tutela;Z041BC7D61;SALDO Fatt.n. 230603802052833  del 13/01/2017 FATTURA;03-02-2017;951;0;653;1;Spese correnti;3;Acquisto di beni e servizi;2;Acquisto di servizi;5;Utenze e canoni;4;Energia elettrica;03-02-2017;
204;1;0;"318,96";"318,96";SERVIZIO ELETTRICO NAZIONALE  - Servizio Maggior Tutela;Z041BC7D61;SALDO Fatt.n. 230604105070043  del 13/01/2017 FATTURA;03-02-2017;211;0;654;1;Spese correnti;3;Acquisto di beni e servizi;2;Acquisto di servizi;5;Utenze e canoni;4;Energia elettrica;03-02-2017;
205;1;0;"64,34";"64,34";SERVIZIO ELETTRICO NAZIONALE  - Servizio Maggior Tutela;Z041BC7D61;SALDO Fatt.n. 230600455010033  del 13/01/2017 FATTURA;03-02-2017;354;0;655;1;Spese correnti;3;Acquisto di beni e servizi;2;Acquisto di servizi;5;Utenze e canoni;4;Energia elettrica;03-02-2017;
206;1;0;"483,29";"483,29";SERVIZIO ELETTRICO NAZIONALE  - Servizio Maggior Tutela;Z041BC7D61;SALDO Fatt.n. 230604005028253  del 13/01/2017 fattura;03-02-2017;354;0;655;1;Spese correnti;3;Acquisto di beni e servizi;2;Acquisto di servizi;5;Utenze e canoni;4;Energia elettrica;03-02-2017;
207;1;0;"298,97";"298,97";SERVIZIO ELETTRICO NAZIONALE  - Servizio Maggior Tutela;Z041BC7D61;SALDO Fatt.n. 230604105065663  del 13/01/2017 FATTURA;03-02-2017;354;0;655;1;Spese correnti;3;Acquisto di beni e servizi;2;Acquisto di servizi;5;Utenze e canoni;4;Energia elettrica;03-02-2017;
208;1;0;"97,28";"97,28";SERVIZIO ELETTRICO NAZIONALE  - Servizio Maggior Tutela;Z041BC7D61;SALDO Fatt.n. 230620403066033  del 13/01/2017 fattura;03-02-2017;354;0;655;1;Spese correnti;3;Acquisto di beni e servizi;2;Acquisto di servizi;5;Utenze e canoni;4;Energia elettrica;03-02-2017;
209;1;0;"179,74";"179,74";SERVIZIO ELETTRICO NAZIONALE  - Servizio Maggior Tutela;Z041BC7D61;SALDO Fatt.n. 230621805068233  del 13/01/2017 fattura;03-02-2017;354;0;655;1;Spese correnti;3;Acquisto di beni e servizi;2;Acquisto di servizi;5;Utenze e canoni;4;Energia elettrica;03-02-2017;
210;1;0;"89,93";"89,93";SERVIZIO ELETTRICO NAZIONALE  - Servizio Maggior Tutela;Z041BC7D61;SALDO Fatt.n. 230621805073033  del 13/01/2017 fattura;03-02-2017;354;0;655;1;Spese correnti;3;Acquisto di beni e servizi;2;Acquisto di servizi;5;Utenze e canoni;4;Energia elettrica;03-02-2017;
211;1;0;"1.837,26";"1.837,26";SERVIZIO ELETTRICO NAZIONALE  - Servizio Maggior Tutela;ZCA1BC46E5;SALDO Fatt.n. 230604105054034  del 13/01/2017 fattura;03-02-2017;960;0;634;1;Spese correnti;3;Acquisto di beni e servizi;2;Acquisto di servizi;5;Utenze e canoni;4;Energia elettrica;03-02-2017;
212;1;0;"1.159,74";"1.159,74";SERVIZIO ELETTRICO NAZIONALE  - Servizio Maggior Tutela;ZCA1BC46E5;SALDO Fatt.n. 230602305079534  del 13/01/2017 fattura;03-02-2017;960;0;634;1;Spese correnti;3;Acquisto di beni e servizi;2;Acquisto di servizi;5;Utenze e canoni;4;Energia elettrica;03-02-2017;
213;1;0;"993,65";"993,65";SERVIZIO ELETTRICO NAZIONALE  - Servizio Maggior Tutela;ZCA1BC46E5;SALDO Fatt.n. 230603905013733  del 13/01/2017 fattura;03-02-2017;960;0;634;1;Spese correnti;3;Acquisto di beni e servizi;2;Acquisto di servizi;5;Utenze e canoni;4;Energia elettrica;03-02-2017;
214;1;0;"1.530,92";"1.530,92";SERVIZIO ELETTRICO NAZIONALE  - Servizio Maggior Tutela;ZCA1BC46E5;SALDO Fatt.n. 230601735002053  del 13/01/2017 fattura;03-02-2017;960;0;634;1;Spese correnti;3;Acquisto di beni e servizi;2;Acquisto di servizi;5;Utenze e canoni;4;Energia elettrica;03-02-2017;
215;1;0;"1.700,95";"1.700,95";SERVIZIO ELETTRICO NAZIONALE  - Servizio Maggior Tutela;ZCA1BC46E5;SALDO Fatt.n. 230620403032033  del 13/01/2017 fattura;03-02-2017;960;0;634;1;Spese correnti;3;Acquisto di beni e servizi;2;Acquisto di servizi;5;Utenze e canoni;4;Energia elettrica;03-02-2017;
216;1;0;"26,46";"26,46";SERVIZIO ELETTRICO NAZIONALE  - Servizio Maggior Tutela;ZCA1BC46E5;SALDO Fatt.n. 230603405081033  del 13/01/2017 fattura;03-02-2017;960;0;634;1;Spese correnti;3;Acquisto di beni e servizi;2;Acquisto di servizi;5;Utenze e canoni;4;Energia elettrica;03-02-2017;
217;1;0;"13,43";"13,43";SERVIZIO ELETTRICO NAZIONALE  - Servizio Maggior Tutela;ZCA1BC46E5;SALDO Fatt.n. 230602605070033  del 13/01/2017 fattura;03-02-2017;960;0;634;1;Spese correnti;3;Acquisto di beni e servizi;2;Acquisto di servizi;5;Utenze e canoni;4;Energia elettrica;03-02-2017;
218;1;0;"1.068,60";"1.068,60";SERVIZIO ELETTRICO NAZIONALE  - Servizio Maggior Tutela;ZCA1BC46E5;SALDO Fatt.n. 230603705082533  del 13/01/2017 fattura;03-02-2017;960;0;634;1;Spese correnti;3;Acquisto di beni e servizi;2;Acquisto di servizi;5;Utenze e canoni;4;Energia elettrica;03-02-2017;
219;1;0;"497,35";"497,35";SERVIZIO ELETTRICO NAZIONALE  - Servizio Maggior Tutela;ZCA1BC46E5;SALDO Fatt.n. 230603405044233  del 13/01/2017 fattura;03-02-2017;960;0;634;1;Spese correnti;3;Acquisto di beni e servizi;2;Acquisto di servizi;5;Utenze e canoni;4;Energia elettrica;03-02-2017;
220;1;0;"727,93";"727,93";SERVIZIO ELETTRICO NAZIONALE  - Servizio Maggior Tutela;ZCA1BC46E5;SALDO Fatt.n. 230601455010043  del 13/01/2017 fattura;03-02-2017;960;0;634;1;Spese correnti;3;Acquisto di beni e servizi;2;Acquisto di servizi;5;Utenze e canoni;4;Energia elettrica;03-02-2017;
221;1;0;"123,63";"123,63";SERVIZIO ELETTRICO NAZIONALE  - Servizio Maggior Tutela;ZCA1BC46E5;SALDO Fatt.n. 230622005007033  del 13/01/2017 fattura;03-02-2017;960;0;634;1;Spese correnti;3;Acquisto di beni e servizi;2;Acquisto di servizi;5;Utenze e canoni;4;Energia elettrica;03-02-2017;
222;1;0;"340,78";"340,78";SERVIZIO ELETTRICO NAZIONALE  - Servizio Maggior Tutela;ZCA1BC46E5;SALDO Fatt.n. 230621405007443  del 13/01/2017 fattura;03-02-2017;960;0;634;1;Spese correnti;3;Acquisto di beni e servizi;2;Acquisto di servizi;5;Utenze e canoni;4;Energia elettrica;03-02-2017;
223;1;0;"194,83";"194,83";SERVIZIO ELETTRICO NAZIONALE  - Servizio Maggior Tutela;ZCA1BC46E5;SALDO Fatt.n. 230622605068033  del 13/01/2017 fattura;03-02-2017;960;0;634;1;Spese correnti;3;Acquisto di beni e servizi;2;Acquisto di servizi;5;Utenze e canoni;4;Energia elettrica;03-02-2017;
224;1;0;"412,36";"412,36";SERVIZIO ELETTRICO NAZIONALE  - Servizio Maggior Tutela;ZCA1BC46E5;SALDO Fatt.n. 230601805001043  del 13/01/2017 fattura;03-02-2017;960;0;634;1;Spese correnti;3;Acquisto di beni e servizi;2;Acquisto di servizi;5;Utenze e canoni;4;Energia elettrica;03-02-2017;
225;1;0;"1.000,75";"1.000,75";SERVIZIO ELETTRICO NAZIONALE  - Servizio Maggior Tutela;ZCA1BC46E5;SALDO Fatt.n. 230603505040033  del 13/01/2017 fattura;03-02-2017;960;0;634;1;Spese correnti;3;Acquisto di beni e servizi;2;Acquisto di servizi;5;Utenze e canoni;4;Energia elettrica;03-02-2017;
226;1;0;"923,00";"923,00";SERVIZIO ELETTRICO NAZIONALE  - Servizio Maggior Tutela;ZCA1BC46E5;SALDO Fatt.n. 230601605036034  del 13/01/2017 fattura;03-02-2017;960;0;634;1;Spese correnti;3;Acquisto di beni e servizi;2;Acquisto di servizi;5;Utenze e canoni;4;Energia elettrica;03-02-2017;
227;1;0;"181,34";"181,34";SERVIZIO ELETTRICO NAZIONALE  - Servizio Maggior Tutela;ZCA1BC46E5;SALDO Fatt.n. 230602505050533  del 13/01/2017 fattura;03-02-2017;960;0;634;1;Spese correnti;3;Acquisto di beni e servizi;2;Acquisto di servizi;5;Utenze e canoni;4;Energia elettrica;03-02-2017;
228;1;0;"1.247,93";"1.247,93";SERVIZIO ELETTRICO NAZIONALE  - Servizio Maggior Tutela;ZCA1BC46E5;SALDO Fatt.n. 230602555020034  del 13/01/2017 fattura;03-02-2017;960;0;634;1;Spese correnti;3;Acquisto di beni e servizi;2;Acquisto di servizi;5;Utenze e canoni;4;Energia elettrica;03-02-2017;
229;1;0;"649,21";"649,21";SERVIZIO ELETTRICO NAZIONALE  - Servizio Maggior Tutela;ZCA1BC46E5;SALDO Fatt.n. 230600103002544  del 13/01/2017 fattura;03-02-2017;960;0;634;1;Spese correnti;3;Acquisto di beni e servizi;2;Acquisto di servizi;5;Utenze e canoni;4;Energia elettrica;03-02-2017;
230;1;0;"412,99";"412,99";SERVIZIO ELETTRICO NAZIONALE  - Servizio Maggior Tutela;ZCA1BC46E5;SALDO Fatt.n. 230620403001233  del 13/01/2017 fattura;03-02-2017;960;0;634;1;Spese correnti;3;Acquisto di beni e servizi;2;Acquisto di servizi;5;Utenze e canoni;4;Energia elettrica;03-02-2017;
231;1;0;"95,44";"95,44";SERVIZIO ELETTRICO NAZIONALE  - Servizio Maggior Tutela;ZCA1BC46E5;SALDO Fatt.n. 230622405011023  del 13/01/2017 FATTURA;03-02-2017;960;0;634;1;Spese correnti;3;Acquisto di beni e servizi;2;Acquisto di servizi;5;Utenze e canoni;4;Energia elettrica;03-02-2017;
232;1;0;"143,17";"143,17";SERVIZIO ELETTRICO NAZIONALE  - Servizio Maggior Tutela;ZCA1BC46E5;SALDO Fatt.n. 230620305071033  del 13/01/2017 FATTURA;03-02-2017;960;0;634;1;Spese correnti;3;Acquisto di beni e servizi;2;Acquisto di servizi;5;Utenze e canoni;4;Energia elettrica;03-02-2017;
233;1;0;"67,38";"67,38";SERVIZIO ELETTRICO NAZIONALE  - Servizio Maggior Tutela;ZCA1BC46E5;SALDO Fatt.n. 230621405007533  del 13/01/2017 FATTURA;03-02-2017;960;0;634;1;Spese correnti;3;Acquisto di beni e servizi;2;Acquisto di servizi;5;Utenze e canoni;4;Energia elettrica;03-02-2017;
234;1;0;"640,27";"640,27";SERVIZIO ELETTRICO NAZIONALE  - Servizio Maggior Tutela;ZCA1BC46E5;SALDO Fatt.n. 230620407093543  del 13/01/2017 FATTURA;03-02-2017;960;0;634;1;Spese correnti;3;Acquisto di beni e servizi;2;Acquisto di servizi;5;Utenze e canoni;4;Energia elettrica;03-02-2017;
235;1;0;"294,04";"294,04";SERVIZIO ELETTRICO NAZIONALE  - Servizio Maggior Tutela;ZCA1BC46E5;SALDO Fatt.n. 230622535001043  del 13/01/2017 FATTURA;03-02-2017;960;0;634;1;Spese correnti;3;Acquisto di beni e servizi;2;Acquisto di servizi;5;Utenze e canoni;4;Energia elettrica;03-02-2017;
236;1;0;"1.355,15";"1.355,15";SERVIZIO ELETTRICO NAZIONALE  - Servizio Maggior Tutela;ZCA1BC46E5;SALDO Fatt.n. 230621105021543  del 13/01/2017 FATTURA;03-02-2017;960;0;634;1;Spese correnti;3;Acquisto di beni e servizi;2;Acquisto di servizi;5;Utenze e canoni;4;Energia elettrica;03-02-2017;
237;1;0;"1.583,06";"1.583,06";SERVIZIO ELETTRICO NAZIONALE  - Servizio Maggior Tutela;ZCA1BC46E5;SALDO Fatt.n. 230601215001043  del 13/01/2017 FATTURA;03-02-2017;960;0;634;1;Spese correnti;3;Acquisto di beni e servizi;2;Acquisto di servizi;5;Utenze e canoni;4;Energia elettrica;03-02-2017;
238;1;0;"494,25";"494,25";SERVIZIO ELETTRICO NAZIONALE  - Servizio Maggior Tutela;ZCA1BC46E5;SALDO Fatt.n. 230602855044843  del 13/01/2017 FATTURA;03-02-2017;960;0;634;1;Spese correnti;3;Acquisto di beni e servizi;2;Acquisto di servizi;5;Utenze e canoni;4;Energia elettrica;03-02-2017;
239;1;0;"959,73";"959,73";SERVIZIO ELETTRICO NAZIONALE  - Servizio Maggior Tutela;ZCA1BC46E5;SALDO Fatt.n. 230621505001043  del 13/01/2017 FATTURA;03-02-2017;960;0;634;1;Spese correnti;3;Acquisto di beni e servizi;2;Acquisto di servizi;5;Utenze e canoni;4;Energia elettrica;03-02-2017;
240;1;0;"61,04";"61,04";SERVIZIO ELETTRICO NAZIONALE  - Servizio Maggior Tutela;ZCA1BC46E5;SALDO Fatt.n. 230621125008031  del 13/01/2017 FATTURA;03-02-2017;960;0;634;1;Spese correnti;3;Acquisto di beni e servizi;2;Acquisto di servizi;5;Utenze e canoni;4;Energia elettrica;03-02-2017;
250;1;0;"1.000,00";"1.000,00";FLOROVIVAISMO IL MANIERO DI DAL FORNO GIUSEPPE;Z9918ABE08;SALDO Fatt.n. 2  del 29/12/2016 FORNITURA PIANTE DA RIPRODUZIONE CODICE CIG Z9918ABE08;07-02-2017;871;0;149;1;Spese correnti;3;Acquisto di beni e servizi;1;Acquisto di beni;3;Flora e Fauna;2;Flora selvatica e non selvatica;07-02-2017;
251;1;0;"1.969,16";"1.969,16";SOCIETA' COOPERATIVA CULTURE;5539394489;SALDO Fatt.n. 65/FE  del 18/01/2017 FATTURA;07-02-2017;680;0;121;1;Spese correnti;3;Acquisto di beni e servizi;2;Acquisto di servizi;15;Contratti di servizio pubblico;999;Altre spese per contratti di servizio pubblico;07-02-2017;
252;1;0;"121,30";"121,30";LA BOTTEGA DELL'INFORMATICA SAS;Z4918350E9;SALDO Fatt.n. 6/PA  del 30/12/2016 Rif. ddt  n. 13  del 06/12/16 e ddt n. 14 del 14/12/16;07-02-2017;110;0;157;1;Spese correnti;3;Acquisto di beni e servizi;1;Acquisto di beni;2;Altri beni di consumo;999;Altri beni e materiali di consumo n.a.c.;07-02-2017;
253;1;0;"616,70";"616,70";COMUNE DI SOAVE; ;RIMBORSO SPESE COMMISSIONE ELETTORALE CIRCONDARIALE PRIMO SEMESTRE 2016;07-02-2017;130;0;792;1;Spese correnti;3;Acquisto di beni e servizi;2;Acquisto di servizi;1;Organi e incarichi istituzionali dell'amministrazione;7;Commissioni elettorali;07-02-2017;
254;1;0;"2.244,00";"2.244,00";VALLISARI ADRIANA;Z9D19D0DC0;SALDO Fatt.n. FATTPA 6_16  del 21/12/2016 FATTURA;07-02-2017;147;0;273;1;Spese correnti;3;Acquisto di beni e servizi;2;Acquisto di servizi;2;"Organizzazione eventi, pubblicita` e servizi per trasferta";999;"Altre spese per relazioni pubbliche, convegni e mostre, pubblicita` n.a.c";07-02-2017;
255;1;0;"358,13";"358,13";GP GLOBAL POWER SPA;622385037F;ACCONTO Fatt.n. V0/923  del 09/01/2017 Fattura Energia Elettrica;07-02-2017;111;0;800;1;Spese correnti;3;Acquisto di beni e servizi;2;Acquisto di servizi;5;Utenze e canoni;4;Energia elettrica;07-02-2017;
256;1;0;"1.627,88";"1.627,88";GP GLOBAL POWER SPA; ;SOGGETTI DIVERSI-PAGAMENTO ADUE B2B MANDATO AA5TZ1C77 NOME Global Power Spa2F 3B A5 (P.      10 -R.     103);07-02-2017;111;0;800;1;Spese correnti;3;Acquisto di beni e servizi;2;Acquisto di servizi;5;Utenze e canoni;4;Energia elettrica;07-02-2017;
257;1;0;"66,75";"66,75";GP GLOBAL POWER SPA;622385037F;SALDO Fatt.n. V0/138118  del 01/12/2016 Fattura Energia Elettrica;07-02-2017;960;0;742;1;Spese correnti;3;Acquisto di beni e servizi;2;Acquisto di servizi;5;Utenze e canoni;4;Energia elettrica;07-02-2017;
258;1;0;"276,93";"276,93";GP GLOBAL POWER SPA;622385037F;SALDO Fatt.n. V0/138120  del 01/12/2016 Fattura Energia Elettrica;07-02-2017;111;0;743;1;Spese correnti;3;Acquisto di beni e servizi;2;Acquisto di servizi;5;Utenze e canoni;4;Energia elettrica;07-02-2017;
259;1;0;"3.927,80";"3.927,80";MINISTERO DELL'ECONOMIA E DELLE FINANZE; ;AG.DELLE ENTRATE - FONDI DELLA-F24EP (P.       1 -R.       3);07-02-2017;1070;0;99;1;Spese correnti;10;Altre spese correnti;3;Versamenti IVA a debito;1;Versamenti IVA a debito per le gestioni commerciali;1;Versamenti IVA a debito per le gestioni commerciali;07-02-2017;
260;1;0;"4.177,53";"4.177,53";MINISTERO DELL'ECONOMIA E DELLE FINANZE; ;AG.DELLE ENTRATE - FONDI DELLA-F24EP (P.       1 -R.       3);07-02-2017;1070;0;802;1;Spese correnti;10;Altre spese correnti;3;Versamenti IVA a debito;1;Versamenti IVA a debito per le gestioni commerciali;1;Versamenti IVA a debito per le gestioni commerciali;07-02-2017;
262;1;0;"257,98";"257,98";A & R SAS DI TERRAMOZZI ROBERTA & C.; ;COMPENSAZIONE CREDITO CONTRIBUTO DI COSTRUZIONE E RIMBORSO DEL MAGGIORE IMPORTO VERSATO DALLA DITTA PEGASUS COSTRUZIONI S.R.L  P.E. N. C06/3664 A FAVORE DELLA DITTA A & R SAS DI TERRAMOZZI ROBERTA E C  P.E. N. C16/4026.;13-02-2017;1209;0;827;2;Spese in conto capitale;5;Altre spese in conto capitale;4;Altri rimborsi in conto capitale di somme non dovute o incassate in eccesso;4;Rimborsi in conto capitale a Famiglie di somme non dovute o incassate in eccesso;1;Rimborsi in conto capitale a Famiglie di somme non dovute o incassate in eccesso;13-02-2017;
263;1;0;"250,00";"250,00";UNIPOL SAI ASSICURAZIONI SPA; ;ASSICURAZIONI - SINISTRO N. 1-8101-2016-0360714 DELL'11/06/2016 - LIQUIDAZIONE SOMMA A TITOLO DI FRANCHIGIA ALLA COMPAGNIA UNIPOLSAI ASSICURAZIONI SPA DI TORINO.;13-02-2017;120;0;106;1;Spese correnti;10;Altre spese correnti;4;Premi di assicurazione;1;Premi di assicurazione contro i danni;999;Altri premi di assicurazione contro i danni;13-02-2017;
264;1;0;"329,40";"329,40";BIESSE SRL - SISMA;ZDE19202EE;SALDO Fatt.n. 0000033  del 31/12/2016 FATTURA;13-02-2017;115;0;200;1;Spese correnti;3;Acquisto di beni e servizi;2;Acquisto di servizi;11;Prestazioni professionali e specialistiche;999;Altre prestazioni professionali e specialistiche n.a.c.;13-02-2017;
265;1;0;"610,00";"610,00";LINEA BIO VERDE DI ZAVETTI SILVANO;Z6A1C6A59F;SALDO Fatt.n. 000001-2016-PA  del 30/12/2016 ORGANIZZAZIONE FESTA DEL CIOCCOLATO 17 E 18/12/2016;13-02-2017;686;0;706;1;Spese correnti;3;Acquisto di beni e servizi;2;Acquisto di servizi;2;"Organizzazione eventi, pubblicita` e servizi per trasferta";5;Organizzazione e partecipazione a manifestazioni e convegni;13-02-2017;
266;1;0;"171,78";"171,78";AFRO SRL;Z291B787D7;SALDO Fatt.n. FATTPA 127_16  del 28/12/2016 FATTURA;13-02-2017;115;0;602;1;Spese correnti;3;Acquisto di beni e servizi;2;Acquisto di servizi;11;Prestazioni professionali e specialistiche;999;Altre prestazioni professionali e specialistiche n.a.c.;13-02-2017;
267;1;0;"-72,18";"507,37";INGROS CARTA GIUSTACCHINI SPA;ZBC19DBBCE;SALDO Fatt.n. PAM/0000119  del 31/01/2017 fattura;13-02-2017;110;0;330;1;Spese correnti;3;Acquisto di beni e servizi;1;Acquisto di beni;2;Altri beni di consumo;1;"Carta, cancelleria e stampati";13-02-2017;
267;2;0;"579,55";"507,37";INGROS CARTA GIUSTACCHINI SPA;ZBC19DBBCE;SALDO Fatt.n. PAM/0000110  del 31/01/2017 fattura;13-02-2017;110;0;330;1;Spese correnti;3;Acquisto di beni e servizi;1;Acquisto di beni;2;Altri beni di consumo;1;"Carta, cancelleria e stampati";13-02-2017;
268;1;0;"1.497,60";"1.497,60";TIPOGRAFIA CENTRALE SAS;Z5219FB983;SALDO Fatt.n. FATTPA 33_16  del 20/12/2016 FATTURA;13-02-2017;147;0;326;1;Spese correnti;3;Acquisto di beni e servizi;2;Acquisto di servizi;2;"Organizzazione eventi, pubblicita` e servizi per trasferta";999;"Altre spese per relazioni pubbliche, convegni e mostre, pubblicita` n.a.c";13-02-2017;
272;1;0;"135,18";"135,18";ABACO SPA;6519265BA8;SALDO Fatt.n. 2016120001726  del 01/12/2016 fattura;15-02-2017;382;0;803;1;Spese correnti;3;Acquisto di beni e servizi;2;Acquisto di servizi;3;Aggi di riscossione;999;Altri aggi di riscossione n.a.c.;15-02-2017;
273;1;0;"337,15";"337,15";ABACO SPA; ;SALDO Fatt.n. 2016120001753  del 05/12/2016 fattura;15-02-2017;382;0;803;1;Spese correnti;3;Acquisto di beni e servizi;2;Acquisto di servizi;3;Aggi di riscossione;999;Altri aggi di riscossione n.a.c.;15-02-2017;
274;1;0;"254,44";"254,44";ABACO SPA;Z7B16FB79A;ACCONTO Fatt.n. 2016140001980  del 06/12/2016 fattura;15-02-2017;825;0;566;1;Spese correnti;3;Acquisto di beni e servizi;2;Acquisto di servizi;3;Aggi di riscossione;999;Altri aggi di riscossione n.a.c.;15-02-2017;
276;1;0;"504,31";"504,31";ABACO SPA;6519265BA8;SALDO Fatt.n. 2016120001947  del 31/12/2016 fattura;15-02-2017;382;0;804;1;Spese correnti;3;Acquisto di beni e servizi;2;Acquisto di servizi;3;Aggi di riscossione;999;Altri aggi di riscossione n.a.c.;15-02-2017;
277;1;0;"419,44";"419,44";ABACO SPA; ;SALDO Fatt.n. 2016120001894  del 31/12/2016 fattura;15-02-2017;382;0;804;1;Spese correnti;3;Acquisto di beni e servizi;2;Acquisto di servizi;3;Aggi di riscossione;999;Altri aggi di riscossione n.a.c.;15-02-2017;
278;1;0;"858,66";"858,66";ABACO SPA;Z7B16FB79A;ACCONTO Fatt.n. 2016140002080  del 31/12/2016 fattura;15-02-2017;825;0;566;1;Spese correnti;3;Acquisto di beni e servizi;2;Acquisto di servizi;3;Aggi di riscossione;999;Altri aggi di riscossione n.a.c.;15-02-2017;
281;1;0;"307,44";"307,44";ABACO SPA; ;SALDO Fatt.n. 2017120000083  del 07/02/2017 FATTURA;15-02-2017;382;0;107;1;Spese correnti;3;Acquisto di beni e servizi;2;Acquisto di servizi;3;Aggi di riscossione;999;Altri aggi di riscossione n.a.c.;15-02-2017;
282;1;0;"572,91";"572,91";ABACO SPA;6519265BA8;SALDO Fatt.n. 2017120000126  del 08/02/2017 FATTURA;15-02-2017;382;0;107;1;Spese correnti;3;Acquisto di beni e servizi;2;Acquisto di servizi;3;Aggi di riscossione;999;Altri aggi di riscossione n.a.c.;15-02-2017;
283;1;0;"3.224,77";"3.224,77";ACQUE VERONESI SCARL;ZA51CA8FE0;SALDO Fatt.n. 0360120170900000400  del 16/01/2017 F/Fattura preventivo;16-02-2017;359;0;750;1;Spese correnti;3;Acquisto di beni e servizi;2;Acquisto di servizi;5;Utenze e canoni;5;Acqua;16-02-2017;
284;1;0;"1.737,40";"1.737,40";ACQUE VERONESI SCARL;ZA51CA8FE0;SALDO Fatt.n. 0360120170900000300  del 16/01/2017 F/Fattura preventivo;16-02-2017;359;0;750;1;Spese correnti;3;Acquisto di beni e servizi;2;Acquisto di servizi;5;Utenze e canoni;5;Acqua;16-02-2017;
285;1;0;"19,43";"19,43";SVAI SPA;Z0B18ABD04;SALDO Fatt.n. 300023  del 31/01/2017 IDEM;16-02-2017;350;0;142;1;Spese correnti;3;Acquisto di beni e servizi;1;Acquisto di beni;2;Altri beni di consumo;999;Altri beni e materiali di consumo n.a.c.;16-02-2017;
286;1;0;"17,40";"17,40";EDILTOSI S.R.L.;Z4518ABCF6;SALDO Fatt.n. 000315  del 31/01/2017 FATTURA;16-02-2017;350;0;141;1;Spese correnti;3;Acquisto di beni e servizi;1;Acquisto di beni;2;Altri beni di consumo;999;Altri beni e materiali di consumo n.a.c.;16-02-2017;
287;1;0;"129,17";"129,17";LA RONDA - SERVIZI DI VIGILANZA;ZE618FE5E8;SALDO Fatt.n. 0002394  del 31/01/2017 FATTURA;16-02-2017;357;0;171;1;Spese correnti;3;Acquisto di beni e servizi;2;Acquisto di servizi;13;Servizi ausiliari per il funzionamento dell'ente;1;"Servizi di sorveglianza, custodia e accoglienza";16-02-2017;
288;1;0;"3.339,31";"3.339,31";COOPERATIVA SOCIALE MONSCLEDA LAVORO SRL;ZF519B17F0;SALDO Fatt.n. 4/2017  del 31/01/2017 FATTURA;16-02-2017;952;0;264;1;Spese correnti;3;Acquisto di beni e servizi;2;Acquisto di servizi;9;Manutenzione ordinaria e riparazioni;8;Manutenzione ordinaria e riparazioni di beni immobili;16-02-2017;
289;1;0;"0,01";"7.543,60";CONSORZIO DI BACINO VERONA DUE DEL QUADRILATERO;4923072787;SALDO Fatt.n. 000035/02  del 25/01/2017 FATTURA;16-02-2017;840;0;136;1;Spese correnti;3;Acquisto di beni e servizi;2;Acquisto di servizi;15;Contratti di servizio pubblico;4;Contratti di servizio per la raccolta rifiuti;16-02-2017;
289;2;0;"7.543,59";"7.543,60";CONSORZIO DI BACINO VERONA DUE DEL QUADRILATERO;4923072787;ACCONTO Fatt.n. 000035/02  del 25/01/2017 FATTURA;16-02-2017;840;0;136;1;Spese correnti;3;Acquisto di beni e servizi;2;Acquisto di servizi;15;Contratti di servizio pubblico;4;Contratti di servizio per la raccolta rifiuti;16-02-2017;
290;1;0;"1.082,47";"1.082,47";CONSORZIO DI BACINO VERONA DUE DEL QUADRILATERO;4923072787;SALDO Fatt.n. 000049/02  del 25/01/2017 FATTURA;16-02-2017;840;0;136;1;Spese correnti;3;Acquisto di beni e servizi;2;Acquisto di servizi;15;Contratti di servizio pubblico;4;Contratti di servizio per la raccolta rifiuti;16-02-2017;
291;1;0;"571,12";"571,12";CONSORZIO DI BACINO VERONA DUE DEL QUADRILATERO;4923072787;SALDO Fatt.n. 000086/02  del 27/01/2017 FATTURA;16-02-2017;840;0;136;1;Spese correnti;3;Acquisto di beni e servizi;2;Acquisto di servizi;15;Contratti di servizio pubblico;4;Contratti di servizio per la raccolta rifiuti;16-02-2017;
292;1;0;"0,01";"5.153,09";CONSORZIO DI BACINO VERONA DUE DEL QUADRILATERO;4923072787;SALDO Fatt.n. 000131/02  del 27/01/2017 FATTURA;16-02-2017;840;0;136;1;Spese correnti;3;Acquisto di beni e servizi;2;Acquisto di servizi;15;Contratti di servizio pubblico;4;Contratti di servizio per la raccolta rifiuti;16-02-2017;
292;2;0;"5.153,08";"5.153,09";CONSORZIO DI BACINO VERONA DUE DEL QUADRILATERO;4923072787;ACCONTO Fatt.n. 000131/02  del 27/01/2017 FATTURA;16-02-2017;840;0;136;1;Spese correnti;3;Acquisto di beni e servizi;2;Acquisto di servizi;15;Contratti di servizio pubblico;4;Contratti di servizio per la raccolta rifiuti;16-02-2017;
293;1;0;"-0,39";"944,37";CONSORZIO DI BACINO VERONA DUE DEL QUADRILATERO;4923072787;SALDO Fatt.n. 000175/02  del 31/01/2017 NOTA DI CREDITO;16-02-2017;840;0;136;1;Spese correnti;3;Acquisto di beni e servizi;2;Acquisto di servizi;15;Contratti di servizio pubblico;4;Contratti di servizio per la raccolta rifiuti;16-02-2017;
293;2;0;"944,76";"944,37";CONSORZIO DI BACINO VERONA DUE DEL QUADRILATERO;4923072787;SALDO Fatt.n. 000214/02  del 31/01/2017 FATTURA;16-02-2017;840;0;136;1;Spese correnti;3;Acquisto di beni e servizi;2;Acquisto di servizi;15;Contratti di servizio pubblico;4;Contratti di servizio per la raccolta rifiuti;16-02-2017;
294;1;0;"0,01";"776,26";CONSORZIO DI BACINO VERONA DUE DEL QUADRILATERO;4923072787;SALDO Fatt.n. 000335/02  del 31/01/2017 FATTURA;16-02-2017;840;0;136;1;Spese correnti;3;Acquisto di beni e servizi;2;Acquisto di servizi;15;Contratti di servizio pubblico;4;Contratti di servizio per la raccolta rifiuti;16-02-2017;
294;2;0;"776,25";"776,26";CONSORZIO DI BACINO VERONA DUE DEL QUADRILATERO;4923072787;ACCONTO Fatt.n. 000335/02  del 31/01/2017 FATTURA;16-02-2017;840;0;136;1;Spese correnti;3;Acquisto di beni e servizi;2;Acquisto di servizi;15;Contratti di servizio pubblico;4;Contratti di servizio per la raccolta rifiuti;16-02-2017;
295;1;0;"0,01";"8.454,50";CONSORZIO DI BACINO VERONA DUE DEL QUADRILATERO;4923072787;SALDO Fatt.n. 004419/02  del 31/12/2016 fattura;16-02-2017;840;0;136;1;Spese correnti;3;Acquisto di beni e servizi;2;Acquisto di servizi;15;Contratti di servizio pubblico;4;Contratti di servizio per la raccolta rifiuti;16-02-2017;
295;2;0;"8.454,49";"8.454,50";CONSORZIO DI BACINO VERONA DUE DEL QUADRILATERO;4923072787;ACCONTO Fatt.n. 004419/02  del 31/12/2016 fattura;16-02-2017;840;0;136;1;Spese correnti;3;Acquisto di beni e servizi;2;Acquisto di servizi;15;Contratti di servizio pubblico;4;Contratti di servizio per la raccolta rifiuti;16-02-2017;
296;1;0;"902,66";"902,66";CONSORZIO DI BACINO VERONA DUE DEL QUADRILATERO;4923072787;SALDO Fatt.n. 004470/02  del 31/12/2016 fattura;16-02-2017;840;0;136;1;Spese correnti;3;Acquisto di beni e servizi;2;Acquisto di servizi;15;Contratti di servizio pubblico;4;Contratti di servizio per la raccolta rifiuti;16-02-2017;
297;1;0;"0,01";"5.902,73";CONSORZIO DI BACINO VERONA DUE DEL QUADRILATERO;4923072787;SALDO Fatt.n. 004512/02  del 31/12/2016 fattura;16-02-2017;840;0;136;1;Spese correnti;3;Acquisto di beni e servizi;2;Acquisto di servizi;15;Contratti di servizio pubblico;4;Contratti di servizio per la raccolta rifiuti;16-02-2017;
297;2;0;"5.902,72";"5.902,73";CONSORZIO DI BACINO VERONA DUE DEL QUADRILATERO;4923072787;ACCONTO Fatt.n. 004512/02  del 31/12/2016 fattura;16-02-2017;840;0;136;1;Spese correnti;3;Acquisto di beni e servizi;2;Acquisto di servizi;15;Contratti di servizio pubblico;4;Contratti di servizio per la raccolta rifiuti;16-02-2017;
298;1;0;"9.639,18";"9.639,18";CONSORZIO DI BACINO VERONA DUE DEL QUADRILATERO;4923072787;SALDO Fatt.n. 004579/02  del 31/12/2016 fattura;16-02-2017;840;0;136;1;Spese correnti;3;Acquisto di beni e servizi;2;Acquisto di servizi;15;Contratti di servizio pubblico;4;Contratti di servizio per la raccolta rifiuti;16-02-2017;
299;1;0;"258,01";"258,01";CONSORZIO DI BACINO VERONA DUE DEL QUADRILATERO;4923072787;SALDO Fatt.n. 004580/02  del 31/12/2016 fattura;16-02-2017;840;0;136;1;Spese correnti;3;Acquisto di beni e servizi;2;Acquisto di servizi;15;Contratti di servizio pubblico;4;Contratti di servizio per la raccolta rifiuti;16-02-2017;
300;1;0;"7.000,00";"7.000,00";PADANA SRL;Z361AFF604;ACCONTO Fatt.n. 7/PA  del 24/01/2017 VENDITA;16-02-2017;955;0;514;1;Spese correnti;3;Acquisto di beni e servizi;2;Acquisto di servizi;9;Manutenzione ordinaria e riparazioni;8;Manutenzione ordinaria e riparazioni di beni immobili;16-02-2017;
301;1;0;"599,38";"599,38";PADANA SRL;Z361AFF604;SALDO Fatt.n. 7/PA  del 24/01/2017 VENDITA;16-02-2017;955;0;514;1;Spese correnti;3;Acquisto di beni e servizi;2;Acquisto di servizi;9;Manutenzione ordinaria e riparazioni;8;Manutenzione ordinaria e riparazioni di beni immobili;16-02-2017;
302;1;0;"2.593,48";"2.593,48";COOPERATIVA SOCIALE MONSCLEDA LAVORO SRL;ZF519B17F0;ACCONTO Fatt.n. 169/2016  del 31/12/2016 FATTURA;16-02-2017;952;0;264;1;Spese correnti;3;Acquisto di beni e servizi;2;Acquisto di servizi;9;Manutenzione ordinaria e riparazioni;8;Manutenzione ordinaria e riparazioni di beni immobili;16-02-2017;
303;1;0;"1.543,69";"1.543,69";COOPERATIVA SOCIALE MONSCLEDA LAVORO SRL;ZF519B17F0;ACCONTO Fatt.n. 169/2016  del 31/12/2016 FATTURA;16-02-2017;352;0;263;1;Spese correnti;3;Acquisto di beni e servizi;2;Acquisto di servizi;9;Manutenzione ordinaria e riparazioni;8;Manutenzione ordinaria e riparazioni di beni immobili;16-02-2017;
304;1;0;"3,57";"3,57";COOPERATIVA SOCIALE MONSCLEDA LAVORO SRL;ZF519B17F0;SALDO Fatt.n. 169/2016  del 31/12/2016 FATTURA;16-02-2017;952;0;264;1;Spese correnti;3;Acquisto di beni e servizi;2;Acquisto di servizi;9;Manutenzione ordinaria e riparazioni;8;Manutenzione ordinaria e riparazioni di beni immobili;16-02-2017;
305;1;0;"158,60";"317,20";VENETA ENGINEERING SRL;ZA31D00095;SALDO Fatt.n. 17375  del 28/12/2016 FATTURA;16-02-2017;352;0;786;1;Spese correnti;3;Acquisto di beni e servizi;2;Acquisto di servizi;9;Manutenzione ordinaria e riparazioni;8;Manutenzione ordinaria e riparazioni di beni immobili;16-02-2017;
305;2;0;"158,60";"317,20";VENETA ENGINEERING SRL;ZA31D00095;SALDO Fatt.n. 17374  del 28/12/2016 FATTURA;16-02-2017;352;0;786;1;Spese correnti;3;Acquisto di beni e servizi;2;Acquisto di servizi;9;Manutenzione ordinaria e riparazioni;8;Manutenzione ordinaria e riparazioni di beni immobili;16-02-2017;
306;1;0;"679,31";"679,31";TVL GROUP;Z6D165316C;"ACCONTO Fatt.n. 149/PA  del 31/12/2016 OPERAZIONE CON ""SCISSIONE DEI PAGAMENTI"" - IVA A VS. CARICO EX ART 17-ter, DPR N. 633/72";16-02-2017;352;0;497;1;Spese correnti;3;Acquisto di beni e servizi;2;Acquisto di servizi;9;Manutenzione ordinaria e riparazioni;8;Manutenzione ordinaria e riparazioni di beni immobili;16-02-2017;
307;1;0;"437,55";"437,55";TVL GROUP;Z76140DE24;"SALDO Fatt.n. 149/PA  del 31/12/2016 OPERAZIONE CON ""SCISSIONE DEI PAGAMENTI"" - IVA A VS. CARICO EX ART 17-ter, DPR N. 633/72";16-02-2017;352;0;736;1;Spese correnti;3;Acquisto di beni e servizi;2;Acquisto di servizi;9;Manutenzione ordinaria e riparazioni;8;Manutenzione ordinaria e riparazioni di beni immobili;16-02-2017;
308;1;0;"1.599,42";"1.599,42";IDROCLIMA DI MILLI STEFANO E VANNI SNC;ZC418ABDDB;SALDO Fatt.n. 000009-2016  del 29/12/2016 FATTURA;16-02-2017;352;0;146;1;Spese correnti;3;Acquisto di beni e servizi;2;Acquisto di servizi;9;Manutenzione ordinaria e riparazioni;8;Manutenzione ordinaria e riparazioni di beni immobili;16-02-2017;
309;1;0;"1.229,76";"1.229,76";CONSORZIO DI BACINO VERONA DUE DEL QUADRILATERO;4923072787;SALDO Fatt.n. 004383/02  del 30/12/2016 fattura;16-02-2017;842;0;633;1;Spese correnti;3;Acquisto di beni e servizi;1;Acquisto di beni;2;Altri beni di consumo;999;Altri beni e materiali di consumo n.a.c.;16-02-2017;
310;1;0;"2.537,60";"2.537,60";SAVOIA ANDREA;ZB417C60B5;SALDO Fatt.n. 000002-2017-1  del 09/01/2017 fattura;16-02-2017;271;0;645;1;Spese correnti;3;Acquisto di beni e servizi;2;Acquisto di servizi;11;Prestazioni professionali e specialistiche;999;Altre prestazioni professionali e specialistiche n.a.c.;16-02-2017;
311;1;0;"5.087,40";"5.087,40";SPAZIO VERDE INTERNATIONAL SRL;Z741CBD4EE;SALDO Fatt.n. 15/FPA  del 30/01/2017 Determina n. 152 del 28/12/2016;16-02-2017;1190;1;757;2;Spese in conto capitale;2;Investimenti fissi lordi e acquisto di terreni;1;Beni materiali;3;Mobili e arredi;999;Mobili e arredi n.a.c.;16-02-2017;
312;1;0;"2,04";"6,30";SVAI SPA;Z0B18ABD04;SALDO Fatt.n. 300611  del 31/12/2016 IDEM;16-02-2017;350;0;142;1;Spese correnti;3;Acquisto di beni e servizi;1;Acquisto di beni;2;Altri beni di consumo;999;Altri beni e materiali di consumo n.a.c.;16-02-2017;
312;2;0;"4,26";"6,30";SVAI SPA;Z0B18ABD04;ACCONTO Fatt.n. 300611  del 31/12/2016 IDEM;16-02-2017;350;0;142;1;Spese correnti;3;Acquisto di beni e servizi;1;Acquisto di beni;2;Altri beni di consumo;999;Altri beni e materiali di consumo n.a.c.;16-02-2017;
313;1;0;"845,74";"845,74";CONSORZIO AGRARIO DEL NORDEST;75418ABE10;SALDO Fatt.n. 248203/V1  del 31/12/2016 FATTURA;16-02-2017;950;0;150;1;Spese correnti;3;Acquisto di beni e servizi;1;Acquisto di beni;2;Altri beni di consumo;999;Altri beni e materiali di consumo n.a.c.;16-02-2017;
314;1;0;"116,41";"116,41";FERRAMENTA BELLOMI DI FOLLETTO G. E L. SAS;ZA418CDE37;SALDO Fatt.n. 103  del 31/12/2016 VENDITA;16-02-2017;350;0;158;1;Spese correnti;3;Acquisto di beni e servizi;1;Acquisto di beni;2;Altri beni di consumo;999;Altri beni e materiali di consumo n.a.c.;16-02-2017;
315;1;0;"344,02";"425,02";KUWAIT PETROLEUM ITALIA SPA;ZA91845EEC;SALDO Fatt.n. PJ00065645  del 31/01/2017 FATTURA;16-02-2017;290;0;86;1;Spese correnti;3;Acquisto di beni e servizi;1;Acquisto di beni;2;Altri beni di consumo;2;"Carburanti, combustibili e lubrificanti";16-02-2017;
315;2;0;"81,00";"425,02";KUWAIT PETROLEUM ITALIA SPA;ZA91845EEC;ACCONTO Fatt.n. PJ00065645  del 31/01/2017 FATTURA;16-02-2017;290;0;86;1;Spese correnti;3;Acquisto di beni e servizi;1;Acquisto di beni;2;Altri beni di consumo;2;"Carburanti, combustibili e lubrificanti";16-02-2017;
316;1;0;"1.318,35";"1.318,35";MATTARANETTA SOCIETA' COOPERATIVA SOCIALE;Z3C1CA95E4;SALDO Fatt.n. 1/FE  del 31/01/2017 FATTURA IMMEDIATA;16-02-2017;840;0;746;1;Spese correnti;3;Acquisto di beni e servizi;2;Acquisto di servizi;15;Contratti di servizio pubblico;4;Contratti di servizio per la raccolta rifiuti;16-02-2017;
317;1;0;"373,32";"373,32";SICONTRAF SRL;Z1F12459A7;SALDO Fatt.n. 26/PA  del 25/01/2017 fattura;16-02-2017;952;0;108;1;Spese correnti;3;Acquisto di beni e servizi;2;Acquisto di servizi;9;Manutenzione ordinaria e riparazioni;5;Manutenzione ordinaria e riparazioni di attrezzature;16-02-2017;
318;1;0;"770,00";"770,00";ALFIERE TEATRO;ZE01B9124A;SALDO Fatt.n. 0000002/PA  del 20/12/2016 FATTURA;16-02-2017;686;0;606;1;Spese correnti;3;Acquisto di beni e servizi;2;Acquisto di servizi;2;"Organizzazione eventi, pubblicita` e servizi per trasferta";5;Organizzazione e partecipazione a manifestazioni e convegni;16-02-2017;
319;1;0;"3.414,54";"3.414,54";GP GLOBAL POWER SPA;5952652BD1;SALDO Fatt.n. V6/7027  del 08/02/2017 FORNITURA GAS;16-02-2017;582;0;828;1;Spese correnti;3;Acquisto di beni e servizi;2;Acquisto di servizi;5;Utenze e canoni;6;Gas;16-02-2017;
320;1;0;"2.460,06";"2.460,06";GP GLOBAL POWER SPA;5952652BD1;SALDO Fatt.n. V6/7030  del 08/02/2017 FORNITURA GAS;16-02-2017;542;0;829;1;Spese correnti;3;Acquisto di beni e servizi;2;Acquisto di servizi;5;Utenze e canoni;6;Gas;16-02-2017;
321;1;0;"1.092,42";"1.092,42";GP GLOBAL POWER SPA;5952652BD1;SALDO Fatt.n. V6/7031  del 08/02/2017 FORNITURA GAS;16-02-2017;542;0;829;1;Spese correnti;3;Acquisto di beni e servizi;2;Acquisto di servizi;5;Utenze e canoni;6;Gas;16-02-2017;
322;1;0;"1.891,85";"1.891,85";GP GLOBAL POWER SPA;5952652BD1;SALDO Fatt.n. V6/7032  del 08/02/2017 FORNITURA GAS;16-02-2017;112;0;830;1;Spese correnti;3;Acquisto di beni e servizi;2;Acquisto di servizi;5;Utenze e canoni;6;Gas;16-02-2017;
323;1;0;"670,68";"670,68";GP GLOBAL POWER SPA;5952652BD1;SALDO Fatt.n. V6/7033  del 08/02/2017 FORNITURA GAS;16-02-2017;212;0;831;1;Spese correnti;3;Acquisto di beni e servizi;2;Acquisto di servizi;5;Utenze e canoni;6;Gas;16-02-2017;
324;1;0;"1.252,23";"1.252,23";GP GLOBAL POWER SPA;5952652BD1;SALDO Fatt.n. V6/7034  del 08/02/2017 FORNITURA GAS;16-02-2017;884;0;832;1;Spese correnti;3;Acquisto di beni e servizi;2;Acquisto di servizi;5;Utenze e canoni;6;Gas;16-02-2017;
325;1;0;"3.092,22";"3.092,22";GP GLOBAL POWER SPA;5952652BD1;SALDO Fatt.n. V6/7035  del 08/02/2017 FORNITURA GAS;16-02-2017;888;0;833;1;Spese correnti;3;Acquisto di beni e servizi;2;Acquisto di servizi;5;Utenze e canoni;6;Gas;16-02-2017;
326;1;0;"2,47";"2,47";GP GLOBAL POWER SPA;5952652BD1;SALDO Fatt.n. V6/7036  del 08/02/2017 FORNITURA GAS;16-02-2017;353;0;834;1;Spese correnti;3;Acquisto di beni e servizi;2;Acquisto di servizi;5;Utenze e canoni;6;Gas;16-02-2017;
327;1;0;"71,43";"71,43";GP GLOBAL POWER SPA;5952652BD1;SALDO Fatt.n. V6/7037  del 08/02/2017 FORNITURA GAS;16-02-2017;353;0;834;1;Spese correnti;3;Acquisto di beni e servizi;2;Acquisto di servizi;5;Utenze e canoni;6;Gas;16-02-2017;
328;1;0;"328,72";"328,72";GP GLOBAL POWER SPA;5952652BD1;SALDO Fatt.n. V6/7028  del 08/02/2017 FORNITURA GAS;16-02-2017;353;0;834;1;Spese correnti;3;Acquisto di beni e servizi;2;Acquisto di servizi;5;Utenze e canoni;6;Gas;16-02-2017;
329;1;0;"1.257,05";"1.257,05";GP GLOBAL POWER SPA;5952652BD1;SALDO Fatt.n. V6/7029  del 08/02/2017 FORNITURA GAS;16-02-2017;353;0;834;1;Spese correnti;3;Acquisto di beni e servizi;2;Acquisto di servizi;5;Utenze e canoni;6;Gas;16-02-2017;
331;1;0;"1.299,30";"1.299,30";GN TECNOPOMPE DI NAONI GIOVANNI;Z601B04BDA;SALDO Fatt.n. 1  del 03/02/2017 Ft Split Payment ex art.17-ter DPR 633/72;20-02-2017;549;0;512;1;Spese correnti;3;Acquisto di beni e servizi;2;Acquisto di servizi;9;Manutenzione ordinaria e riparazioni;8;Manutenzione ordinaria e riparazioni di beni immobili;20-02-2017;
332;1;0;"300,00";"300,00";PARROCCHIA S.PIETRO APOSTOLO (CALDIERO); ;"CULTURA. PROVVEDIMENTI DI SPESA PER L'INIZIATIVA CELEBRATIVA DEL GIORNO DELLA MEMORIA, 27/01/2017.";20-02-2017;690;0;105;1;Spese correnti;4;Trasferimenti correnti;4;Trasferimenti correnti a Istituzioni Sociali Private;1;Trasferimenti correnti a Istituzioni Sociali Private;1;Trasferimenti correnti a Istituzioni Sociali Private;20-02-2017;
333;1;0;"507,09";"507,09";ANCI VENETO; ;"CONTRIBUTO ASSOCIATIVO 2017 - ADESIONE PER L'ANNO 2017 AD ANCIVENETO, ANUSCA ED ANUTEL.";20-02-2017;190;0;109;1;Spese correnti;4;Trasferimenti correnti;1;Trasferimenti correnti a Amministrazioni Pubbliche;1;Trasferimenti correnti a Amministrazioni Centrali;11;Trasferimenti correnti a enti centrali a struttura associativa;20-02-2017;
334;1;0;"230,00";"230,00";ANUTEL; ;"ORGANISMI ASSOCIATIVI. ADESIONE PER L'ANNO 2017 AD ANCIVENETO, ANUSCA ED ANUTEL.";20-02-2017;190;0;110;1;Spese correnti;4;Trasferimenti correnti;1;Trasferimenti correnti a Amministrazioni Pubbliche;1;Trasferimenti correnti a Amministrazioni Centrali;11;Trasferimenti correnti a enti centrali a struttura associativa;20-02-2017;
335;1;0;"440,00";"440,00";ANUSCA; ;"ORGANISMI ASSOCIATIVI. ADESIONE PER L'ANNO 2017 AD ANCIVENETO, ANUSCA ED ANUTEL.";20-02-2017;190;0;111;1;Spese correnti;4;Trasferimenti correnti;1;Trasferimenti correnti a Amministrazioni Pubbliche;1;Trasferimenti correnti a Amministrazioni Centrali;11;Trasferimenti correnti a enti centrali a struttura associativa;20-02-2017;
336;1;0;"600,00";"600,00";CORO POLIFONICO; ;IMPEGNO CONTRIBUTO ECONOMICO A FAVORE DELL'ASSOCIAZIONE CORO POLIFONICO DI CALDIERO PER IL CONCERTO DELL'EPIFANIA 2017.;20-02-2017;690;0;744;1;Spese correnti;4;Trasferimenti correnti;4;Trasferimenti correnti a Istituzioni Sociali Private;1;Trasferimenti correnti a Istituzioni Sociali Private;1;Trasferimenti correnti a Istituzioni Sociali Private;20-02-2017;
337;1;0;"3.709,22";"3.709,22";AMMINISTRATORI COMUNALI; ;EROGAZIONE INDENNITA' DI CARICA MESE DI FEBBRAIO 2017;20-02-2017;10;0;8;1;Spese correnti;3;Acquisto di beni e servizi;2;Acquisto di servizi;1;Organi e incarichi istituzionali dell'amministrazione;1;Organi istituzionali dell'amministrazione - Indennità;20-02-2017;
409;1;0;"180,28";"180,28";EDILTOSI S.R.L.;Z4518ABCF6;SALDO Fatt.n. 006528  del 28/12/2016 FATTURA;21-02-2017;350;0;141;1;Spese correnti;3;Acquisto di beni e servizi;1;Acquisto di beni;2;Altri beni di consumo;999;Altri beni e materiali di consumo n.a.c.;21-02-2017;
411;1;0;"21,96";"21,96";GEC OFFICE SPA;ZCD196419C;SALDO Fatt.n. 24/PA  del 31/01/2017 fattura;23-02-2017;680;0;218;1;Spese correnti;3;Acquisto di beni e servizi;2;Acquisto di servizi;15;Contratti di servizio pubblico;999;Altre spese per contratti di servizio pubblico;23-02-2017;
412;1;0;"253,02";"253,02";KYOCERA DOCUMENT SOLUTIONS ITALIA SPA;ZBC1852D0A;ACCONTO Fatt.n. 1010393660  del 28/12/2016 FOTOCOPIATRICI 19  - Lotto 3:  multifunzione a colori formato A3/A4 da 35 pag/min - Durata del contratto 60 mesi - CIG: 0568590F4B  DETERMINA AREA AMMINISTRATIVA N.11 DEL 2016 IMPEGNO N.102/2016;23-02-2017;109;0;102;1;Spese correnti;3;Acquisto di beni e servizi;2;Acquisto di servizi;7;Utilizzo di beni di terzi;4;Noleggi di hardware;23-02-2017;
413;1;0;"0,01";"0,01";KYOCERA DOCUMENT SOLUTIONS ITALIA SPA;Z2A1D65314;SALDO Fatt.n. 1010393660  del 28/12/2016 FOTOCOPIATRICI 19  - Lotto 3:  multifunzione a colori formato A3/A4 da 35 pag/min - Durata del contratto 60 mesi - CIG: 0568590F4B  DETERMINA AREA AMMINISTRATIVA N.11 DEL 2016 IMPEGNO N.102/2016;23-02-2017;109;0;114;1;Spese correnti;3;Acquisto di beni e servizi;2;Acquisto di servizi;7;Utilizzo di beni di terzi;4;Noleggi di hardware;23-02-2017;
414;1;0;"419,75";"419,75";XEROX ITALIA RENTAL SERVICES;Z501836E40;ACCONTO Fatt.n. 16049645  del 16/12/2016 FATTURA;23-02-2017;109;0;100;1;Spese correnti;3;Acquisto di beni e servizi;2;Acquisto di servizi;7;Utilizzo di beni di terzi;4;Noleggi di hardware;23-02-2017;
415;1;0;"0,02";"0,02";XEROX ITALIA RENTAL SERVICES;Z001D62A58;SALDO Fatt.n. 16049645  del 16/12/2016 FATTURA;23-02-2017;109;0;112;1;Spese correnti;3;Acquisto di beni e servizi;2;Acquisto di servizi;7;Utilizzo di beni di terzi;4;Noleggi di hardware;23-02-2017;
416;1;0;"1.700,00";"1.700,00";PRO LOCO DI CALDIERO; ;ASSOCIAZIONE PROLOCO CALDIERO. CONTRIBUTO ECONOMICO ASSEGNATO A SOSTEGNO DEL PROGRAMMA DELLE ATTIVITA' 2016. PROVVEDIMENTI DI SPESA.;23-02-2017;891;2;323;1;Spese correnti;4;Trasferimenti correnti;4;Trasferimenti correnti a Istituzioni Sociali Private;1;Trasferimenti correnti a Istituzioni Sociali Private;1;Trasferimenti correnti a Istituzioni Sociali Private;23-02-2017;
417;1;0;"677,22";"2.281,72";GP GLOBAL POWER SPA; ;BENEFICIARI DIVERSI-PAGAMENTI DIVERSI COD DISP 751702080MT9EG NOME GLOBAL POWER SPA MANDATO (P.      15 -R.     259);28-02-2017;111;0;800;1;Spese correnti;3;Acquisto di beni e servizi;2;Acquisto di servizi;5;Utenze e canoni;4;Energia elettrica;28-02-2017;
417;2;0;"1.604,50";"2.281,72";GP GLOBAL POWER SPA; ;BENEFICIARI DIVERSI-PAGAMENTI DIVERSI COD DISP 751702080MT9EX NOME GLOBAL POWER SPA MANDATO (P.      14 -R.     258);28-02-2017;111;0;800;1;Spese correnti;3;Acquisto di beni e servizi;2;Acquisto di servizi;5;Utenze e canoni;4;Energia elettrica;28-02-2017;
418;1;0;"352,99";"352,99";GP GLOBAL POWER SPA;622385037F;SALDO Fatt.n. V0/13726  del 01/02/2017 Fattura Energia Elettrica;28-02-2017;111;0;800;1;Spese correnti;3;Acquisto di beni e servizi;2;Acquisto di servizi;5;Utenze e canoni;4;Energia elettrica;28-02-2017;
419;1;0;"148,99";"148,99";GP GLOBAL POWER SPA;622385037F;SALDO Fatt.n. V0/13725  del 01/02/2017 Fattura Energia Elettrica;28-02-2017;111;0;800;1;Spese correnti;3;Acquisto di beni e servizi;2;Acquisto di servizi;5;Utenze e canoni;4;Energia elettrica;28-02-2017;
420;1;0;"669,29";"669,29";GP GLOBAL POWER SPA;Z811B696D5;BENEFICIARI DIVERSI-PAGAMENTI DIVERSI COD DISP 751702210VQLTF NOME GLOBAL POWER SPA MANDATO (P.      18 -R.     272);28-02-2017;960;0;587;1;Spese correnti;3;Acquisto di beni e servizi;2;Acquisto di servizi;5;Utenze e canoni;4;Energia elettrica;28-02-2017;
421;1;0;"147,24";"147,24";GP GLOBAL POWER SPA;Z811B696D5;SALDO Fatt.n. V1/645  del 08/02/2017 Fattura Servizio Connessione Energia Elettrica;28-02-2017;960;0;587;1;Spese correnti;3;Acquisto di beni e servizi;2;Acquisto di servizi;5;Utenze e canoni;4;Energia elettrica;28-02-2017;
423;1;0;"16.478,59";"16.478,59";COBIT  SRL;Z801CB4DEB;SALDO Fatt.n. 02 PA  del 16/02/2017 FATTURA;06-03-2017;1183;1;570;2;Spese in conto capitale;2;Investimenti fissi lordi e acquisto di terreni;1;Beni materiali;9;Beni immobili;12;Infrastrutture stradali;06-03-2017;
424;1;0;"924,65";"924,65";SERVIZIO ELETTRICO NAZIONALE  - Servizio Maggior Tutela;ZCA1BC46E5;SALDO Fatt.n. 230603085004043  del 10/02/2017 fattura;06-03-2017;960;0;634;1;Spese correnti;3;Acquisto di beni e servizi;2;Acquisto di servizi;5;Utenze e canoni;4;Energia elettrica;06-03-2017;
425;1;0;"1.179,17";"1.179,17";SERVIZIO ELETTRICO NAZIONALE  - Servizio Maggior Tutela;ZCA1BC46E5;SALDO Fatt.n. 230602555020035  del 10/02/2017 FATTURA;06-03-2017;960;0;634;1;Spese correnti;3;Acquisto di beni e servizi;2;Acquisto di servizi;5;Utenze e canoni;4;Energia elettrica;06-03-2017;
426;1;0;"695,03";"695,03";SERVIZIO ELETTRICO NAZIONALE  - Servizio Maggior Tutela;ZCA1BC46E5;SALDO Fatt.n. 230621125008032  del 10/02/2017 FATTURA;06-03-2017;960;0;634;1;Spese correnti;3;Acquisto di beni e servizi;2;Acquisto di servizi;5;Utenze e canoni;4;Energia elettrica;06-03-2017;
427;1;0;"1.670,81";"1.670,81";SERVIZIO ELETTRICO NAZIONALE  - Servizio Maggior Tutela;ZCA1BC46E5;SALDO Fatt.n. 230604105054035  del 10/02/2017 FATTURA;06-03-2017;960;0;634;1;Spese correnti;3;Acquisto di beni e servizi;2;Acquisto di servizi;5;Utenze e canoni;4;Energia elettrica;06-03-2017;
428;1;0;"1.082,79";"1.082,79";SERVIZIO ELETTRICO NAZIONALE  - Servizio Maggior Tutela;ZCA1BC46E5;SALDO Fatt.n. 230602305079535  del 10/02/2017 FATTURA;06-03-2017;960;0;634;1;Spese correnti;3;Acquisto di beni e servizi;2;Acquisto di servizi;5;Utenze e canoni;4;Energia elettrica;06-03-2017;
429;1;0;"880,29";"880,29";SERVIZIO ELETTRICO NAZIONALE  - Servizio Maggior Tutela;ZCA1BC46E5;SALDO Fatt.n. 230601605036035  del 10/02/2017 FATTURA;06-03-2017;960;0;634;1;Spese correnti;3;Acquisto di beni e servizi;2;Acquisto di servizi;5;Utenze e canoni;4;Energia elettrica;06-03-2017;
430;1;0;"524,25";"524,25";SERVIZIO ELETTRICO NAZIONALE  - Servizio Maggior Tutela;ZCA1BC46E5;SALDO Fatt.n. 230600103002545  del 10/02/2017 FATTURA;06-03-2017;960;0;634;1;Spese correnti;3;Acquisto di beni e servizi;2;Acquisto di servizi;5;Utenze e canoni;4;Energia elettrica;06-03-2017;
431;1;0;"978,01";"978,01";SERVIZIO ELETTRICO NAZIONALE  - Servizio Maggior Tutela;Z041BC7D61;SALDO Fatt.n. 230600305006135  del 10/02/2017 fattura;06-03-2017;541;0;651;1;Spese correnti;3;Acquisto di beni e servizi;2;Acquisto di servizi;5;Utenze e canoni;4;Energia elettrica;06-03-2017;
432;1;0;"636,11";"636,11";SERVIZIO ELETTRICO NAZIONALE  - Servizio Maggior Tutela;Z041BC7D61;SALDO Fatt.n. 230601205018235  del 10/02/2017 fattura;06-03-2017;581;0;652;1;Spese correnti;3;Acquisto di beni e servizi;2;Acquisto di servizi;5;Utenze e canoni;4;Energia elettrica;06-03-2017;
433;1;0;"41,95";"94,05";SERVIZIO ELETTRICO NAZIONALE  - Servizio Maggior Tutela;Z041BC7D61;SALDO Fatt.n. 230604105065853  del 10/02/2017 fattura;06-03-2017;354;0;655;1;Spese correnti;3;Acquisto di beni e servizi;2;Acquisto di servizi;5;Utenze e canoni;4;Energia elettrica;06-03-2017;
433;2;0;"52,10";"94,05";SERVIZIO ELETTRICO NAZIONALE  - Servizio Maggior Tutela;Z041BC7D61;SALDO Fatt.n. 230604105066033  del 10/02/2017 fattura;06-03-2017;354;0;655;1;Spese correnti;3;Acquisto di beni e servizi;2;Acquisto di servizi;5;Utenze e canoni;4;Energia elettrica;06-03-2017;
434;1;0;"12.176,28";"12.176,28";ZAMPINI CARLO - NON VALIDO;Z041BA3ED3;SALDO Fatt.n. 4/PA  del 27/01/2017 DETERMINAZIONE N. 113 18.10.2016.;06-03-2017;970;0;607;1;Spese correnti;3;Acquisto di beni e servizi;2;Acquisto di servizi;9;Manutenzione ordinaria e riparazioni;4;Manutenzione ordinaria e riparazioni di impianti e macchinari;06-03-2017;
435;1;0;"4.989,80";"4.989,80";ZAMPINI CARLO - NON VALIDO;Z521C488CC;SALDO Fatt.n. 3/PA  del 11/01/2017 Determina n. 133/2016;06-03-2017;142;0;737;1;Spese correnti;3;Acquisto di beni e servizi;2;Acquisto di servizi;99;Altri servizi;999;Altri servizi diversi n.a.c.;06-03-2017;
436;1;0;"1.051,84";"1.051,84";COOPERATIVA SOCIALE VENETA ONLUS;Z72122AFF3;ACCONTO Fatt.n. 000017-2017-PA  del 31/01/2017 FATTURA;06-03-2017;782;0;9;1;Spese correnti;3;Acquisto di beni e servizi;2;Acquisto di servizi;9;Manutenzione ordinaria e riparazioni;8;Manutenzione ordinaria e riparazioni di beni immobili;06-03-2017;
437;1;0;"1.121,96";"1.121,96";COOPERATIVA SOCIALE VENETA ONLUS;Z1F1CDE21A;SALDO Fatt.n. 000017-2017-PA  del 31/01/2017 FATTURA;06-03-2017;782;0;766;1;Spese correnti;3;Acquisto di beni e servizi;2;Acquisto di servizi;9;Manutenzione ordinaria e riparazioni;8;Manutenzione ordinaria e riparazioni di beni immobili;06-03-2017;
438;1;0;"187,92";"187,92";ACQUE VERONESI SCARL; ;ACCONTO Fatt.n. 0350120170800091000  del 13/02/2017 B/Bollettazione;06-03-2017;359;0;392;1;Spese correnti;3;Acquisto di beni e servizi;2;Acquisto di servizi;5;Utenze e canoni;5;Acqua;06-03-2017;
439;1;0;"10,74";"10,74";ACQUE VERONESI SCARL; ;ACCONTO Fatt.n. 0350120170800091100  del 13/02/2017 B/Bollettazione;06-03-2017;879;0;393;1;Spese correnti;3;Acquisto di beni e servizi;2;Acquisto di servizi;5;Utenze e canoni;5;Acqua;06-03-2017;
440;1;0;"12,89";"12,89";ACQUE VERONESI SCARL;ZEC18ABCDF;SALDO Fatt.n. 0350120170800091100  del 13/02/2017 B/Bollettazione;06-03-2017;879;0;140;1;Spese correnti;3;Acquisto di beni e servizi;2;Acquisto di servizi;5;Utenze e canoni;5;Acqua;06-03-2017;
441;1;0;"23,63";"23,63";ACQUE VERONESI SCARL; ;SALDO Fatt.n. 0350120170800091500  del 13/02/2017 B/Bollettazione;06-03-2017;879;0;140;1;Spese correnti;3;Acquisto di beni e servizi;2;Acquisto di servizi;5;Utenze e canoni;5;Acqua;06-03-2017;
442;1;0;"139,00";"139,00";ACQUE VERONESI SCARL; ;SALDO Fatt.n. 0350120170800091800  del 13/02/2017 B/Bollettazione;06-03-2017;879;0;140;1;Spese correnti;3;Acquisto di beni e servizi;2;Acquisto di servizi;5;Utenze e canoni;5;Acqua;06-03-2017;
443;1;0;"139,00";"139,00";ACQUE VERONESI SCARL; ;SALDO Fatt.n. 0350120170800091700  del 13/02/2017 B/Bollettazione;06-03-2017;879;0;140;1;Spese correnti;3;Acquisto di beni e servizi;2;Acquisto di servizi;5;Utenze e canoni;5;Acqua;06-03-2017;
444;1;0;"139,00";"139,00";ACQUE VERONESI SCARL; ;SALDO Fatt.n. 0350120170800091900  del 13/02/2017 B/Bollettazione;06-03-2017;879;0;140;1;Spese correnti;3;Acquisto di beni e servizi;2;Acquisto di servizi;5;Utenze e canoni;5;Acqua;06-03-2017;
445;1;0;"139,00";"139,00";ACQUE VERONESI SCARL; ;SALDO Fatt.n. 0350120170800092300  del 13/02/2017 B/Bollettazione;06-03-2017;879;0;140;1;Spese correnti;3;Acquisto di beni e servizi;2;Acquisto di servizi;5;Utenze e canoni;5;Acqua;06-03-2017;
446;1;0;"13,90";"13,90";ACQUE VERONESI SCARL; ;SALDO Fatt.n. 0350120170800093000  del 13/02/2017 B/Bollettazione;06-03-2017;879;0;140;1;Spese correnti;3;Acquisto di beni e servizi;2;Acquisto di servizi;5;Utenze e canoni;5;Acqua;06-03-2017;
447;1;0;"13,90";"13,90";ACQUE VERONESI SCARL; ;SALDO Fatt.n. 0350120170800088200  del 13/02/2017 B/Bollettazione;06-03-2017;879;0;393;1;Spese correnti;3;Acquisto di beni e servizi;2;Acquisto di servizi;5;Utenze e canoni;5;Acqua;06-03-2017;
448;1;0;"23,63";"23,63";ACQUE VERONESI SCARL; ;SALDO Fatt.n. 0350120170800088900  del 13/02/2017 B/Bollettazione;06-03-2017;879;0;393;1;Spese correnti;3;Acquisto di beni e servizi;2;Acquisto di servizi;5;Utenze e canoni;5;Acqua;06-03-2017;
449;1;0;"45,87";"45,87";ACQUE VERONESI SCARL; ;SALDO Fatt.n. 0350120170800088700  del 13/02/2017 B/Bollettazione;06-03-2017;879;0;393;1;Spese correnti;3;Acquisto di beni e servizi;2;Acquisto di servizi;5;Utenze e canoni;5;Acqua;06-03-2017;
450;1;0;"23,63";"23,63";ACQUE VERONESI SCARL; ;SALDO Fatt.n. 0350120170800088500  del 13/02/2017 B/Bollettazione;06-03-2017;879;0;393;1;Spese correnti;3;Acquisto di beni e servizi;2;Acquisto di servizi;5;Utenze e canoni;5;Acqua;06-03-2017;
451;1;0;"23,63";"23,63";ACQUE VERONESI SCARL; ;SALDO Fatt.n. 0350120170800088400  del 13/02/2017 B/Bollettazione;06-03-2017;879;0;393;1;Spese correnti;3;Acquisto di beni e servizi;2;Acquisto di servizi;5;Utenze e canoni;5;Acqua;06-03-2017;
452;1;0;"23,63";"23,63";ACQUE VERONESI SCARL; ;SALDO Fatt.n. 0350120170800088100  del 13/02/2017 B/Bollettazione;06-03-2017;879;0;393;1;Spese correnti;3;Acquisto di beni e servizi;2;Acquisto di servizi;5;Utenze e canoni;5;Acqua;06-03-2017;
453;1;0;"23,63";"23,63";ACQUE VERONESI SCARL; ;SALDO Fatt.n. 0350120170800089000  del 13/02/2017 B/Bollettazione;06-03-2017;879;0;393;1;Spese correnti;3;Acquisto di beni e servizi;2;Acquisto di servizi;5;Utenze e canoni;5;Acqua;06-03-2017;
454;1;0;"23,63";"23,63";ACQUE VERONESI SCARL; ;SALDO Fatt.n. 0350120170800088800  del 13/02/2017 B/Bollettazione;06-03-2017;879;0;393;1;Spese correnti;3;Acquisto di beni e servizi;2;Acquisto di servizi;5;Utenze e canoni;5;Acqua;06-03-2017;
455;1;0;"45,87";"45,87";ACQUE VERONESI SCARL; ;SALDO Fatt.n. 0350120170800088600  del 13/02/2017 B/Bollettazione;06-03-2017;879;0;393;1;Spese correnti;3;Acquisto di beni e servizi;2;Acquisto di servizi;5;Utenze e canoni;5;Acqua;06-03-2017;
456;1;0;"23,63";"23,63";ACQUE VERONESI SCARL; ;SALDO Fatt.n. 0350120170800088300  del 13/02/2017 B/Bollettazione;06-03-2017;879;0;393;1;Spese correnti;3;Acquisto di beni e servizi;2;Acquisto di servizi;5;Utenze e canoni;5;Acqua;06-03-2017;
457;1;0;"13,90";"13,90";ACQUE VERONESI SCARL; ;SALDO Fatt.n. 0350120170800091400  del 13/02/2017 B/Bollettazione;06-03-2017;879;0;393;1;Spese correnti;3;Acquisto di beni e servizi;2;Acquisto di servizi;5;Utenze e canoni;5;Acqua;06-03-2017;
458;1;0;"23,63";"23,63";ACQUE VERONESI SCARL; ;SALDO Fatt.n. 0350120170800090100  del 13/02/2017 B/Bollettazione;06-03-2017;879;0;393;1;Spese correnti;3;Acquisto di beni e servizi;2;Acquisto di servizi;5;Utenze e canoni;5;Acqua;06-03-2017;
459;1;0;"23,63";"23,63";ACQUE VERONESI SCARL; ;SALDO Fatt.n. 0350120170800090200  del 13/02/2017 B/Bollettazione;06-03-2017;879;0;393;1;Spese correnti;3;Acquisto di beni e servizi;2;Acquisto di servizi;5;Utenze e canoni;5;Acqua;06-03-2017;
460;1;0;"13,90";"13,90";ACQUE VERONESI SCARL; ;SALDO Fatt.n. 0350120170800090500  del 13/02/2017 B/Bollettazione;06-03-2017;879;0;393;1;Spese correnti;3;Acquisto di beni e servizi;2;Acquisto di servizi;5;Utenze e canoni;5;Acqua;06-03-2017;
461;1;0;"93,13";"93,13";ACQUE VERONESI SCARL; ;SALDO Fatt.n. 0350120170800090400  del 13/02/2017 B/Bollettazione;06-03-2017;879;0;393;1;Spese correnti;3;Acquisto di beni e servizi;2;Acquisto di servizi;5;Utenze e canoni;5;Acqua;06-03-2017;
462;1;0;"9,72";"9,72";ACQUE VERONESI SCARL; ;SALDO Fatt.n. 0350120170800090800  del 13/02/2017 B/Bollettazione;06-03-2017;879;0;393;1;Spese correnti;3;Acquisto di beni e servizi;2;Acquisto di servizi;5;Utenze e canoni;5;Acqua;06-03-2017;
463;1;0;"-103,77";"82,49";ACQUE VERONESI SCARL; ;SALDO Fatt.n. 0350120170800090600  del 13/02/2017 B/Bollettazione;06-03-2017;879;0;393;1;Spese correnti;3;Acquisto di beni e servizi;2;Acquisto di servizi;5;Utenze e canoni;5;Acqua;06-03-2017;
463;2;0;"186,26";"82,49";ACQUE VERONESI SCARL; ;SALDO Fatt.n. 0350120170800090300  del 13/02/2017 B/Bollettazione;06-03-2017;879;0;393;1;Spese correnti;3;Acquisto di beni e servizi;2;Acquisto di servizi;5;Utenze e canoni;5;Acqua;06-03-2017;
464;1;0;"45,87";"45,87";ACQUE VERONESI SCARL; ;SALDO Fatt.n. 0350120170800088000  del 13/02/2017 B/Bollettazione;06-03-2017;879;0;393;1;Spese correnti;3;Acquisto di beni e servizi;2;Acquisto di servizi;5;Utenze e canoni;5;Acqua;06-03-2017;
465;1;0;"93,13";"93,13";ACQUE VERONESI SCARL; ;SALDO Fatt.n. 0350120170800087800  del 13/02/2017 B/Bollettazione;06-03-2017;879;0;393;1;Spese correnti;3;Acquisto di beni e servizi;2;Acquisto di servizi;5;Utenze e canoni;5;Acqua;06-03-2017;
466;1;0;"23,63";"23,63";ACQUE VERONESI SCARL; ;SALDO Fatt.n. 0350120170800087400  del 13/02/2017 B/Bollettazione;06-03-2017;879;0;393;1;Spese correnti;3;Acquisto di beni e servizi;2;Acquisto di servizi;5;Utenze e canoni;5;Acqua;06-03-2017;
467;1;0;"13,90";"13,90";ACQUE VERONESI SCARL; ;SALDO Fatt.n. 0350120170800087700  del 13/02/2017 B/Bollettazione;06-03-2017;879;0;393;1;Spese correnti;3;Acquisto di beni e servizi;2;Acquisto di servizi;5;Utenze e canoni;5;Acqua;06-03-2017;
468;1;0;"9,72";"9,72";ACQUE VERONESI SCARL; ;SALDO Fatt.n. 0350120170800087600  del 13/02/2017 B/Bollettazione;06-03-2017;879;0;393;1;Spese correnti;3;Acquisto di beni e servizi;2;Acquisto di servizi;5;Utenze e canoni;5;Acqua;06-03-2017;
469;1;0;"9,72";"9,72";ACQUE VERONESI SCARL; ;SALDO Fatt.n. 0350120170800089200  del 13/02/2017 B/Bollettazione;06-03-2017;879;0;393;1;Spese correnti;3;Acquisto di beni e servizi;2;Acquisto di servizi;5;Utenze e canoni;5;Acqua;06-03-2017;
470;1;0;"23,63";"23,63";ACQUE VERONESI SCARL; ;SALDO Fatt.n. 0350120170800089100  del 13/02/2017 B/Bollettazione;06-03-2017;879;0;393;1;Spese correnti;3;Acquisto di beni e servizi;2;Acquisto di servizi;5;Utenze e canoni;5;Acqua;06-03-2017;
471;1;0;"9,72";"9,72";ACQUE VERONESI SCARL; ;SALDO Fatt.n. 0350120170800089800  del 13/02/2017 B/Bollettazione;06-03-2017;879;0;393;1;Spese correnti;3;Acquisto di beni e servizi;2;Acquisto di servizi;5;Utenze e canoni;5;Acqua;06-03-2017;
472;1;0;"45,87";"45,87";ACQUE VERONESI SCARL; ;SALDO Fatt.n. 0350120170800089400  del 13/02/2017 B/Bollettazione;06-03-2017;879;0;393;1;Spese correnti;3;Acquisto di beni e servizi;2;Acquisto di servizi;5;Utenze e canoni;5;Acqua;06-03-2017;
473;1;0;"23,63";"23,63";ACQUE VERONESI SCARL; ;SALDO Fatt.n. 0350120170800089500  del 13/02/2017 B/Bollettazione;06-03-2017;879;0;393;1;Spese correnti;3;Acquisto di beni e servizi;2;Acquisto di servizi;5;Utenze e canoni;5;Acqua;06-03-2017;
474;1;0;"93,13";"93,13";ACQUE VERONESI SCARL; ;SALDO Fatt.n. 0350120170800089300  del 13/02/2017 B/Bollettazione;06-03-2017;879;0;393;1;Spese correnti;3;Acquisto di beni e servizi;2;Acquisto di servizi;5;Utenze e canoni;5;Acqua;06-03-2017;
475;1;0;"4,16";"4,16";ACQUE VERONESI SCARL; ;SALDO Fatt.n. 0350120170800089700  del 13/02/2017 B/Bollettazione;06-03-2017;879;0;393;1;Spese correnti;3;Acquisto di beni e servizi;2;Acquisto di servizi;5;Utenze e canoni;5;Acqua;06-03-2017;
476;1;0;"9,72";"9,72";ACQUE VERONESI SCARL; ;SALDO Fatt.n. 0350120170800091200  del 13/02/2017 B/Bollettazione;06-03-2017;879;0;393;1;Spese correnti;3;Acquisto di beni e servizi;2;Acquisto di servizi;5;Utenze e canoni;5;Acqua;06-03-2017;
477;1;0;"13,90";"13,90";ACQUE VERONESI SCARL; ;SALDO Fatt.n. 0350120170800092100  del 13/02/2017 B/Bollettazione;06-03-2017;879;0;393;1;Spese correnti;3;Acquisto di beni e servizi;2;Acquisto di servizi;5;Utenze e canoni;5;Acqua;06-03-2017;
478;1;0;"9,72";"9,72";ACQUE VERONESI SCARL; ;SALDO Fatt.n. 0350120170800092200  del 13/02/2017 B/Bollettazione;06-03-2017;879;0;393;1;Spese correnti;3;Acquisto di beni e servizi;2;Acquisto di servizi;5;Utenze e canoni;5;Acqua;06-03-2017;
479;1;0;"13,90";"13,90";ACQUE VERONESI SCARL; ;SALDO Fatt.n. 0350120170800092400  del 13/02/2017 B/Bollettazione;06-03-2017;879;0;393;1;Spese correnti;3;Acquisto di beni e servizi;2;Acquisto di servizi;5;Utenze e canoni;5;Acqua;06-03-2017;
480;1;0;"23,63";"23,63";ACQUE VERONESI SCARL; ;SALDO Fatt.n. 0350120170800092000  del 13/02/2017 B/Bollettazione;06-03-2017;879;0;393;1;Spese correnti;3;Acquisto di beni e servizi;2;Acquisto di servizi;5;Utenze e canoni;5;Acqua;06-03-2017;
481;1;0;"9,72";"9,72";ACQUE VERONESI SCARL; ;SALDO Fatt.n. 0350120170800092600  del 13/02/2017 B/Bollettazione;06-03-2017;879;0;393;1;Spese correnti;3;Acquisto di beni e servizi;2;Acquisto di servizi;5;Utenze e canoni;5;Acqua;06-03-2017;
482;1;0;"13,90";"13,90";ACQUE VERONESI SCARL; ;SALDO Fatt.n. 0350120170800093200  del 13/02/2017 B/Bollettazione;06-03-2017;879;0;393;1;Spese correnti;3;Acquisto di beni e servizi;2;Acquisto di servizi;5;Utenze e canoni;5;Acqua;06-03-2017;
483;1;0;"4,16";"4,16";ACQUE VERONESI SCARL; ;SALDO Fatt.n. 0350120170800092500  del 13/02/2017 B/Bollettazione;06-03-2017;879;0;393;1;Spese correnti;3;Acquisto di beni e servizi;2;Acquisto di servizi;5;Utenze e canoni;5;Acqua;06-03-2017;
484;1;0;"13,90";"13,90";ACQUE VERONESI SCARL; ;SALDO Fatt.n. 0350120170800092900  del 13/02/2017 B/Bollettazione;06-03-2017;879;0;393;1;Spese correnti;3;Acquisto di beni e servizi;2;Acquisto di servizi;5;Utenze e canoni;5;Acqua;06-03-2017;
485;1;0;"13,90";"13,90";ACQUE VERONESI SCARL; ;SALDO Fatt.n. 0350120170800092700  del 13/02/2017 B/Bollettazione;06-03-2017;879;0;393;1;Spese correnti;3;Acquisto di beni e servizi;2;Acquisto di servizi;5;Utenze e canoni;5;Acqua;06-03-2017;
486;1;0;"23,63";"23,63";ACQUE VERONESI SCARL; ;SALDO Fatt.n. 0350120170800092800  del 13/02/2017 B/Bollettazione;06-03-2017;879;0;393;1;Spese correnti;3;Acquisto di beni e servizi;2;Acquisto di servizi;5;Utenze e canoni;5;Acqua;06-03-2017;
487;1;0;"61,96";"61,96";ACQUE VERONESI SCARL; ;SALDO Fatt.n. 0350120170800152400  del 21/02/2017 B/Bollettazione;06-03-2017;879;0;393;1;Spese correnti;3;Acquisto di beni e servizi;2;Acquisto di servizi;5;Utenze e canoni;5;Acqua;06-03-2017;
488;1;0;"12,51";"12,51";ACQUE VERONESI SCARL; ;SALDO Fatt.n. 0350120170800151900  del 21/02/2017 B/Bollettazione;06-03-2017;879;0;393;1;Spese correnti;3;Acquisto di beni e servizi;2;Acquisto di servizi;5;Utenze e canoni;5;Acqua;06-03-2017;
489;1;0;"24,76";"24,76";ACQUE VERONESI SCARL; ;SALDO Fatt.n. 0350120170800152300  del 21/02/2017 B/Bollettazione;06-03-2017;879;0;393;1;Spese correnti;3;Acquisto di beni e servizi;2;Acquisto di servizi;5;Utenze e canoni;5;Acqua;06-03-2017;
490;1;0;"139,00";"139,00";ACQUE VERONESI SCARL; ;SALDO Fatt.n. 0350120170800089900  del 13/02/2017 B/Bollettazione;06-03-2017;879;0;393;1;Spese correnti;3;Acquisto di beni e servizi;2;Acquisto di servizi;5;Utenze e canoni;5;Acqua;06-03-2017;
491;1;0;"139,00";"139,00";ACQUE VERONESI SCARL; ;SALDO Fatt.n. 0350120170800090700  del 13/02/2017 B/Bollettazione;06-03-2017;879;0;393;1;Spese correnti;3;Acquisto di beni e servizi;2;Acquisto di servizi;5;Utenze e canoni;5;Acqua;06-03-2017;
492;1;0;"23,63";"23,63";ACQUE VERONESI SCARL; ;SALDO Fatt.n. 0350120170800087900  del 13/02/2017 B/Bollettazione;06-03-2017;879;0;393;1;Spese correnti;3;Acquisto di beni e servizi;2;Acquisto di servizi;5;Utenze e canoni;5;Acqua;06-03-2017;
493;1;0;"93,13";"93,13";ACQUE VERONESI SCARL; ;SALDO Fatt.n. 0350120170800087500  del 13/02/2017 B/Bollettazione;06-03-2017;879;0;393;1;Spese correnti;3;Acquisto di beni e servizi;2;Acquisto di servizi;5;Utenze e canoni;5;Acqua;06-03-2017;
494;1;0;"9,72";"9,72";ACQUE VERONESI SCARL; ;SALDO Fatt.n. 0350120170800091600  del 13/02/2017 B/Bollettazione;06-03-2017;879;0;393;1;Spese correnti;3;Acquisto di beni e servizi;2;Acquisto di servizi;5;Utenze e canoni;5;Acqua;06-03-2017;
495;1;0;"4,16";"4,16";ACQUE VERONESI SCARL; ;SALDO Fatt.n. 0350120170800091300  del 13/02/2017 B/Bollettazione;06-03-2017;879;0;393;1;Spese correnti;3;Acquisto di beni e servizi;2;Acquisto di servizi;5;Utenze e canoni;5;Acqua;06-03-2017;
496;1;0;"23,63";"23,63";ACQUE VERONESI SCARL; ;SALDO Fatt.n. 0350120170800090000  del 13/02/2017 B/Bollettazione;06-03-2017;879;0;393;1;Spese correnti;3;Acquisto di beni e servizi;2;Acquisto di servizi;5;Utenze e canoni;5;Acqua;06-03-2017;
497;1;0;"44,21";"44,21";ACQUE VERONESI SCARL; ;SALDO Fatt.n. 0350120170800091000  del 13/02/2017 B/Bollettazione;06-03-2017;879;0;393;1;Spese correnti;3;Acquisto di beni e servizi;2;Acquisto di servizi;5;Utenze e canoni;5;Acqua;06-03-2017;
498;1;0;"4.000,00";"4.000,00";SCUOLA MATERNA "MARIA IMMACOLATA" STRA'; ;"CONTRIBUTI STRAORDINARI ALLE SCUOLE DELL'INFANZIA DI CALDIERO, APPROVATI CON DELIBERA DI GIUNTA COMUNALE N.135/2016. PROVVEDIMENTI DI SPESA.";07-03-2017;1475;0;715;2;Spese in conto capitale;3;Contributi agli investimenti;4;Contributi agli investimenti a Istituzioni Sociali Private;1;Contributi agli investimenti a Istituzioni Sociali Private;1;Contributi agli investimenti a Istituzioni Sociali Private;07-03-2017;
499;1;0;"3.285,00";"3.285,00";ASSITECA SPA - FILIALE DI VERONA;Z381B42053;ASSICURAZIONI - POLIZZA RC PATRIMONIALE ACCESA CON LLOYD'S ASSICURAZIONI IN SCADENZA AL 30/09/16 - SALDO PREMIO PERIODO 15/03/2017 - 15/03/2018;07-03-2017;120;0;556;1;Spese correnti;10;Altre spese correnti;4;Premi di assicurazione;1;Premi di assicurazione contro i danni;999;Altri premi di assicurazione contro i danni;07-03-2017;
500;1;0;"414,67";"414,67";INGROS CARTA GIUSTACCHINI SPA;ZBC19DBBCE;SALDO Fatt.n. PAM/0000268  del 28/02/2017 fattura;13-03-2017;110;0;330;1;Spese correnti;3;Acquisto di beni e servizi;1;Acquisto di beni;2;Altri beni di consumo;1;"Carta, cancelleria e stampati";13-03-2017;
501;1;0;"2.000,00";"2.000,00";VALLISARI ADRIANA;Z4818FE28A;SALDO Fatt.n. FATTPA 5_17  del 27/02/2017 fattura;13-03-2017;147;0;214;1;Spese correnti;3;Acquisto di beni e servizi;2;Acquisto di servizi;2;"Organizzazione eventi, pubblicita` e servizi per trasferta";999;"Altre spese per relazioni pubbliche, convegni e mostre, pubblicita` n.a.c";13-03-2017;
502;1;0;"736,98";"736,98";TELEFONITALIA SNC - NON VALIDO;ZD51D64657;SALDO Fatt.n. 4/PA  del 28/02/2017 fattura;13-03-2017;113;1;113;1;Spese correnti;3;Acquisto di beni e servizi;2;Acquisto di servizi;9;Manutenzione ordinaria e riparazioni;4;Manutenzione ordinaria e riparazioni di impianti e macchinari;13-03-2017;
503;1;0;"0,03";"630,05";LEGGERE SRL;ZE818F6506;SALDO Fatt.n. 2153  del 23/02/2017 fattura;13-03-2017;681;0;271;1;Spese correnti;3;Acquisto di beni e servizi;1;Acquisto di beni;1;"Giornali, riviste e pubblicazioni";2;Pubblicazioni;13-03-2017;
503;2;0;"0,10";"630,05";LEGGERE SRL;ZE818F6506;SALDO Fatt.n. 2482  del 28/02/2017 fattura;13-03-2017;681;0;271;1;Spese correnti;3;Acquisto di beni e servizi;1;Acquisto di beni;1;"Giornali, riviste e pubblicazioni";2;Pubblicazioni;13-03-2017;
503;3;0;"46,51";"630,05";LEGGERE SRL;ZE818F6506;SALDO Fatt.n. 2151  del 23/02/2017 fattura;13-03-2017;681;0;271;1;Spese correnti;3;Acquisto di beni e servizi;1;Acquisto di beni;1;"Giornali, riviste e pubblicazioni";2;Pubblicazioni;13-03-2017;
503;4;0;"180,72";"630,05";LEGGERE SRL;ZE818F6506;ACCONTO Fatt.n. 2153  del 23/02/2017 fattura;13-03-2017;681;0;271;1;Spese correnti;3;Acquisto di beni e servizi;1;Acquisto di beni;1;"Giornali, riviste e pubblicazioni";2;Pubblicazioni;13-03-2017;
503;5;0;"402,69";"630,05";LEGGERE SRL;ZE818F6506;ACCONTO Fatt.n. 2482  del 28/02/2017 fattura;13-03-2017;681;0;271;1;Spese correnti;3;Acquisto di beni e servizi;1;Acquisto di beni;1;"Giornali, riviste e pubblicazioni";2;Pubblicazioni;13-03-2017;
504;1;0;"2.357,41";"2.357,41";CIDIELLE COOPERATIVA SOCIALE;Z4B1BACA8F;ACCONTO Fatt.n. 171/02  del 31/12/2016 FATTURA;13-03-2017;117;0;639;1;Spese correnti;3;Acquisto di beni e servizi;2;Acquisto di servizi;13;Servizi ausiliari per il funzionamento dell'ente;2;Servizi di pulizia e lavanderia;13-03-2017;
505;1;0;"0,14";"0,14";CIDIELLE COOPERATIVA SOCIALE;5307599141;SALDO Fatt.n. 171/02  del 31/12/2016 FATTURA;13-03-2017;117;0;191;1;Spese correnti;3;Acquisto di beni e servizi;2;Acquisto di servizi;13;Servizi ausiliari per il funzionamento dell'ente;2;Servizi di pulizia e lavanderia;13-03-2017;
506;1;0;"1.969,16";"1.969,16";SOCIETA' COOPERATIVA CULTURE;5539394489;SALDO Fatt.n. 220/FE  del 20/02/2017 FATTURA;13-03-2017;680;0;121;1;Spese correnti;3;Acquisto di beni e servizi;2;Acquisto di servizi;15;Contratti di servizio pubblico;999;Altre spese per contratti di servizio pubblico;13-03-2017;
507;1;0;"5.151,33";"5.151,33";MEDICI ING. MARIO;ZDA176DE40;"SALDO Fatt.n. FATTPA 1_17  del 16/02/2017 Lavori di rifacimento marciapiedi, sede stradale e rete pubblica illuminazione di via Monte Rocca. Incarico professionale con Determinazione Area Tecnica del Comune di Caldiero n. 102 del 2-12-2015";13-03-2017;1183;1;570;2;Spese in conto capitale;2;Investimenti fissi lordi e acquisto di terreni;1;Beni materiali;9;Beni immobili;12;Infrastrutture stradali;13-03-2017;
508;1;0;"1.545,40";"1.545,40";PAOLINI ARCH. LUCA;ZDA176DE40;SALDO Fatt.n. FATTPA 3_16  del 21/12/2016 Raggiungimento SAL2;13-03-2017;1183;1;570;2;Spese in conto capitale;2;Investimenti fissi lordi e acquisto di terreni;1;Beni materiali;9;Beni immobili;12;Infrastrutture stradali;13-03-2017;
509;1;0;"1.945,91";"1.945,91";COOPERATIVA SOCIALE VITA  ONLUS;Z661B48AD9;SALDO Fatt.n. 1/AP  del 31/01/2017 FATTURA VENDITA P.A .- Tipo A reg 3;15-03-2017;115;0;580;1;Spese correnti;3;Acquisto di beni e servizi;2;Acquisto di servizi;11;Prestazioni professionali e specialistiche;999;Altre prestazioni professionali e specialistiche n.a.c.;15-03-2017;
510;1;0;"1.761,13";"1.761,13";COOPERATIVA SOCIALE VITA  ONLUS;Z661B48AD9;ACCONTO Fatt.n. 3/AP  del 31/12/2016 FATTURA VENDITA P.A .- Tipo A reg 3;15-03-2017;115;0;580;1;Spese correnti;3;Acquisto di beni e servizi;2;Acquisto di servizi;11;Prestazioni professionali e specialistiche;999;Altre prestazioni professionali e specialistiche n.a.c.;15-03-2017;
511;1;0;"92,12";"92,12";COOPERATIVA SOCIALE VITA  ONLUS;Z661B48AD9;SALDO Fatt.n. 3/AP  del 31/12/2016 FATTURA VENDITA P.A .- Tipo A reg 3;15-03-2017;115;0;580;1;Spese correnti;3;Acquisto di beni e servizi;2;Acquisto di servizi;11;Prestazioni professionali e specialistiche;999;Altre prestazioni professionali e specialistiche n.a.c.;15-03-2017;
512;1;0;"770,00";"770,00";CENTRO TEATRALE CORNIANI;ZD81D30F8E;SALDO Fatt.n. 000001-2017-1  del 16/02/2017 FATTURA;15-03-2017;686;0;103;1;Spese correnti;3;Acquisto di beni e servizi;2;Acquisto di servizi;2;"Organizzazione eventi, pubblicita` e servizi per trasferta";5;Organizzazione e partecipazione a manifestazioni e convegni;15-03-2017;
513;1;0;"370,00";"370,00";PUBLIADIGE SRL;Z1B1D80F1C;SALDO Fatt.n. 8845  del 28/02/2017 FATTURA;15-03-2017;893;0;138;1;Spese correnti;3;Acquisto di beni e servizi;2;Acquisto di servizi;2;"Organizzazione eventi, pubblicita` e servizi per trasferta";5;Organizzazione e partecipazione a manifestazioni e convegni;15-03-2017;
514;1;0;"200,00";"200,00";ISTITUTO COMPRENSIVO CALDIERO "ANTONIO PISANO"; ;EROGAZIONE CONTRIBUTO ECONOMICO ALL'ISTITUTO COMPRENSIVO A.PISANO DI CALDIERO PER LA PREMIAZIONE DEL CONCORSO PRESEPI E PAESAGGI 2016.;15-03-2017;690;0;165;1;Spese correnti;4;Trasferimenti correnti;4;Trasferimenti correnti a Istituzioni Sociali Private;1;Trasferimenti correnti a Istituzioni Sociali Private;1;Trasferimenti correnti a Istituzioni Sociali Private;15-03-2017;
515;1;0;"500,00";"500,00";BANDA ALPINA CITTA' DI CALDIERO; ;"IMPEGNO CONTRIBUTO ECONOMICO ALL'ASSOC. BANDA ALPINA CITTA' DI CALDIERO, APPROVATO CON DELIBERA DI GIUNTA COMUNALE N.155/2016.";15-03-2017;690;0;748;1;Spese correnti;4;Trasferimenti correnti;4;Trasferimenti correnti a Istituzioni Sociali Private;1;Trasferimenti correnti a Istituzioni Sociali Private;1;Trasferimenti correnti a Istituzioni Sociali Private;15-03-2017;
516;1;0;"8.000,00";"8.000,00";FONDAZIONE DON GAETANO PROVOLI - SCUOLA PARITARIA PER L; ;"CONTRIBUTI STRAORDINARI ALLE SCUOLE DELL'INFANZIA DI CALDIERO, APPROVATI CON DELIBERA DI GIUNTA COMUNALE N.135/2016. PROVVEDIMENTI DI SPESA.";15-03-2017;1475;0;714;2;Spese in conto capitale;3;Contributi agli investimenti;4;Contributi agli investimenti a Istituzioni Sociali Private;1;Contributi agli investimenti a Istituzioni Sociali Private;1;Contributi agli investimenti a Istituzioni Sociali Private;15-03-2017;
517;1;0;"12,48";"12,48";RUFFO RICCARDO; ;ACCONTO Fatt.n. 000017-2016-PA  del 26/09/2016 FATTURA;20-03-2017;170;0;583;1;Spese correnti;3;Acquisto di beni e servizi;2;Acquisto di servizi;11;Prestazioni professionali e specialistiche;6;Patrocinio legale;20-03-2017;
518;1;0;"748,80";"748,80";RUFFO RICCARDO; ;SALDO Fatt.n. 000017-2016-PA  del 26/09/2016 FATTURA;20-03-2017;170;0;855;1;Spese correnti;3;Acquisto di beni e servizi;2;Acquisto di servizi;11;Prestazioni professionali e specialistiche;6;Patrocinio legale;20-03-2017;
519;1;0;"3.767,44";"3.767,44";GP GLOBAL POWER SPA;5952652BD1;SALDO Fatt.n. V6/10788  del 07/03/2017 FORNITURA GAS;20-03-2017;582;0;167;1;Spese correnti;3;Acquisto di beni e servizi;2;Acquisto di servizi;5;Utenze e canoni;6;Gas;20-03-2017;
520;1;0;"2.674,42";"2.674,42";GP GLOBAL POWER SPA;5952652BD1;SALDO Fatt.n. V6/10791  del 07/03/2017 FORNITURA GAS;20-03-2017;542;0;168;1;Spese correnti;3;Acquisto di beni e servizi;2;Acquisto di servizi;5;Utenze e canoni;6;Gas;20-03-2017;
521;1;0;"1.653,30";"1.653,30";GP GLOBAL POWER SPA;5952652BD1;SALDO Fatt.n. V6/10792  del 07/03/2017 FORNITURA GAS;20-03-2017;542;0;168;1;Spese correnti;3;Acquisto di beni e servizi;2;Acquisto di servizi;5;Utenze e canoni;6;Gas;20-03-2017;
522;1;0;"2.213,99";"2.213,99";GP GLOBAL POWER SPA;5952652BD1;SALDO Fatt.n. V6/10793  del 07/03/2017 FORNITURA GAS;20-03-2017;112;0;169;1;Spese correnti;3;Acquisto di beni e servizi;2;Acquisto di servizi;5;Utenze e canoni;6;Gas;20-03-2017;
523;1;0;"975,46";"975,46";GP GLOBAL POWER SPA;5952652BD1;SALDO Fatt.n. V6/10794  del 07/03/2017 FORNITURA GAS;20-03-2017;212;0;170;1;Spese correnti;3;Acquisto di beni e servizi;2;Acquisto di servizi;5;Utenze e canoni;6;Gas;20-03-2017;
524;1;0;"1.597,17";"1.597,17";GP GLOBAL POWER SPA;5952652BD1;SALDO Fatt.n. V6/10795  del 07/03/2017 FORNITURA GAS;20-03-2017;884;0;171;1;Spese correnti;3;Acquisto di beni e servizi;2;Acquisto di servizi;5;Utenze e canoni;6;Gas;20-03-2017;
525;1;0;"3.373,97";"3.373,97";GP GLOBAL POWER SPA;5952652BD1;SALDO Fatt.n. V6/10796  del 07/03/2017 FORNITURA GAS;20-03-2017;888;0;172;1;Spese correnti;3;Acquisto di beni e servizi;2;Acquisto di servizi;5;Utenze e canoni;6;Gas;20-03-2017;
526;1;0;"2,69";"2,69";GP GLOBAL POWER SPA;5952652BD1;SALDO Fatt.n. V6/10797  del 07/03/2017 FORNITURA GAS;20-03-2017;353;0;173;1;Spese correnti;3;Acquisto di beni e servizi;2;Acquisto di servizi;5;Utenze e canoni;6;Gas;20-03-2017;
527;1;0;"47,80";"47,80";GP GLOBAL POWER SPA;5952652BD1;SALDO Fatt.n. V6/10798  del 07/03/2017 FORNITURA GAS;20-03-2017;353;0;173;1;Spese correnti;3;Acquisto di beni e servizi;2;Acquisto di servizi;5;Utenze e canoni;6;Gas;20-03-2017;
528;1;0;"498,90";"498,90";GP GLOBAL POWER SPA;5952652BD1;SALDO Fatt.n. V6/10789  del 07/03/2017 FORNITURA GAS;20-03-2017;353;0;173;1;Spese correnti;3;Acquisto di beni e servizi;2;Acquisto di servizi;5;Utenze e canoni;6;Gas;20-03-2017;
529;1;0;"1.568,77";"1.568,77";GP GLOBAL POWER SPA;5952652BD1;SALDO Fatt.n. V6/10790  del 07/03/2017 FORNITURA GAS;20-03-2017;353;0;173;1;Spese correnti;3;Acquisto di beni e servizi;2;Acquisto di servizi;5;Utenze e canoni;6;Gas;20-03-2017;
530;1;0;"30,69";"30,69";TELECOM ITALIA; ;EROGATORE SERVIZI TELEFONICI-PAGAMENTO TELEFONO MANDATO 8002010000450765242414 NOME TELECOMITALIA SPA2F 5 (P.      27 -R.     377);20-03-2017;113;0;79;1;Spese correnti;3;Acquisto di beni e servizi;2;Acquisto di servizi;5;Utenze e canoni;1;Telefonia fissa;20-03-2017;
531;1;0;"58,00";"58,00";TELECOM ITALIA; ;EROGATORE SERVIZI TELEFONICI-PAGAMENTO TELEFONO MANDATO 8002010000450765002313 NOME TELECOMITALIA SPA2F 5 (P.      25 -R.     375);20-03-2017;113;0;80;1;Spese correnti;3;Acquisto di beni e servizi;2;Acquisto di servizi;5;Utenze e canoni;1;Telefonia fissa;20-03-2017;
532;1;0;"70,38";"70,38";TELECOM ITALIA; ;EROGATORE SERVIZI TELEFONICI-PAGAMENTO TELEFONO MANDATO 8002010000450615155519 NOME TELECOMITALIA SPA2F 5 (P.      23 -R.     373);20-03-2017;113;0;81;1;Spese correnti;3;Acquisto di beni e servizi;2;Acquisto di servizi;5;Utenze e canoni;1;Telefonia fissa;20-03-2017;
533;1;0;"116,63";"116,63";TELECOM ITALIA; ;EROGATORE SERVIZI TELEFONICI-PAGAMENTO TELEFONO MANDATO 8002010000450615014815 NOME TELECOMITALIA SPA2F 5 (P.      22 -R.     372);20-03-2017;113;0;82;1;Spese correnti;3;Acquisto di beni e servizi;2;Acquisto di servizi;5;Utenze e canoni;1;Telefonia fissa;20-03-2017;
534;1;0;"111,90";"111,90";TELECOM ITALIA; ;EROGATORE SERVIZI TELEFONICI-PAGAMENTO TELEFONO MANDATO 8002010000450615250211 NOME TELECOMITALIA SPA2F 5 (P.      24 -R.     374);20-03-2017;213;0;83;1;Spese correnti;3;Acquisto di beni e servizi;2;Acquisto di servizi;5;Utenze e canoni;1;Telefonia fissa;20-03-2017;
535;1;0;"55,83";"55,83";TELECOM ITALIA; ;EROGATORE SERVIZI TELEFONICI-PAGAMENTO TELEFONO MANDATO 8002010000450765278715 NOME TELECOMITALIA SPA2F 5 (P.      28 -R.     378);20-03-2017;543;0;84;1;Spese correnti;3;Acquisto di beni e servizi;2;Acquisto di servizi;5;Utenze e canoni;1;Telefonia fissa;20-03-2017;
536;1;0;"161,28";"161,28";TELECOM ITALIA; ;EROGATORE SERVIZI TELEFONICI-PAGAMENTO TELEFONO MANDATO 8002010000450765004814 NOME TELECOMITALIA SPA2F 5 (P.      26 -R.     376);20-03-2017;583;0;85;1;Spese correnti;3;Acquisto di beni e servizi;2;Acquisto di servizi;5;Utenze e canoni;1;Telefonia fissa;20-03-2017;
537;1;0;"6,75";"6,75";TELECOM ITALIA;Z8A08BEC62;SALDO Fatt.n. 8E01291498  del 06/12/2016 1BIM 2017;20-03-2017;113;0;79;1;Spese correnti;3;Acquisto di beni e servizi;2;Acquisto di servizi;5;Utenze e canoni;1;Telefonia fissa;20-03-2017;
538;1;0;"12,76";"12,76";TELECOM ITALIA;Z8A08BEC62;SALDO Fatt.n. 8E01289323  del 06/12/2016 1BIM 2017;20-03-2017;113;0;80;1;Spese correnti;3;Acquisto di beni e servizi;2;Acquisto di servizi;5;Utenze e canoni;1;Telefonia fissa;20-03-2017;
539;1;0;"15,48";"15,48";TELECOM ITALIA;Z8A08BEC62;SALDO Fatt.n. 8E01297245  del 06/12/2016 1BIM 2017;20-03-2017;113;0;81;1;Spese correnti;3;Acquisto di beni e servizi;2;Acquisto di servizi;5;Utenze e canoni;1;Telefonia fissa;20-03-2017;
540;1;0;"25,66";"25,66";TELECOM ITALIA;Z8A08BEC62;SALDO Fatt.n. 8E01296245  del 06/12/2016 1BIM 2017;20-03-2017;113;0;82;1;Spese correnti;3;Acquisto di beni e servizi;2;Acquisto di servizi;5;Utenze e canoni;1;Telefonia fissa;20-03-2017;
541;1;0;"24,62";"24,62";TELECOM ITALIA;Z8A08BEC62;SALDO Fatt.n. 8E01283668  del 06/12/2016 1BIM 2017;20-03-2017;213;0;83;1;Spese correnti;3;Acquisto di beni e servizi;2;Acquisto di servizi;5;Utenze e canoni;1;Telefonia fissa;20-03-2017;
542;1;0;"12,28";"12,28";TELECOM ITALIA;Z8A08BEC62;SALDO Fatt.n. 8E01291434  del 06/12/2016 1BIM 2017;20-03-2017;543;0;84;1;Spese correnti;3;Acquisto di beni e servizi;2;Acquisto di servizi;5;Utenze e canoni;1;Telefonia fissa;20-03-2017;
543;1;0;"35,48";"35,48";TELECOM ITALIA;Z8A08BEC62;SALDO Fatt.n. 8E01283899  del 06/12/2016 1BIM 2017;20-03-2017;583;0;85;1;Spese correnti;3;Acquisto di beni e servizi;2;Acquisto di servizi;5;Utenze e canoni;1;Telefonia fissa;20-03-2017;
544;1;0;"3.709,22";"3.709,22";AMMINISTRATORI COMUNALI; ;EROGAZIONE INDENNITA' DI CARICA MESE DI MARZO 2017;22-03-2017;10;0;8;1;Spese correnti;3;Acquisto di beni e servizi;2;Acquisto di servizi;1;Organi e incarichi istituzionali dell'amministrazione;1;Organi istituzionali dell'amministrazione - Indennità;22-03-2017;
580;1;0;"1.000,00";"1.000,00";COMMISSIONE CONCORSO PUBBLICO;ZB11833DE1;"CONCORSO PUBBLICO PER ESAMI PER LA COPERTURA DI N. 2 POSTI DI ISTRUTTORE AMMINISTRATIVO CAT. C, POSIZIONE ECONOMICA C1 A TEMPO INDETERMINATO E ORARIO PIENO, DI CUI UN POSTO RISERVATO AL PERSONALE INTERNO. NOMINA COMMISSIONE GIUDICATRICE";22-03-2017;100;0;4;1;Spese correnti;3;Acquisto di beni e servizi;2;Acquisto di servizi;11;Prestazioni professionali e specialistiche;999;Altre prestazioni professionali e specialistiche n.a.c.;22-03-2017;
625;1;0;"1.359,65";"1.359,65";GP GLOBAL POWER SPA; ;BENEFICIARI DIVERSI-PAGAMENTI DIVERSI COD DISP 7517031309HPNC NOME GLOBAL POWER SPA MANDATO (P.      30 -R.     400);28-03-2017;111;0;146;1;Spese correnti;3;Acquisto di beni e servizi;2;Acquisto di servizi;5;Utenze e canoni;4;Energia elettrica;28-03-2017;
626;1;0;"18,75";"18,75";ACQUE VERONESI SCARL; ;BENEFICIARI DIVERSI-PAGAMENTI DIVERSI COD DISP 751703160CGNFA NOME ACQUE VERONESI SCARL MANDAT (P.      33 -R.     407);28-03-2017;879;0;843;1;Spese correnti;3;Acquisto di beni e servizi;2;Acquisto di servizi;5;Utenze e canoni;5;Acqua;28-03-2017;
627;1;0;"347,29";"347,29";GP GLOBAL POWER SPA; ;ACCONTO Fatt.n. V0/26055  del 01/03/2017 Fattura Energia Elettrica;28-03-2017;960;0;147;1;Spese correnti;3;Acquisto di beni e servizi;2;Acquisto di servizi;5;Utenze e canoni;4;Energia elettrica;28-03-2017;
628;1;0;"299,12";"299,12";GP GLOBAL POWER SPA;622385037F;SALDO Fatt.n. V0/26056  del 01/03/2017 Fattura Energia Elettrica;28-03-2017;111;0;146;1;Spese correnti;3;Acquisto di beni e servizi;2;Acquisto di servizi;5;Utenze e canoni;4;Energia elettrica;28-03-2017;
629;1;0;"76,40";"76,40";GP GLOBAL POWER SPA;622385037F;SALDO Fatt.n. V0/26055  del 01/03/2017 Fattura Energia Elettrica;28-03-2017;960;0;147;1;Spese correnti;3;Acquisto di beni e servizi;2;Acquisto di servizi;5;Utenze e canoni;4;Energia elettrica;28-03-2017;
630;1;0;"1,88";"1,88";ACQUE VERONESI SCARL; ;SALDO Fatt.n. 0350120170800096500  del 13/02/2017 B/Bollettazione;28-03-2017;879;0;843;1;Spese correnti;3;Acquisto di beni e servizi;2;Acquisto di servizi;5;Utenze e canoni;5;Acqua;28-03-2017;
631;1;0;"180,00";"180,00";BISIN SILVIA;Z3B1D69087;SALDO Fatt.n. 2 PA  del 15/03/2017 FATTURA;29-03-2017;686;0;133;1;Spese correnti;3;Acquisto di beni e servizi;2;Acquisto di servizi;2;"Organizzazione eventi, pubblicita` e servizi per trasferta";5;Organizzazione e partecipazione a manifestazioni e convegni;29-03-2017;
632;1;0;"610,00";"610,00";LINEA BIO VERDE DI ZAVETTI SILVANO;Z6A1C6A59F;ACCONTO Fatt.n. 000001-2017-PA  del 03/03/2017 ORGANIZZAZIONE FESTA DEL CIOCCOLATO 17 E 18/12/2016;29-03-2017;686;0;706;1;Spese correnti;3;Acquisto di beni e servizi;2;Acquisto di servizi;2;"Organizzazione eventi, pubblicita` e servizi per trasferta";5;Organizzazione e partecipazione a manifestazioni e convegni;29-03-2017;
633;1;0;"1.220,00";"1.220,00";LINEA BIO VERDE DI ZAVETTI SILVANO;Z6A1C6A59F;SALDO Fatt.n. 000001-2017-PA  del 03/03/2017 ORGANIZZAZIONE FESTA DEL CIOCCOLATO 17 E 18/12/2016;29-03-2017;893;0;707;1;Spese correnti;3;Acquisto di beni e servizi;2;Acquisto di servizi;2;"Organizzazione eventi, pubblicita` e servizi per trasferta";5;Organizzazione e partecipazione a manifestazioni e convegni;29-03-2017;
635;1;0;"3.958,00";"3.958,00";ASSITECA SPA - FILIALE DI VERONA;ZC71DC0A18;ASSICURAZIONI - RINNOVO POLIZZE RC AUTO;29-03-2017;120;0;195;1;Spese correnti;10;Altre spese correnti;4;Premi di assicurazione;1;Premi di assicurazione contro i danni;3;Premi di assicurazione per responsabilità civile verso terzi;29-03-2017;
636;1;0;"48,00";"48,00";ASSITECA SPA - FILIALE DI VERONA;ZC71DC0A18;ASSICURAZIONI - RINNOVO  POLIZZA INFORTUNIO CONDUCENTE FIAT PUNTO.;29-03-2017;120;0;196;1;Spese correnti;10;Altre spese correnti;4;Premi di assicurazione;1;Premi di assicurazione contro i danni;999;Altri premi di assicurazione contro i danni;29-03-2017;
637;1;0;"1.125,87";"1.125,87";COMUNE DI SAN BONIFACIO; ;RIPARTIZIONE DEL CANONE DI LOCAZIONE 2016 DELL'IMMOBILE DI PROPRIETA' DEL COMUNE DI SAN BONIFACIO INUSO AL "CENTRO PER L'IMPIEGO DI SAN BONIFACIO";29-03-2017;1030;0;205;1;Spese correnti;3;Acquisto di beni e servizi;2;Acquisto di servizi;7;Utilizzo di beni di terzi;1;Locazione di beni immobili;29-03-2017;
638;1;0;"1.058,63";"1.058,63";UNICREDIT BANCA SPA - DIREZIONE COMMERCIALE TRIVENETO O; ;"STATUS AMMINISTRATORI LOCALI ARTT. 79 E 80 D.LGS. 18/08/2000 N.267 - RIMBORSO ONERI DIRETTI ED INDIRETTI SOSTENUTI DA PARTE DI AZIENDA PRIVATA A SEGUITO DI PERMESSI CONCESSI NEL TERZO TRIMESTRE 2016 AL PROPRIO PERSONALE DIPENDENTE, ELETTO NELLA GIUNT";29-03-2017;10;0;207;1;Spese correnti;3;Acquisto di beni e servizi;2;Acquisto di servizi;1;Organi e incarichi istituzionali dell'amministrazione;2;Organi istituzionali dell'amministrazione - Rimborsi;29-03-2017;
639;1;0;"148,67";"148,67";MINISTERO DELL'ECONOMIA E DELLE FINANZE; ;IVA A DEBITO MESE DI MARZO 2017;04-04-2017;1070;0;220;1;Spese correnti;10;Altre spese correnti;3;Versamenti IVA a debito;1;Versamenti IVA a debito per le gestioni commerciali;1;Versamenti IVA a debito per le gestioni commerciali;04-04-2017;
641;1;0;"1.969,16";"1.969,16";SOCIETA' COOPERATIVA CULTURE;5539394489;SALDO Fatt.n. 324/FE  del 17/03/2017 FATTURA;04-04-2017;680;0;121;1;Spese correnti;3;Acquisto di beni e servizi;2;Acquisto di servizi;15;Contratti di servizio pubblico;999;Altre spese per contratti di servizio pubblico;04-04-2017;
642;1;0;"419,77";"419,77";XEROX ITALIA RENTAL SERVICES;Z001D62A58;SALDO Fatt.n. 17006998  del 17/03/2017 FATTURA;04-04-2017;109;0;112;1;Spese correnti;3;Acquisto di beni e servizi;2;Acquisto di servizi;7;Utilizzo di beni di terzi;4;Noleggi di hardware;04-04-2017;
643;1;0;"253,03";"253,03";KYOCERA DOCUMENT SOLUTIONS ITALIA SPA;Z2A1D65314;SALDO Fatt.n. 1010410588  del 28/03/2017 FOTOCOPIATRICI 19  - Lotto 3:  multifunzione a colori formato A3/A4 da 35 pag/min - Durata del contratto 60 mesi - CIG: 0568590F4B  DETERMINA AREA AMMINISTRATIVA N.11 DEL 2016 IMPEGNO N.102/2016;04-04-2017;109;0;114;1;Spese correnti;3;Acquisto di beni e servizi;2;Acquisto di servizi;7;Utilizzo di beni di terzi;4;Noleggi di hardware;04-04-2017;
644;1;0;"7.197,22";"7.197,22";EURORISTORAZIONE SRL;Z891CD7954;SALDO Fatt.n. 17CPA00319  del 31/01/2017 FATTURA;04-04-2017;662;0;3;1;Spese correnti;3;Acquisto di beni e servizi;2;Acquisto di servizi;15;Contratti di servizio pubblico;6;Contratti di servizio per le mense scolastiche;04-04-2017;
645;1;0;"2,00";"180,00";TESTA ANDREA;Z001D69050;ACCONTO Fatt.n. 1/PA  del 13/03/2017 ESIBIZIONE MUSICALE DEL 22/02/2017 DETERMINAZIONE  N.21 DEL 16/02/2017;04-04-2017;686;0;132;1;Spese correnti;3;Acquisto di beni e servizi;2;Acquisto di servizi;2;"Organizzazione eventi, pubblicita` e servizi per trasferta";5;Organizzazione e partecipazione a manifestazioni e convegni;04-04-2017;
645;2;0;"178,00";"180,00";TESTA ANDREA;Z001D69050;SALDO Fatt.n. 1/PA  del 13/03/2017 ESIBIZIONE MUSICALE DEL 22/02/2017 DETERMINAZIONE  N.21 DEL 16/02/2017;04-04-2017;686;0;132;1;Spese correnti;3;Acquisto di beni e servizi;2;Acquisto di servizi;2;"Organizzazione eventi, pubblicita` e servizi per trasferta";5;Organizzazione e partecipazione a manifestazioni e convegni;04-04-2017;
646;1;0;"366,00";"366,00";COOPERATIVA DELTARTISTI SCARL;Z6F1C6CF2B;SALDO Fatt.n. 2017-E066P-0000001  del 31/01/2017 IMPEGNO DI SPESA N. 739/2016;04-04-2017;686;0;739;1;Spese correnti;3;Acquisto di beni e servizi;2;Acquisto di servizi;2;"Organizzazione eventi, pubblicita` e servizi per trasferta";5;Organizzazione e partecipazione a manifestazioni e convegni;04-04-2017;
647;1;0;"180,00";"180,00";PEGORARO GIORDANO; ;ATTIVITA' CULTURALI DURANTE LA SAGRA DI SAN MATTIA 2017. PROVVEDIMENTI.;04-04-2017;686;0;135;1;Spese correnti;3;Acquisto di beni e servizi;2;Acquisto di servizi;2;"Organizzazione eventi, pubblicita` e servizi per trasferta";5;Organizzazione e partecipazione a manifestazioni e convegni;04-04-2017;
648;1;0;"500,00";"500,00";CORO POLIFONICO; ;ATTIVITA' CULTURALI DURANTE LA SAGRA DI SAN MATTIA 2017. PROVVEDIMENTI.;04-04-2017;690;0;131;1;Spese correnti;4;Trasferimenti correnti;4;Trasferimenti correnti a Istituzioni Sociali Private;1;Trasferimenti correnti a Istituzioni Sociali Private;1;Trasferimenti correnti a Istituzioni Sociali Private;04-04-2017;
650;1;0;"2.672,89";"2.672,89";GP GLOBAL POWER SPA;5952652BD1;SALDO Fatt.n. V6/14368  del 29/03/2017 FORNITURA GAS;04-04-2017;582;0;208;1;Spese correnti;3;Acquisto di beni e servizi;2;Acquisto di servizi;5;Utenze e canoni;6;Gas;04-04-2017;
651;1;0;"2.038,85";"2.038,85";GP GLOBAL POWER SPA;5952652BD1;SALDO Fatt.n. V6/14367  del 29/03/2017 FORNITURA GAS;04-04-2017;542;0;209;1;Spese correnti;3;Acquisto di beni e servizi;2;Acquisto di servizi;5;Utenze e canoni;6;Gas;04-04-2017;
652;1;0;"1.037,12";"1.037,12";GP GLOBAL POWER SPA;5952652BD1;SALDO Fatt.n. V6/14364  del 29/03/2017 FORNITURA GAS;04-04-2017;542;0;209;1;Spese correnti;3;Acquisto di beni e servizi;2;Acquisto di servizi;5;Utenze e canoni;6;Gas;04-04-2017;
653;1;0;"1.364,38";"1.364,38";GP GLOBAL POWER SPA;5952652BD1;SALDO Fatt.n. V6/14365  del 29/03/2017 FORNITURA GAS;04-04-2017;112;0;210;1;Spese correnti;3;Acquisto di beni e servizi;2;Acquisto di servizi;5;Utenze e canoni;6;Gas;04-04-2017;
654;1;0;"650,84";"650,84";GP GLOBAL POWER SPA;5952652BD1;SALDO Fatt.n. V6/14366  del 29/03/2017 FORNITURA GAS;04-04-2017;212;0;211;1;Spese correnti;3;Acquisto di beni e servizi;2;Acquisto di servizi;5;Utenze e canoni;6;Gas;04-04-2017;
655;1;0;"1.441,44";"1.441,44";GP GLOBAL POWER SPA;5952652BD1;SALDO Fatt.n. V6/14362  del 29/03/2017 FORNITURA GAS;04-04-2017;884;0;212;1;Spese correnti;3;Acquisto di beni e servizi;2;Acquisto di servizi;5;Utenze e canoni;6;Gas;04-04-2017;
656;1;0;"2.346,27";"2.346,27";GP GLOBAL POWER SPA;5952652BD1;SALDO Fatt.n. V6/14363  del 29/03/2017 FORNITURA GAS;04-04-2017;888;0;213;1;Spese correnti;3;Acquisto di beni e servizi;2;Acquisto di servizi;5;Utenze e canoni;6;Gas;04-04-2017;
657;1;0;"2,46";"2,46";GP GLOBAL POWER SPA;5952652BD1;SALDO Fatt.n. V6/14361  del 29/03/2017 FORNITURA GAS;04-04-2017;353;0;214;1;Spese correnti;3;Acquisto di beni e servizi;2;Acquisto di servizi;5;Utenze e canoni;6;Gas;04-04-2017;
658;1;0;"70,87";"70,87";GP GLOBAL POWER SPA;5952652BD1;SALDO Fatt.n. V6/14360  del 29/03/2017 FORNITURA GAS;04-04-2017;353;0;214;1;Spese correnti;3;Acquisto di beni e servizi;2;Acquisto di servizi;5;Utenze e canoni;6;Gas;04-04-2017;
659;1;0;"484,67";"484,67";GP GLOBAL POWER SPA;5952652BD1;SALDO Fatt.n. V6/14369  del 29/03/2017 FORNITURA GAS;04-04-2017;353;0;214;1;Spese correnti;3;Acquisto di beni e servizi;2;Acquisto di servizi;5;Utenze e canoni;6;Gas;04-04-2017;
660;1;0;"1.228,89";"1.228,89";GP GLOBAL POWER SPA;5952652BD1;SALDO Fatt.n. V6/14370  del 29/03/2017 FORNITURA GAS;04-04-2017;353;0;214;1;Spese correnti;3;Acquisto di beni e servizi;2;Acquisto di servizi;5;Utenze e canoni;6;Gas;04-04-2017;
661;1;0;"28.049,73";"28.049,73";ATO VERONESE - CONSIGLIO DI BACINO VERONESE; ;MAGGIORAZIONE AATO ANNO 2007 - RIF. ACCERTAMENTO SU CAP. 112/E;05-04-2017;827;0;1043;1;Spese correnti;4;Trasferimenti correnti;1;Trasferimenti correnti a Amministrazioni Pubbliche;2;Trasferimenti correnti a Amministrazioni Locali;18;Trasferimenti correnti a Consorzi di enti locali;05-04-2017;
662;1;0;"28.049,73";"28.049,73";ATO VERONESE - CONSIGLIO DI BACINO VERONESE; ;QUOTA MAGGIORAZIONE CANONE DI FOGNATURA E DEPURAZIONE ANNO 2008;05-04-2017;827;0;1153;1;Spese correnti;4;Trasferimenti correnti;1;Trasferimenti correnti a Amministrazioni Pubbliche;2;Trasferimenti correnti a Amministrazioni Locali;18;Trasferimenti correnti a Consorzi di enti locali;05-04-2017;
663;1;0;"28.049,73";"28.049,73";ATO VERONESE - CONSIGLIO DI BACINO VERONESE; ;RIVERSAMENTO MAGGIORAZIONE AATO SU LISTA DI CARICO 2009;05-04-2017;827;0;1071;1;Spese correnti;4;Trasferimenti correnti;1;Trasferimenti correnti a Amministrazioni Pubbliche;2;Trasferimenti correnti a Amministrazioni Locali;18;Trasferimenti correnti a Consorzi di enti locali;05-04-2017;
664;1;0;"28.049,73";"28.049,73";ATO VERONESE - CONSIGLIO DI BACINO VERONESE; ;QUOTA MAGGIORAZIONE PIANI STRALCIO SU LISTE DI CARICO ANNO 2010;05-04-2017;827;0;1130;1;Spese correnti;4;Trasferimenti correnti;1;Trasferimenti correnti a Amministrazioni Pubbliche;2;Trasferimenti correnti a Amministrazioni Locali;18;Trasferimenti correnti a Consorzi di enti locali;05-04-2017;
665;1;0;"28.049,73";"28.049,73";ATO VERONESE - CONSIGLIO DI BACINO VERONESE; ;TRASFERIMENTI AATO MAGGIORAZIONE QUOTA FOGNATURA E DEPURAZIONE ANNO 2011;05-04-2017;827;0;1020;1;Spese correnti;4;Trasferimenti correnti;1;Trasferimenti correnti a Amministrazioni Pubbliche;2;Trasferimenti correnti a Amministrazioni Locali;18;Trasferimenti correnti a Consorzi di enti locali;05-04-2017;
666;1;0;"28.049,73";"28.049,73";ATO VERONESE - CONSIGLIO DI BACINO VERONESE; ;IMPEGNO  PROVVISORIO ENTRATE SERVIZIO IDRICO INTEGRATO - GIROCONTO MAGGIORAZIONI AATO;05-04-2017;827;0;1020;1;Spese correnti;4;Trasferimenti correnti;1;Trasferimenti correnti a Amministrazioni Pubbliche;2;Trasferimenti correnti a Amministrazioni Locali;18;Trasferimenti correnti a Consorzi di enti locali;05-04-2017;
667;1;0;"28.049,73";"28.049,73";ATO VERONESE - CONSIGLIO DI BACINO VERONESE; ;IMPEGNO PROVVISORIO ENTRATE SERVIZIO IDRICO INTEGRATO - GIROCONTO MAGGIORAZIONI AATO;05-04-2017;827;0;1027;1;Spese correnti;4;Trasferimenti correnti;1;Trasferimenti correnti a Amministrazioni Pubbliche;2;Trasferimenti correnti a Amministrazioni Locali;18;Trasferimenti correnti a Consorzi di enti locali;05-04-2017;
668;1;0;"1.000,00";"1.000,00";ASSITECA SPA - FILIALE DI VERONA;Z691DCAC07;ASSICURAZIONI - COPERTURA ASSICURATIVA A.R.D. AUTO RISCHI DIVERSI - AFFIDAMENTO ALLA COMPAGNIA NOBIS ASSICURAZIONI SPA - DETERMINAZIONI.;10-04-2017;120;0;231;1;Spese correnti;10;Altre spese correnti;4;Premi di assicurazione;1;Premi di assicurazione contro i danni;2;Premi di assicurazione su beni immobili;10-04-2017;
669;1;0;"3.100,00";"3.100,00";ASSITECA SPA - FILIALE DI VERONA;Z351DCABBD;"ASSICURAZIONI - POLIZZA PER LA TUTELA LEGALE SCADENTE AL 30/03/2017 - RINNOVO POLIZZA IN ESSERE CON LA COMPAGNIA DAS ASSICURAZIONI SPA, DI VERONA  - DETERMINAZIONI. CIG";10-04-2017;120;0;232;1;Spese correnti;10;Altre spese correnti;4;Premi di assicurazione;1;Premi di assicurazione contro i danni;999;Altri premi di assicurazione contro i danni;10-04-2017;
670;1;0;"2.500,00";"2.500,00";CONDOMINIO CASE POPOLARI; ;"CASE POPOLARI DI VIA DON MINZONI - LIQUIDAZIONE QUOTA A CARICO DELLA PROPRIETA' A SEGUITO DELL'APPROVAZIONE DEL BILANCIO PREVENTIVO 2017/18, DI CUI ALLA DELIBERA DI G.C. N. 36/2017.";10-04-2017;117;1;383;1;Spese correnti;3;Acquisto di beni e servizi;2;Acquisto di servizi;5;Utenze e canoni;7;Spese di condominio;10-04-2017;
671;1;0;"20.000,00";"20.000,00";ASD CALCIO CALDIERO TERME -  MATR. FIGC 8610; ;CONVENZIONE CON L'ASSOCIAZIONE CALCIO CALDIERO TERME PER LA CONCESSIONE DI CONTRIBUTI E PER LA GESTIONE E MANUTENZIONE DEGLI IMPIANTI SPORTIVI E SUOI ANNESSI DI VIA PONTEROTTO. ART.10 contributo ordinario per le attività di promozione dello sport. ER;10-04-2017;891;1;227;1;Spese correnti;4;Trasferimenti correnti;4;Trasferimenti correnti a Istituzioni Sociali Private;1;Trasferimenti correnti a Istituzioni Sociali Private;1;Trasferimenti correnti a Istituzioni Sociali Private;10-04-2017;
672;1;0;"18.750,00";"18.750,00";FONDAZIONE DON GAETANO PROVOLI - SCUOLA PARITARIA PER L; ;"CONVENZIONE PER SERVIZIO SCOLASTICO CON LE SCUOLE D'INFANZIA PARITARIE DI CALDIERO, ANNI 2016 2017 2018. PROVVEDIMENTI IN MERITO ALL'ART. 10,  CONTRIBUTI DEL COMUNE. IMPEGNO DI SPESA PER L'ANNO 2017 E LIQUIDAZIONE SOMME IN ACCONTO.";10-04-2017;480;0;228;1;Spese correnti;4;Trasferimenti correnti;4;Trasferimenti correnti a Istituzioni Sociali Private;1;Trasferimenti correnti a Istituzioni Sociali Private;1;Trasferimenti correnti a Istituzioni Sociali Private;10-04-2017;
673;1;0;"9.500,00";"9.500,00";SCUOLA MATERNA "MARIA IMMACOLATA" STRA'; ;"CONVENZIONE PER SERVIZIO SCOLASTICO CON LE SCUOLE D'INFANZIA PARITARIE DI CALDIERO, ANNI 2016 2017 2018. PROVVEDIMENTI IN MERITO ALL'ART. 10,  CONTRIBUTI DEL COMUNE. IMPEGNO DI SPESA PER L'ANNO 2017 E LIQUIDAZIONE SOMME IN ACCONTO.";10-04-2017;480;0;229;1;Spese correnti;4;Trasferimenti correnti;4;Trasferimenti correnti a Istituzioni Sociali Private;1;Trasferimenti correnti a Istituzioni Sociali Private;1;Trasferimenti correnti a Istituzioni Sociali Private;10-04-2017;
674;1;0;"10.500,00";"10.500,00";SCUOLA MATERNA MARIA BAMBINA; ;"CONVENZIONE PER SERVIZIO SCOLASTICO CON LE SCUOLE D'INFANZIA PARITARIE DI CALDIERO, ANNI 2016 2017 2018. PROVVEDIMENTI IN MERITO ALL'ART. 10,  CONTRIBUTI DEL COMUNE. IMPEGNO DI SPESA PER L'ANNO 2017 E LIQUIDAZIONE SOMME IN ACCONTO.";10-04-2017;480;0;230;1;Spese correnti;4;Trasferimenti correnti;4;Trasferimenti correnti a Istituzioni Sociali Private;1;Trasferimenti correnti a Istituzioni Sociali Private;1;Trasferimenti correnti a Istituzioni Sociali Private;10-04-2017;
675;1;0;"20.000,00";"20.000,00";SCUOLA MATERNA MARIA BAMBINA; ;"CONTRIBUTI STRAORDINARI ALLE SCUOLE DELL'INFANZIA DI CALDIERO, APPROVATI CON DELIBERA DI GIUNTA COMUNALE N.135/2016. PROVVEDIMENTI DI SPESA.";10-04-2017;1475;0;716;2;Spese in conto capitale;3;Contributi agli investimenti;4;Contributi agli investimenti a Istituzioni Sociali Private;1;Contributi agli investimenti a Istituzioni Sociali Private;1;Contributi agli investimenti a Istituzioni Sociali Private;10-04-2017;
676;1;0;"401,00";"401,00";PRO LOCO DI CALDIERO;ZD81D30F8E;"CULTURA. PROVVEDIMENTI DI SPESA PER L'INIZIATIVA CELEBRATIVA DEL GIORNO DELLA MEMORIA, 27/01/2017.";10-04-2017;690;0;104;1;Spese correnti;4;Trasferimenti correnti;4;Trasferimenti correnti a Istituzioni Sociali Private;1;Trasferimenti correnti a Istituzioni Sociali Private;1;Trasferimenti correnti a Istituzioni Sociali Private;10-04-2017;
677;1;0;"387,99";"387,99";TELECOM ITALIA;Z7215900F5;SALDO Fatt.n. 7X00640050  del 14/02/2017 2BIM 2017;10-04-2017;113;0;148;1;Spese correnti;3;Acquisto di beni e servizi;2;Acquisto di servizi;5;Utenze e canoni;2;Telefonia mobile;10-04-2017;
678;1;0;"439,20";"439,20";TIPOGRAFIA CENTRALE SAS;ZC21DD1B47;SALDO Fatt.n. FATTPA 8_17  del 20/03/2017 FATTURA;10-04-2017;686;0;199;1;Spese correnti;3;Acquisto di beni e servizi;2;Acquisto di servizi;2;"Organizzazione eventi, pubblicita` e servizi per trasferta";5;Organizzazione e partecipazione a manifestazioni e convegni;10-04-2017;
679;1;0;"148,78";"148,78";DAL DEGAN DAVIDE; ;SALDO Fatt.n. FATTPA 3_17  del 05/04/2017 GETTONI PRESENZA COMMISSIONE EDILIZIA 2016;10-04-2017;10;0;844;1;Spese correnti;3;Acquisto di beni e servizi;2;Acquisto di servizi;1;Organi e incarichi istituzionali dell'amministrazione;1;Organi istituzionali dell'amministrazione - Indennità;10-04-2017;
680;1;0;"167,87";"167,87";CISL VENETO SERVIZI SRL;Z5919DE1D5;SALDO Fatt.n. VRP/46  del 31/03/2017 TASI COMUNE DI CALDIERO COME DA DETERMINA AFFIDAMENTO;10-04-2017;383;0;282;1;Spese correnti;3;Acquisto di beni e servizi;2;Acquisto di servizi;99;Altri servizi;999;Altri servizi diversi n.a.c.;10-04-2017;
681;1;0;"-246,00";"246,00";SEPEL EDITRICE - LO STATO CIVILE ITALIANO;ZE31CFBC88;SALDO Fatt.n. 2/1089  del 30/03/2017 VENDITE ABB.RIV.;10-04-2017;150;0;68;1;Spese correnti;3;Acquisto di beni e servizi;2;Acquisto di servizi;5;Utenze e canoni;3;Accesso a banche dati e a pubblicazioni on line;10-04-2017;
681;2;0;"246,00";"246,00";SEPEL EDITRICE - LO STATO CIVILE ITALIANO;ZE31CFBC88;SALDO Fatt.n. 2/647  del 07/03/2017 VENDITE ABB.RIV.;10-04-2017;150;0;68;1;Spese correnti;3;Acquisto di beni e servizi;2;Acquisto di servizi;5;Utenze e canoni;3;Accesso a banche dati e a pubblicazioni on line;10-04-2017;
681;3;0;"246,00";"246,00";SEPEL EDITRICE - LO STATO CIVILE ITALIANO;ZE31CFBC88;SALDO Fatt.n. 2/1097  del 30/03/2017 VENDITE ABB.RIV.;10-04-2017;150;0;68;1;Spese correnti;3;Acquisto di beni e servizi;2;Acquisto di servizi;5;Utenze e canoni;3;Accesso a banche dati e a pubblicazioni on line;10-04-2017;
682;1;0;"362,52";"362,52";UNIONE DI COMUNI VERONA EST; ;AMMINISTRAZIONE - CORSO PREVENZIONE DELLA CORRUZIONE ORGANIZZATO DALL'UNIONE DEI COMUNI VERONA EST - RIMBORSO ALL'ENTE ORGANIZZATORE DELLA QUOTA A CARICO DEL COMUNE.;13-04-2017;115;0;233;1;Spese correnti;3;Acquisto di beni e servizi;2;Acquisto di servizi;11;Prestazioni professionali e specialistiche;999;Altre prestazioni professionali e specialistiche n.a.c.;13-04-2017;
683;1;0;"233,41";"233,41";AGENZIA DELLE ENTRATE - RISCOSSIONE; ;CODICE ENTE 08162 - RIMBORSO SPESE ART. 17 - ANNO 2016;13-04-2017;843;0;235;1;Spese correnti;3;Acquisto di beni e servizi;2;Acquisto di servizi;3;Aggi di riscossione;999;Altri aggi di riscossione n.a.c.;13-04-2017;
686;1;0;"30,00";"30,00";ANAC - AUTORITA' NAZIONALE ANTICORRUZIONE EX AVCP; ;CIG 53007599141 - SERVIZIO DI PULIZIA DELLA SEDE MUNICIPALE E DEGLI EDIFICI COMUNALI - AUTORIZZAZIONE A COTRATTARE ED APPROVAZIONE ATTI DI GARA;13-04-2017;117;0;598;1;Spese correnti;3;Acquisto di beni e servizi;2;Acquisto di servizi;13;Servizi ausiliari per il funzionamento dell'ente;2;Servizi di pulizia e lavanderia;13-04-2017;
687;1;0;"1.871,79";"1.871,79";COOPERATIVA SOCIALE VITA  ONLUS;Z661B48AD9;SALDO Fatt.n. 2/AP  del 28/02/2017 FATTURA VENDITA P.A .- Tipo A reg 3;13-04-2017;115;0;580;1;Spese correnti;3;Acquisto di beni e servizi;2;Acquisto di servizi;11;Prestazioni professionali e specialistiche;999;Altre prestazioni professionali e specialistiche n.a.c.;13-04-2017;
688;1;0;"275,72";"275,72";MYO SRL;Z9D1DB4E4A;SALDO Fatt.n. 2040/170007219  del 30/03/2017 FATTURA;13-04-2017;330;0;152;1;Spese correnti;3;Acquisto di beni e servizi;1;Acquisto di beni;2;Altri beni di consumo;1;"Carta, cancelleria e stampati";13-04-2017;
689;1;0;"190,32";"190,32";MYO SRL;Z9D1DB4E4A;SALDO Fatt.n. 2040/170007220  del 30/03/2017 FATTURA;13-04-2017;330;0;152;1;Spese correnti;3;Acquisto di beni e servizi;1;Acquisto di beni;2;Altri beni di consumo;1;"Carta, cancelleria e stampati";13-04-2017;
690;1;0;"0,04";"136,58";LEGGERE SRL;ZE818F6506;SALDO Fatt.n. 4877  del 31/03/2017 FATTURA;13-04-2017;681;0;271;1;Spese correnti;3;Acquisto di beni e servizi;1;Acquisto di beni;1;"Giornali, riviste e pubblicazioni";2;Pubblicazioni;13-04-2017;
690;2;0;"24,00";"136,58";LEGGERE SRL;ZE818F6506;SALDO Fatt.n. 4876  del 31/03/2017 FATTURA;13-04-2017;681;0;271;1;Spese correnti;3;Acquisto di beni e servizi;1;Acquisto di beni;1;"Giornali, riviste e pubblicazioni";2;Pubblicazioni;13-04-2017;
690;3;0;"112,54";"136,58";LEGGERE SRL;ZE818F6506;ACCONTO Fatt.n. 4877  del 31/03/2017 FATTURA;13-04-2017;681;0;271;1;Spese correnti;3;Acquisto di beni e servizi;1;Acquisto di beni;1;"Giornali, riviste e pubblicazioni";2;Pubblicazioni;13-04-2017;
692;1;0;"180,00";"180,00";IMPELLIZZERI EVA;Z881D690B1;SALDO Fatt.n. 1 PA  del 17/03/2017 FATTURA;13-04-2017;686;0;134;1;Spese correnti;3;Acquisto di beni e servizi;2;Acquisto di servizi;2;"Organizzazione eventi, pubblicita` e servizi per trasferta";5;Organizzazione e partecipazione a manifestazioni e convegni;13-04-2017;
693;1;0;"30.994,74";"30.994,74";CONSORZIO DI BACINO VERONA DUE DEL QUADRILATERO; ;SALDO Fatt.n. 000423/02  del 22/02/2017 fattura;14-04-2017;840;0;155;1;Spese correnti;3;Acquisto di beni e servizi;2;Acquisto di servizi;15;Contratti di servizio pubblico;4;Contratti di servizio per la raccolta rifiuti;14-04-2017;
694;1;0;"30.994,74";"30.994,74";CONSORZIO DI BACINO VERONA DUE DEL QUADRILATERO; ;SALDO Fatt.n. 000520/02  del 09/03/2017 FATTURA;14-04-2017;840;0;155;1;Spese correnti;3;Acquisto di beni e servizi;2;Acquisto di servizi;15;Contratti di servizio pubblico;4;Contratti di servizio per la raccolta rifiuti;14-04-2017;
695;1;0;"8.424,56";"8.424,56";CONSORZIO DI BACINO VERONA DUE DEL QUADRILATERO; ;SALDO Fatt.n. 000703/02  del 21/03/2017 FATTURA;14-04-2017;840;0;155;1;Spese correnti;3;Acquisto di beni e servizi;2;Acquisto di servizi;15;Contratti di servizio pubblico;4;Contratti di servizio per la raccolta rifiuti;14-04-2017;
696;1;0;"726,00";"726,00";CONSORZIO DI BACINO VERONA DUE DEL QUADRILATERO; ;SALDO Fatt.n. 000749/02  del 21/03/2017 FATTURA;14-04-2017;840;0;155;1;Spese correnti;3;Acquisto di beni e servizi;2;Acquisto di servizi;15;Contratti di servizio pubblico;4;Contratti di servizio per la raccolta rifiuti;14-04-2017;
697;1;0;"5.523,82";"5.523,82";CONSORZIO DI BACINO VERONA DUE DEL QUADRILATERO; ;SALDO Fatt.n. 000793/02  del 21/03/2017 FATTURA;14-04-2017;840;0;155;1;Spese correnti;3;Acquisto di beni e servizi;2;Acquisto di servizi;15;Contratti di servizio pubblico;4;Contratti di servizio per la raccolta rifiuti;14-04-2017;
698;1;0;"88,55";"88,55";CONSORZIO DI BACINO VERONA DUE DEL QUADRILATERO; ;SALDO Fatt.n. 000835/02  del 21/03/2017 FATTURA;14-04-2017;840;0;155;1;Spese correnti;3;Acquisto di beni e servizi;2;Acquisto di servizi;15;Contratti di servizio pubblico;4;Contratti di servizio per la raccolta rifiuti;14-04-2017;
699;1;0;"6.478,76";"6.478,76";CONSORZIO DI BACINO VERONA DUE DEL QUADRILATERO; ;SALDO Fatt.n. 000899/02  del 30/03/2017 FATTURA;14-04-2017;840;0;155;1;Spese correnti;3;Acquisto di beni e servizi;2;Acquisto di servizi;15;Contratti di servizio pubblico;4;Contratti di servizio per la raccolta rifiuti;14-04-2017;
700;1;0;"602,91";"602,91";CONSORZIO DI BACINO VERONA DUE DEL QUADRILATERO; ;SALDO Fatt.n. 000946/02  del 30/03/2017 FATTURA;14-04-2017;840;0;155;1;Spese correnti;3;Acquisto di beni e servizi;2;Acquisto di servizi;15;Contratti di servizio pubblico;4;Contratti di servizio per la raccolta rifiuti;14-04-2017;
701;1;0;"4.843,26";"4.843,26";CONSORZIO DI BACINO VERONA DUE DEL QUADRILATERO; ;SALDO Fatt.n. 000989/02  del 30/03/2017 FATURA;14-04-2017;840;0;155;1;Spese correnti;3;Acquisto di beni e servizi;2;Acquisto di servizi;15;Contratti di servizio pubblico;4;Contratti di servizio per la raccolta rifiuti;14-04-2017;
702;1;0;"174,66";"174,66";CONSORZIO DI BACINO VERONA DUE DEL QUADRILATERO; ;SALDO Fatt.n. 001032/02  del 30/03/2017 FATTURA;14-04-2017;840;0;155;1;Spese correnti;3;Acquisto di beni e servizi;2;Acquisto di servizi;15;Contratti di servizio pubblico;4;Contratti di servizio per la raccolta rifiuti;14-04-2017;
703;1;0;"241,46";"1.308,96";CONSORZIO DI BACINO VERONA DUE DEL QUADRILATERO;4923072787;SALDO Fatt.n. 000611/02  del 10/03/2017 FATTURA;14-04-2017;840;0;236;1;Spese correnti;3;Acquisto di beni e servizi;2;Acquisto di servizi;15;Contratti di servizio pubblico;4;Contratti di servizio per la raccolta rifiuti;14-04-2017;
703;2;0;"274,50";"1.308,96";CONSORZIO DI BACINO VERONA DUE DEL QUADRILATERO;4923072787;SALDO Fatt.n. 000602/02  del 10/03/2017 FATTURA;14-04-2017;840;0;236;1;Spese correnti;3;Acquisto di beni e servizi;2;Acquisto di servizi;15;Contratti di servizio pubblico;4;Contratti di servizio per la raccolta rifiuti;14-04-2017;
703;3;0;"793,00";"1.308,96";CONSORZIO DI BACINO VERONA DUE DEL QUADRILATERO;4923072787;SALDO Fatt.n. 000398/02  del 22/02/2017 fattura;14-04-2017;840;0;236;1;Spese correnti;3;Acquisto di beni e servizi;2;Acquisto di servizi;15;Contratti di servizio pubblico;4;Contratti di servizio per la raccolta rifiuti;14-04-2017;
704;1;0;"3.047,10";"3.047,10";CONSORZIO DI BACINO VERONA DUE DEL QUADRILATERO;4923072787;SALDO Fatt.n. 000397/02  del 22/02/2017 fattura;14-04-2017;840;0;136;1;Spese correnti;3;Acquisto di beni e servizi;2;Acquisto di servizi;15;Contratti di servizio pubblico;4;Contratti di servizio per la raccolta rifiuti;14-04-2017;
707;1;0;"1.180,96";"1.180,96";ZAMPINI CARLO - NON VALIDO;ZED184E6E8;SALDO Fatt.n. 8/PA  del 14/03/2017 DETERMINA N. 5 DEL 01.02.2016;14-04-2017;952;0;139;1;Spese correnti;3;Acquisto di beni e servizi;2;Acquisto di servizi;9;Manutenzione ordinaria e riparazioni;8;Manutenzione ordinaria e riparazioni di beni immobili;14-04-2017;
708;1;0;"1.136,94";"1.136,94";ZAMPINI CARLO - NON VALIDO;Z761C67BC1;SALDO Fatt.n. 11/PA  del 14/03/2017 DETERMINA N. 138 DEL 06.12.2016;14-04-2017;970;0;711;1;Spese correnti;3;Acquisto di beni e servizi;2;Acquisto di servizi;9;Manutenzione ordinaria e riparazioni;4;Manutenzione ordinaria e riparazioni di impianti e macchinari;14-04-2017;
709;1;0;"3.177,84";"3.177,84";ZAMPINI CARLO - NON VALIDO;ZA51CC1715;SALDO Fatt.n. 10/PA  del 14/03/2017 DETERMINA N. 154 DEL 29.12.2016;14-04-2017;1203;1;762;2;Spese in conto capitale;2;Investimenti fissi lordi e acquisto di terreni;1;Beni materiali;9;Beni immobili;12;Infrastrutture stradali;14-04-2017;
710;1;0;"702,72";"702,72";UNI SECUR S.R.L.;Z501B75881;SALDO Fatt.n. 3 B  del 27/02/2017 Ft. vendita split payment;14-04-2017;275;0;588;1;Spese correnti;3;Acquisto di beni e servizi;2;Acquisto di servizi;18;Servizi sanitari;1;Spese per accertamenti sanitari resi necessari dall'attività lavorativa;14-04-2017;
711;1;0;"183,00";"183,00";UNI SECUR S.R.L.;Z501B75881;ACCONTO Fatt.n. 2 B  del 27/02/2017 Ft. vendita split payment;14-04-2017;275;0;588;1;Spese correnti;3;Acquisto di beni e servizi;2;Acquisto di servizi;18;Servizi sanitari;1;Spese per accertamenti sanitari resi necessari dall'attività lavorativa;14-04-2017;
712;1;0;"183,00";"183,00";UNI SECUR S.R.L.;Z501B75881;SALDO Fatt.n. 2 B  del 27/02/2017 Ft. vendita split payment;14-04-2017;275;0;588;1;Spese correnti;3;Acquisto di beni e servizi;2;Acquisto di servizi;18;Servizi sanitari;1;Spese per accertamenti sanitari resi necessari dall'attività lavorativa;14-04-2017;
713;1;0;"85,40";"438,91";TEBALDI SRL;Z841233152;SALDO Fatt.n. 03PA  del 24/02/2017 SPOSTAMENTO AUTOVETTURA DM642MK;14-04-2017;840;0;623;1;Spese correnti;3;Acquisto di beni e servizi;2;Acquisto di servizi;15;Contratti di servizio pubblico;4;Contratti di servizio per la raccolta rifiuti;14-04-2017;
713;2;0;"353,51";"438,91";TEBALDI SRL;Z841233152;SALDO Fatt.n. 02PA  del 22/02/2017 TRAINO POSTEGGIO DEMOLIZIONE DG733BZ;14-04-2017;840;0;623;1;Spese correnti;3;Acquisto di beni e servizi;2;Acquisto di servizi;15;Contratti di servizio pubblico;4;Contratti di servizio per la raccolta rifiuti;14-04-2017;
714;1;0;"2.013,00";"2.013,00";SABAINI FRANCESCO SNC;ZD91B1A928;SALDO Fatt.n. 09  del 23/02/2017 Fattura P.A.;14-04-2017;352;0;527;1;Spese correnti;3;Acquisto di beni e servizi;2;Acquisto di servizi;9;Manutenzione ordinaria e riparazioni;8;Manutenzione ordinaria e riparazioni di beni immobili;14-04-2017;
715;1;0;"1.305,46";"1.305,46";COOPERATIVA SOCIALE VENETA ONLUS;Z1F1CDE21A;SALDO Fatt.n. 000043-2017-PA  del 28/02/2017 fattura;14-04-2017;782;0;766;1;Spese correnti;3;Acquisto di beni e servizi;2;Acquisto di servizi;9;Manutenzione ordinaria e riparazioni;8;Manutenzione ordinaria e riparazioni di beni immobili;14-04-2017;
716;1;0;"774,20";"774,20";FERRAMENTA BELLOMI DI FOLLETTO G. E L. SAS;Z8F1DC66DA;SALDO Fatt.n. 2/P  del 31/01/2017 FATTURA;14-04-2017;350;0;158;1;Spese correnti;3;Acquisto di beni e servizi;1;Acquisto di beni;2;Altri beni di consumo;999;Altri beni e materiali di consumo n.a.c.;14-04-2017;
717;1;0;"1.373,35";"1.373,35";MATTARANETTA SOCIETA' COOPERATIVA SOCIALE;Z3C1CA95E4;SALDO Fatt.n. 9/FE  del 31/03/2017 FATTURA IMMEDIATA;14-04-2017;840;0;746;1;Spese correnti;3;Acquisto di beni e servizi;2;Acquisto di servizi;15;Contratti di servizio pubblico;4;Contratti di servizio per la raccolta rifiuti;14-04-2017;
718;1;0;"3.134,86";"3.134,86";COOPERATIVA SOCIALE MONSCLEDA LAVORO SRL;ZF519B17F0;SALDO Fatt.n. 16/2017  del 28/02/2017 fattura;14-04-2017;352;0;263;1;Spese correnti;3;Acquisto di beni e servizi;2;Acquisto di servizi;9;Manutenzione ordinaria e riparazioni;8;Manutenzione ordinaria e riparazioni di beni immobili;14-04-2017;
719;1;0;"-0,02";"34,30";FERRAMENTA BELLOMI DI FOLLETTO G. E L. SAS;Z8F1DC66DA;SALDO Fatt.n. 5/P  del 28/02/2017 VENDITA;14-04-2017;350;0;158;1;Spese correnti;3;Acquisto di beni e servizi;1;Acquisto di beni;2;Altri beni di consumo;999;Altri beni e materiali di consumo n.a.c.;14-04-2017;
719;2;0;"34,32";"34,30";FERRAMENTA BELLOMI DI FOLLETTO G. E L. SAS;Z8F1DC66DA;SALDO Fatt.n. 5/P  del 28/02/2017 VENDITA;14-04-2017;350;0;158;1;Spese correnti;3;Acquisto di beni e servizi;1;Acquisto di beni;2;Altri beni di consumo;999;Altri beni e materiali di consumo n.a.c.;14-04-2017;
720;1;0;"4.123,60";"4.123,60";INTECH - INGEGNERI ASSOCIATI;Z591AD1F1E;SALDO Fatt.n. FATTPA 5_17  del 29/03/2017 FATTURA;14-04-2017;1180;0;447;2;Spese in conto capitale;2;Investimenti fissi lordi e acquisto di terreni;1;Beni materiali;9;Beni immobili;12;Infrastrutture stradali;14-04-2017;
721;1;0;"2.400,01";"2.400,01";COOPERATIVA SOCIALE GALILEO SCARL;Z451D39289;SALDO Fatt.n. 12/FE  del 30/03/2017 Fattura Elettronica;14-04-2017;356;0;166;1;Spese correnti;3;Acquisto di beni e servizi;2;Acquisto di servizi;19;Servizi informatici e di telecomunicazioni;4;Servizi di rete per trasmissione dati e VoIP e relativa manutenzione;14-04-2017;
722;1;0;"7.056,19";"17.069,17";GRUPPO DIMENSIONE COMUNITA';Z981CACE10;ACCONTO Fatt.n. 000064/PA  del 23/03/2017 FATTURA;14-04-2017;1190;2;755;2;Spese in conto capitale;2;Investimenti fissi lordi e acquisto di terreni;1;Beni materiali;3;Mobili e arredi;999;Mobili e arredi n.a.c.;14-04-2017;
722;2;0;"10.012,98";"17.069,17";GRUPPO DIMENSIONE COMUNITA';Z981CACE10;ACCONTO Fatt.n. 000064/PA  del 23/03/2017 FATTURA;14-04-2017;1190;2;755;2;Spese in conto capitale;2;Investimenti fissi lordi e acquisto di terreni;1;Beni materiali;3;Mobili e arredi;999;Mobili e arredi n.a.c.;14-04-2017;
723;1;0;"12.387,73";"12.387,73";GRUPPO DIMENSIONE COMUNITA';Z981CACE10;SALDO Fatt.n. 000064/PA  del 23/03/2017 FATTURA;14-04-2017;1190;1;754;2;Spese in conto capitale;2;Investimenti fissi lordi e acquisto di terreni;1;Beni materiali;3;Mobili e arredi;999;Mobili e arredi n.a.c.;14-04-2017;
724;1;0;"10.614,00";"10.614,00";CARPENTERIA METALLICA VALAN G. SNC;Z7E1780611;ACCONTO Fatt.n. 1/E  del 23/03/2017 FATTURA;14-04-2017;1350;0;596;2;Spese in conto capitale;2;Investimenti fissi lordi e acquisto di terreni;1;Beni materiali;9;Beni immobili;16;Impianti sportivi;14-04-2017;
725;1;0;"378,20";"378,20";CARPENTERIA METALLICA VALAN G. SNC;Z7E1780611;SALDO Fatt.n. 1/E  del 23/03/2017 FATTURA;14-04-2017;1173;0;671;2;Spese in conto capitale;2;Investimenti fissi lordi e acquisto di terreni;1;Beni materiali;9;Beni immobili;16;Impianti sportivi;14-04-2017;
726;1;0;"253,76";"253,76";INTECH - INGEGNERI ASSOCIATI;ZE41B1A92E;SALDO Fatt.n. FATTPA 4_17  del 29/03/2017 FATTURA;14-04-2017;270;0;528;1;Spese correnti;3;Acquisto di beni e servizi;2;Acquisto di servizi;11;Prestazioni professionali e specialistiche;999;Altre prestazioni professionali e specialistiche n.a.c.;14-04-2017;
727;1;0;"3.172,00";"3.172,00";TOVO COSTANZO - ARCH.; ;SALDO Fatt.n. FATTPA 4_17  del 15/03/2017 FATTURA;14-04-2017;270;0;2;1;Spese correnti;3;Acquisto di beni e servizi;2;Acquisto di servizi;11;Prestazioni professionali e specialistiche;999;Altre prestazioni professionali e specialistiche n.a.c.;14-04-2017;
728;1;0;"3.172,00";"3.172,00";STUDIO ALBERTI UBINI CASTAGNETTI; ;SALDO Fatt.n. 2E  del 15/03/2017 FATTURA;14-04-2017;270;0;2;1;Spese correnti;3;Acquisto di beni e servizi;2;Acquisto di servizi;11;Prestazioni professionali e specialistiche;999;Altre prestazioni professionali e specialistiche n.a.c.;14-04-2017;
729;1;0;"3.172,00";"3.172,00";MAGGIORA MARIA GABRIELLA; ;"SALDO Fatt.n. 07/2017  del 16/03/2017 Rif.: comune di Caldiero. Commissione valutazione proposte finanza di progetto - Terme di Giunone (impegno di spesa n. 2-2017, responsabile del procedimento arch. Alessio Pasetto)";14-04-2017;270;0;2;1;Spese correnti;3;Acquisto di beni e servizi;2;Acquisto di servizi;11;Prestazioni professionali e specialistiche;999;Altre prestazioni professionali e specialistiche n.a.c.;14-04-2017;
730;1;0;"24.778,17";"24.778,17";SARBA SPA;Z9E1CAC1F4;ACCONTO Fatt.n. 40/PF  del 15/03/2017 FATTURA;14-04-2017;1190;3;753;2;Spese in conto capitale;2;Investimenti fissi lordi e acquisto di terreni;1;Beni materiali;3;Mobili e arredi;999;Mobili e arredi n.a.c.;14-04-2017;
731;1;0;"9.930,83";"9.930,83";SARBA SPA;Z9E1CAC1F4;SALDO Fatt.n. 40/PF  del 15/03/2017 FATTURA;14-04-2017;1190;2;752;2;Spese in conto capitale;2;Investimenti fissi lordi e acquisto di terreni;1;Beni materiali;3;Mobili e arredi;999;Mobili e arredi n.a.c.;14-04-2017;
732;1;0;"4.000,00";"4.000,00";LINEA GOBBATO SNC DI GOBBATO IVONE & C;Z201C2D3C2;ACCONTO Fatt.n. 00010  del 08/03/2017 VENDITA;14-04-2017;1199;0;708;2;Spese in conto capitale;2;Investimenti fissi lordi e acquisto di terreni;1;Beni materiali;3;Mobili e arredi;999;Mobili e arredi n.a.c.;14-04-2017;
733;1;0;"5.979,60";"5.979,60";LINEA GOBBATO SNC DI GOBBATO IVONE & C;Z201C2D3C2;SALDO Fatt.n. 00010  del 08/03/2017 VENDITA;14-04-2017;1201;0;709;2;Spese in conto capitale;2;Investimenti fissi lordi e acquisto di terreni;1;Beni materiali;3;Mobili e arredi;999;Mobili e arredi n.a.c.;14-04-2017;
734;1;0;"129,17";"129,17";LA RONDA - SERVIZI DI VIGILANZA;ZE618FE5E8;SALDO Fatt.n. 0002824  del 28/02/2017 FATTURA;14-04-2017;357;0;171;1;Spese correnti;3;Acquisto di beni e servizi;2;Acquisto di servizi;13;Servizi ausiliari per il funzionamento dell'ente;1;"Servizi di sorveglianza, custodia e accoglienza";14-04-2017;
735;1;0;"587,43";"587,43";MORANDO FRANCESCO;Z251BDC006;SALDO Fatt.n. 07/PA - 2017  del 01/03/2017 Servizio sgomberaneve e spargi sale stagione invernale 2016 - 2017 13/01/17.;14-04-2017;952;0;649;1;Spese correnti;3;Acquisto di beni e servizi;2;Acquisto di servizi;9;Manutenzione ordinaria e riparazioni;8;Manutenzione ordinaria e riparazioni di beni immobili;14-04-2017;
736;1;0;"1.345,85";"1.345,85";MATTARANETTA SOCIETA' COOPERATIVA SOCIALE;Z3C1CA95E4;SALDO Fatt.n. 4/FE  del 28/02/2017 FATTURA IMMEDIATA;14-04-2017;840;0;746;1;Spese correnti;3;Acquisto di beni e servizi;2;Acquisto di servizi;15;Contratti di servizio pubblico;4;Contratti di servizio per la raccolta rifiuti;14-04-2017;
737;1;0;"549,00";"549,00";PIZZEGHELLA E STEVAN SRL STEVAN;Z471CA8F0D;SALDO Fatt.n. 42  del 28/02/2017 FATTURA;14-04-2017;352;0;782;1;Spese correnti;3;Acquisto di beni e servizi;2;Acquisto di servizi;9;Manutenzione ordinaria e riparazioni;8;Manutenzione ordinaria e riparazioni di beni immobili;14-04-2017;
738;1;0;"113,11";"113,11";EDILTOSI S.R.L.;ZC71D737AF;SALDO Fatt.n. 000936  del 28/02/2017 FATTURA;14-04-2017;350;0;116;1;Spese correnti;3;Acquisto di beni e servizi;1;Acquisto di beni;2;Altri beni di consumo;999;Altri beni e materiali di consumo n.a.c.;14-04-2017;
739;1;0;"55,00";"470,53";KUWAIT PETROLEUM ITALIA SPA;ZA91845EEC;ACCONTO Fatt.n. PJ00069513  del 28/02/2017 fattura;14-04-2017;290;0;86;1;Spese correnti;3;Acquisto di beni e servizi;1;Acquisto di beni;2;Altri beni di consumo;2;"Carburanti, combustibili e lubrificanti";14-04-2017;
739;2;0;"415,53";"470,53";KUWAIT PETROLEUM ITALIA SPA;ZA91845EEC;SALDO Fatt.n. PJ00069513  del 28/02/2017 fattura;14-04-2017;290;0;86;1;Spese correnti;3;Acquisto di beni e servizi;1;Acquisto di beni;2;Altri beni di consumo;2;"Carburanti, combustibili e lubrificanti";14-04-2017;
740;1;0;"2.252,00";"2.252,00";CEV - CONSORZIO ENERGIA VENETO; ;SOGGETTI DIVERSI-PAGAMENTO ADUE COD DISP 751703310M2EQ2 NOME CEV MANDATO 159G64C7799 PFM (P.      35 -R.     463);18-04-2017;960;0;247;1;Spese correnti;3;Acquisto di beni e servizi;2;Acquisto di servizi;5;Utenze e canoni;4;Energia elettrica;18-04-2017;
741;1;0;"1.036,27";"1.036,27";ABACO SPA;6519265BA8;SALDO Fatt.n. 2017120000189  del 06/03/2017 FATTURA;18-04-2017;382;0;157;1;Spese correnti;3;Acquisto di beni e servizi;2;Acquisto di servizi;3;Aggi di riscossione;999;Altri aggi di riscossione n.a.c.;18-04-2017;
743;1;0;"103,44";"103,44";ABACO SPA;6519265BA8;ACCONTO Fatt.n. 2017120000200  del 06/03/2017 FATTURA;18-04-2017;382;0;157;1;Spese correnti;3;Acquisto di beni e servizi;2;Acquisto di servizi;3;Aggi di riscossione;999;Altri aggi di riscossione n.a.c.;18-04-2017;
744;1;0;"276,22";"276,22";ABACO SPA;6519265BA8;SALDO Fatt.n. 2017120000200  del 06/03/2017 FATTURA;18-04-2017;382;0;157;1;Spese correnti;3;Acquisto di beni e servizi;2;Acquisto di servizi;3;Aggi di riscossione;999;Altri aggi di riscossione n.a.c.;18-04-2017;
745;1;0;"939,46";"939,46";ABACO SPA;6519265BA8;SALDO Fatt.n. 2017120000422  del 06/04/2017 FATTURA;18-04-2017;382;0;249;1;Spese correnti;3;Acquisto di beni e servizi;2;Acquisto di servizi;3;Aggi di riscossione;999;Altri aggi di riscossione n.a.c.;18-04-2017;
747;1;0;"243,02";"243,02";ABACO SPA; ;SALDO Fatt.n. 2017120000361  del 05/04/2017 FATTURA;18-04-2017;382;0;249;1;Spese correnti;3;Acquisto di beni e servizi;2;Acquisto di servizi;3;Aggi di riscossione;999;Altri aggi di riscossione n.a.c.;18-04-2017;
748;1;0;"173,36";"173,36";ALBERTI & FASOLI; ;ACCONTO Fatt.n. 1/E  del 30/03/2017;19-04-2017;10;0;672;1;Spese correnti;3;Acquisto di beni e servizi;2;Acquisto di servizi;1;Organi e incarichi istituzionali dell'amministrazione;1;Organi istituzionali dell'amministrazione - Indennità;19-04-2017;
749;1;0;"151,70";"151,70";ALBERTI & FASOLI; ;ACCONTO Fatt.n. 1/E  del 30/03/2017;19-04-2017;10;0;733;1;Spese correnti;3;Acquisto di beni e servizi;2;Acquisto di servizi;1;Organi e incarichi istituzionali dell'amministrazione;1;Organi istituzionali dell'amministrazione - Indennità;19-04-2017;
750;1;0;"151,70";"151,70";ALBERTI & FASOLI; ;SALDO Fatt.n. 1/E  del 30/03/2017;19-04-2017;10;0;844;1;Spese correnti;3;Acquisto di beni e servizi;2;Acquisto di servizi;1;Organi e incarichi istituzionali dell'amministrazione;1;Organi istituzionali dell'amministrazione - Indennità;19-04-2017;
751;1;0;"450,00";"450,00";PARROCCHIA S.PIETRO APOSTOLO (CALDIERO); ;CULTURA. ATTIVITA' CULTURALI APPROVATE CON DELIBERA DI GIUNTA N.14/2017. PROVVEDIMENTI DI SPESA.;19-04-2017;690;0;198;1;Spese correnti;4;Trasferimenti correnti;4;Trasferimenti correnti a Istituzioni Sociali Private;1;Trasferimenti correnti a Istituzioni Sociali Private;1;Trasferimenti correnti a Istituzioni Sociali Private;19-04-2017;
752;1;0;"11.552,06";"11.552,06";ARREDOLUCE SRL;Z9E1CC0E55;SALDO Fatt.n. 17-00003PA  del 28/02/2017 FATTURA;19-04-2017;1173;1;761;2;Spese in conto capitale;2;Investimenti fissi lordi e acquisto di terreni;1;Beni materiali;9;Beni immobili;16;Impianti sportivi;19-04-2017;
753;1;0;"-8.032,25";"8.032,25";ZANGRANDI ASSOCIATI;Z62164F0B0;SALDO Fatt.n. 1-2017-PA N.C.  del 02/03/2017 LAVORI DI RIQUALIFICAZIONE DI PIAZZA MARCOLONGO DI CALDIERO SALDO COME DA DETERMINA AREA TECNICA N 124 DEL 10.11.2016 CUP G14E15002230004 CIG 648657204D;19-04-2017;1181;0;467;2;Spese in conto capitale;2;Investimenti fissi lordi e acquisto di terreni;1;Beni materiali;9;Beni immobili;12;Infrastrutture stradali;19-04-2017;
753;2;0;"8.032,25";"8.032,25";ZANGRANDI ASSOCIATI;Z62164F0B0;ACCONTO Fatt.n. 1-2017-PA  del 02/03/2017 LAVORI DI RIQUALIFICAZIONE DI PIAZZA MARCOLONGO DI CALDIERO SALDO COME DA DETERMINA AREA TECNICA N 124 DEL 10.11.2016 CUP G14E15002230004 CIG 648657204D;19-04-2017;1181;0;467;2;Spese in conto capitale;2;Investimenti fissi lordi e acquisto di terreni;1;Beni materiali;9;Beni immobili;12;Infrastrutture stradali;19-04-2017;
753;3;0;"8.032,25";"8.032,25";ZANGRANDI ASSOCIATI;Z62164F0B0;ACCONTO Fatt.n. 2-2017-PA  del 03/03/2017 LAVORI DI RIQUALIFICAZIONE DI PIAZZA MARCOLONGO DI CALDIERO SALDO COME DA DETERMINA AREA TECNICA N 124 DEL 10.11.2016 CUP G14E15002230004 CIG Z62164F0B0;19-04-2017;1181;0;467;2;Spese in conto capitale;2;Investimenti fissi lordi e acquisto di terreni;1;Beni materiali;9;Beni immobili;12;Infrastrutture stradali;19-04-2017;
754;1;0;"-92,13";"92,13";ZANGRANDI ASSOCIATI;Z62164F0B0;SALDO Fatt.n. 1-2017-PA N.C.  del 02/03/2017 LAVORI DI RIQUALIFICAZIONE DI PIAZZA MARCOLONGO DI CALDIERO SALDO COME DA DETERMINA AREA TECNICA N 124 DEL 10.11.2016 CUP G14E15002230004 CIG 648657204D;19-04-2017;1181;0;552;2;Spese in conto capitale;2;Investimenti fissi lordi e acquisto di terreni;1;Beni materiali;9;Beni immobili;12;Infrastrutture stradali;19-04-2017;
754;2;0;"92,13";"92,13";ZANGRANDI ASSOCIATI;Z62164F0B0;SALDO Fatt.n. 1-2017-PA  del 02/03/2017 LAVORI DI RIQUALIFICAZIONE DI PIAZZA MARCOLONGO DI CALDIERO SALDO COME DA DETERMINA AREA TECNICA N 124 DEL 10.11.2016 CUP G14E15002230004 CIG 648657204D;19-04-2017;1181;0;552;2;Spese in conto capitale;2;Investimenti fissi lordi e acquisto di terreni;1;Beni materiali;9;Beni immobili;12;Infrastrutture stradali;19-04-2017;
754;3;0;"92,13";"92,13";ZANGRANDI ASSOCIATI;Z62164F0B0;SALDO Fatt.n. 2-2017-PA  del 03/03/2017 LAVORI DI RIQUALIFICAZIONE DI PIAZZA MARCOLONGO DI CALDIERO SALDO COME DA DETERMINA AREA TECNICA N 124 DEL 10.11.2016 CUP G14E15002230004 CIG Z62164F0B0;19-04-2017;1181;0;552;2;Spese in conto capitale;2;Investimenti fissi lordi e acquisto di terreni;1;Beni materiali;9;Beni immobili;12;Infrastrutture stradali;19-04-2017;
755;1;0;"22.911,39";"22.911,39";SOTERO F.LLI SRL;6621181369;COD. IDENTIFICATIVO FASCICOLO 122/2017/64697 - PROCEDURA ESECUTIVA 12220173220000015000 - DEBITORE ESECUTATO FRATELLI SOTERO SRL - SALDO Fatt.n. 00002/PA  del 09/03/2017 FATTURA;19-04-2017;1181;0;552;2;Spese in conto capitale;2;Investimenti fissi lordi e acquisto di terreni;1;Beni materiali;9;Beni immobili;12;Infrastrutture stradali;19-04-2017;
756;1;0;"157,61";"157,61";SERVIZIO ELETTRICO NAZIONALE  - Servizio Maggior Tutela;Z141E3AEE8;SALDO Fatt.n. 230603802052834  del 10/03/2017 fattura;19-04-2017;951;0;243;1;Spese correnti;3;Acquisto di beni e servizi;2;Acquisto di servizi;5;Utenze e canoni;4;Energia elettrica;19-04-2017;
757;1;0;"310,53";"310,53";SERVIZIO ELETTRICO NAZIONALE  - Servizio Maggior Tutela;Z141E3AEE8;SALDO Fatt.n. 230604105070044  del 10/03/2017 fattura;19-04-2017;211;0;244;1;Spese correnti;3;Acquisto di beni e servizi;2;Acquisto di servizi;5;Utenze e canoni;4;Energia elettrica;19-04-2017;
758;1;0;"635,52";"635,52";SERVIZIO ELETTRICO NAZIONALE  - Servizio Maggior Tutela;Z141E3AEE8;SALDO Fatt.n. 230601205018236  del 10/03/2017 fattura;19-04-2017;581;0;242;1;Spese correnti;3;Acquisto di beni e servizi;2;Acquisto di servizi;5;Utenze e canoni;4;Energia elettrica;19-04-2017;
759;1;0;"935,37";"935,37";SERVIZIO ELETTRICO NAZIONALE  - Servizio Maggior Tutela;Z141E3AEE8;SALDO Fatt.n. 230600305006136  del 10/03/2017 fattura;19-04-2017;541;0;241;1;Spese correnti;3;Acquisto di beni e servizi;2;Acquisto di servizi;5;Utenze e canoni;4;Energia elettrica;19-04-2017;
760;1;0;"1.115,41";"1.115,41";SERVIZIO ELETTRICO NAZIONALE  - Servizio Maggior Tutela;Z141E3AEE8;SALDO Fatt.n. 230600103031034  del 10/03/2017 fattura;19-04-2017;885;0;240;1;Spese correnti;3;Acquisto di beni e servizi;2;Acquisto di servizi;5;Utenze e canoni;4;Energia elettrica;19-04-2017;
761;1;0;"440,53";"440,53";SERVIZIO ELETTRICO NAZIONALE  - Servizio Maggior Tutela;ZC41E38DF2;SALDO Fatt.n. 230600103002546  del 10/03/2017 fattura;19-04-2017;960;0;239;1;Spese correnti;3;Acquisto di beni e servizi;2;Acquisto di servizi;5;Utenze e canoni;4;Energia elettrica;19-04-2017;
762;1;0;"1.045,78";"1.045,78";SERVIZIO ELETTRICO NAZIONALE  - Servizio Maggior Tutela;ZC41E38DF2;SALDO Fatt.n. 230601735002054  del 10/03/2017 fattura;19-04-2017;960;0;239;1;Spese correnti;3;Acquisto di beni e servizi;2;Acquisto di servizi;5;Utenze e canoni;4;Energia elettrica;19-04-2017;
763;1;0;"13,82";"13,82";SERVIZIO ELETTRICO NAZIONALE  - Servizio Maggior Tutela;ZC41E38DF2;SALDO Fatt.n. 230621205011024  del 10/03/2017 fattura;19-04-2017;960;0;239;1;Spese correnti;3;Acquisto di beni e servizi;2;Acquisto di servizi;5;Utenze e canoni;4;Energia elettrica;19-04-2017;
764;1;0;"-93,76";"979,27";SERVIZIO ELETTRICO NAZIONALE  - Servizio Maggior Tutela;ZC41E38DF2;SALDO Fatt.n. 230622405011024  del 10/03/2017 fattura;19-04-2017;960;0;239;1;Spese correnti;3;Acquisto di beni e servizi;2;Acquisto di servizi;5;Utenze e canoni;4;Energia elettrica;19-04-2017;
764;2;0;"1.073,03";"979,27";SERVIZIO ELETTRICO NAZIONALE  - Servizio Maggior Tutela;ZC41E38DF2;SALDO Fatt.n. 230601215001044  del 10/03/2017 fattura;19-04-2017;960;0;239;1;Spese correnti;3;Acquisto di beni e servizi;2;Acquisto di servizi;5;Utenze e canoni;4;Energia elettrica;19-04-2017;
765;1;0;"249,01";"249,01";SERVIZIO ELETTRICO NAZIONALE  - Servizio Maggior Tutela;ZC41E38DF2;SALDO Fatt.n. 230622535001044  del 10/03/2017 fattura;19-04-2017;960;0;239;1;Spese correnti;3;Acquisto di beni e servizi;2;Acquisto di servizi;5;Utenze e canoni;4;Energia elettrica;19-04-2017;
766;1;0;"744,81";"744,81";SERVIZIO ELETTRICO NAZIONALE  - Servizio Maggior Tutela;ZC41E38DF2;SALDO Fatt.n. 230621505001044  del 10/03/2017 fattura;19-04-2017;960;0;239;1;Spese correnti;3;Acquisto di beni e servizi;2;Acquisto di servizi;5;Utenze e canoni;4;Energia elettrica;19-04-2017;
767;1;0;"332,50";"332,50";SERVIZIO ELETTRICO NAZIONALE  - Servizio Maggior Tutela;ZC41E38DF2;SALDO Fatt.n. 230601805001044  del 10/03/2017 fattura;19-04-2017;960;0;239;1;Spese correnti;3;Acquisto di beni e servizi;2;Acquisto di servizi;5;Utenze e canoni;4;Energia elettrica;19-04-2017;
768;1;0;"495,60";"495,60";SERVIZIO ELETTRICO NAZIONALE  - Servizio Maggior Tutela;ZC41E38DF2;SALDO Fatt.n. 230620407093544  del 10/03/2017 fattura;19-04-2017;960;0;239;1;Spese correnti;3;Acquisto di beni e servizi;2;Acquisto di servizi;5;Utenze e canoni;4;Energia elettrica;19-04-2017;
769;1;0;"237,46";"237,46";SERVIZIO ELETTRICO NAZIONALE  - Servizio Maggior Tutela;ZC41E38DF2;SALDO Fatt.n. 230621405007444  del 10/03/2017 fattura;19-04-2017;960;0;239;1;Spese correnti;3;Acquisto di beni e servizi;2;Acquisto di servizi;5;Utenze e canoni;4;Energia elettrica;19-04-2017;
770;1;0;"122,09";"122,09";SERVIZIO ELETTRICO NAZIONALE  - Servizio Maggior Tutela;ZC41E38DF2;SALDO Fatt.n. 230620305071034  del 10/03/2017 fattura;19-04-2017;960;0;239;1;Spese correnti;3;Acquisto di beni e servizi;2;Acquisto di servizi;5;Utenze e canoni;4;Energia elettrica;19-04-2017;
771;1;0;"754,96";"754,96";SERVIZIO ELETTRICO NAZIONALE  - Servizio Maggior Tutela;ZC41E38DF2;SALDO Fatt.n. 230603905013734  del 10/03/2017 fattura;19-04-2017;960;0;239;1;Spese correnti;3;Acquisto di beni e servizi;2;Acquisto di servizi;5;Utenze e canoni;4;Energia elettrica;19-04-2017;
772;1;0;"33,11";"33,11";SERVIZIO ELETTRICO NAZIONALE  - Servizio Maggior Tutela;ZC41E38DF2;SALDO Fatt.n. 230603405081034  del 10/03/2017 fattura;19-04-2017;960;0;239;1;Spese correnti;3;Acquisto di beni e servizi;2;Acquisto di servizi;5;Utenze e canoni;4;Energia elettrica;19-04-2017;
773;1;0;"342,23";"342,23";SERVIZIO ELETTRICO NAZIONALE  - Servizio Maggior Tutela;ZC41E38DF2;SALDO Fatt.n. 230602855044844  del 10/03/2017 fattura;19-04-2017;960;0;239;1;Spese correnti;3;Acquisto di beni e servizi;2;Acquisto di servizi;5;Utenze e canoni;4;Energia elettrica;19-04-2017;
774;1;0;"1.001,90";"1.001,90";SERVIZIO ELETTRICO NAZIONALE  - Servizio Maggior Tutela;ZC41E38DF2;SALDO Fatt.n. 230602555020036  del 10/03/2017 fattura;19-04-2017;960;0;239;1;Spese correnti;3;Acquisto di beni e servizi;2;Acquisto di servizi;5;Utenze e canoni;4;Energia elettrica;19-04-2017;
775;1;0;"538,03";"538,03";SERVIZIO ELETTRICO NAZIONALE  - Servizio Maggior Tutela;ZC41E38DF2;SALDO Fatt.n. 230601455010044  del 10/03/2017 fattura;19-04-2017;960;0;239;1;Spese correnti;3;Acquisto di beni e servizi;2;Acquisto di servizi;5;Utenze e canoni;4;Energia elettrica;19-04-2017;
776;1;0;"157,59";"157,59";SERVIZIO ELETTRICO NAZIONALE  - Servizio Maggior Tutela;ZC41E38DF2;SALDO Fatt.n. 230622605068034  del 10/03/2017 fattura;19-04-2017;960;0;239;1;Spese correnti;3;Acquisto di beni e servizi;2;Acquisto di servizi;5;Utenze e canoni;4;Energia elettrica;19-04-2017;
777;1;0;"96,67";"96,67";SERVIZIO ELETTRICO NAZIONALE  - Servizio Maggior Tutela;ZC41E38DF2;SALDO Fatt.n. 230622005007034  del 10/03/2017 fattura;19-04-2017;960;0;239;1;Spese correnti;3;Acquisto di beni e servizi;2;Acquisto di servizi;5;Utenze e canoni;4;Energia elettrica;19-04-2017;
778;1;0;"57,27";"57,27";SERVIZIO ELETTRICO NAZIONALE  - Servizio Maggior Tutela;ZC41E38DF2;SALDO Fatt.n. 230621405007534  del 10/03/2017 fattura;19-04-2017;960;0;239;1;Spese correnti;3;Acquisto di beni e servizi;2;Acquisto di servizi;5;Utenze e canoni;4;Energia elettrica;19-04-2017;
779;1;0;"915,00";"915,00";SERVIZIO ELETTRICO NAZIONALE  - Servizio Maggior Tutela;ZC41E38DF2;SALDO Fatt.n. 230621125008033  del 10/03/2017 fattura;19-04-2017;960;0;239;1;Spese correnti;3;Acquisto di beni e servizi;2;Acquisto di servizi;5;Utenze e canoni;4;Energia elettrica;19-04-2017;
780;1;0;"1.068,55";"1.068,55";SERVIZIO ELETTRICO NAZIONALE  - Servizio Maggior Tutela;ZC41E38DF2;SALDO Fatt.n. 230621105021544  del 10/03/2017 fattura;19-04-2017;960;0;239;1;Spese correnti;3;Acquisto di beni e servizi;2;Acquisto di servizi;5;Utenze e canoni;4;Energia elettrica;19-04-2017;
781;1;0;"1.188,61";"1.188,61";SERVIZIO ELETTRICO NAZIONALE  - Servizio Maggior Tutela;ZC41E38DF2;SALDO Fatt.n. 230620403032034  del 10/03/2017 fattura;19-04-2017;960;0;239;1;Spese correnti;3;Acquisto di beni e servizi;2;Acquisto di servizi;5;Utenze e canoni;4;Energia elettrica;19-04-2017;
782;1;0;"323,53";"323,53";SERVIZIO ELETTRICO NAZIONALE  - Servizio Maggior Tutela;ZC41E38DF2;SALDO Fatt.n. 230620403001234  del 10/03/2017 fattura;19-04-2017;960;0;239;1;Spese correnti;3;Acquisto di beni e servizi;2;Acquisto di servizi;5;Utenze e canoni;4;Energia elettrica;19-04-2017;
783;1;0;"1.400,90";"1.400,90";SERVIZIO ELETTRICO NAZIONALE  - Servizio Maggior Tutela;ZC41E38DF2;SALDO Fatt.n. 230604105054036  del 10/03/2017 fattura;19-04-2017;960;0;239;1;Spese correnti;3;Acquisto di beni e servizi;2;Acquisto di servizi;5;Utenze e canoni;4;Energia elettrica;19-04-2017;
784;1;0;"825,01";"825,01";SERVIZIO ELETTRICO NAZIONALE  - Servizio Maggior Tutela;ZC41E38DF2;SALDO Fatt.n. 230603705082534  del 10/03/2017 fattura;19-04-2017;960;0;239;1;Spese correnti;3;Acquisto di beni e servizi;2;Acquisto di servizi;5;Utenze e canoni;4;Energia elettrica;19-04-2017;
785;1;0;"692,80";"692,80";SERVIZIO ELETTRICO NAZIONALE  - Servizio Maggior Tutela;ZC41E38DF2;SALDO Fatt.n. 230603505040034  del 10/03/2017 fattura;19-04-2017;960;0;239;1;Spese correnti;3;Acquisto di beni e servizi;2;Acquisto di servizi;5;Utenze e canoni;4;Energia elettrica;19-04-2017;
786;1;0;"371,69";"371,69";SERVIZIO ELETTRICO NAZIONALE  - Servizio Maggior Tutela;ZC41E38DF2;SALDO Fatt.n. 230603405044234  del 10/03/2017 fattura;19-04-2017;960;0;239;1;Spese correnti;3;Acquisto di beni e servizi;2;Acquisto di servizi;5;Utenze e canoni;4;Energia elettrica;19-04-2017;
787;1;0;"20,52";"20,52";SERVIZIO ELETTRICO NAZIONALE  - Servizio Maggior Tutela;ZC41E38DF2;SALDO Fatt.n. 230602605070034  del 10/03/2017 fattura;19-04-2017;960;0;239;1;Spese correnti;3;Acquisto di beni e servizi;2;Acquisto di servizi;5;Utenze e canoni;4;Energia elettrica;19-04-2017;
788;1;0;"84,08";"84,08";SERVIZIO ELETTRICO NAZIONALE  - Servizio Maggior Tutela;ZC41E38DF2;SALDO Fatt.n. 230602505050534  del 10/03/2017 fattura;19-04-2017;960;0;239;1;Spese correnti;3;Acquisto di beni e servizi;2;Acquisto di servizi;5;Utenze e canoni;4;Energia elettrica;19-04-2017;
789;1;0;"916,23";"916,23";SERVIZIO ELETTRICO NAZIONALE  - Servizio Maggior Tutela;ZC41E38DF2;SALDO Fatt.n. 230602305079536  del 10/03/2017 fattura;19-04-2017;960;0;239;1;Spese correnti;3;Acquisto di beni e servizi;2;Acquisto di servizi;5;Utenze e canoni;4;Energia elettrica;19-04-2017;
790;1;0;"768,53";"768,53";SERVIZIO ELETTRICO NAZIONALE  - Servizio Maggior Tutela;ZC41E38DF2;SALDO Fatt.n. 230601605036036  del 10/03/2017 fattura;19-04-2017;960;0;239;1;Spese correnti;3;Acquisto di beni e servizi;2;Acquisto di servizi;5;Utenze e canoni;4;Energia elettrica;19-04-2017;
791;1;0;"181,69";"181,69";SERVIZIO ELETTRICO NAZIONALE  - Servizio Maggior Tutela;Z141E3AEE8;SALDO Fatt.n. 230621805068234  del 10/03/2017 fattura;19-04-2017;354;0;245;1;Spese correnti;3;Acquisto di beni e servizi;2;Acquisto di servizi;5;Utenze e canoni;4;Energia elettrica;19-04-2017;
792;1;0;"334,52";"334,52";SERVIZIO ELETTRICO NAZIONALE  - Servizio Maggior Tutela;Z141E3AEE8;SALDO Fatt.n. 230604005028254  del 10/03/2017 fattura;19-04-2017;354;0;245;1;Spese correnti;3;Acquisto di beni e servizi;2;Acquisto di servizi;5;Utenze e canoni;4;Energia elettrica;19-04-2017;
793;1;0;"321,08";"321,08";SERVIZIO ELETTRICO NAZIONALE  - Servizio Maggior Tutela;Z141E3AEE8;SALDO Fatt.n. 230604105065664  del 10/03/2017 fattura;19-04-2017;354;0;245;1;Spese correnti;3;Acquisto di beni e servizi;2;Acquisto di servizi;5;Utenze e canoni;4;Energia elettrica;19-04-2017;
794;1;0;"74,16";"74,16";SERVIZIO ELETTRICO NAZIONALE  - Servizio Maggior Tutela;Z141E3AEE8;SALDO Fatt.n. 230621805073034  del 10/03/2017 fattura;19-04-2017;354;0;245;1;Spese correnti;3;Acquisto di beni e servizi;2;Acquisto di servizi;5;Utenze e canoni;4;Energia elettrica;19-04-2017;
795;1;0;"94,17";"94,17";SERVIZIO ELETTRICO NAZIONALE  - Servizio Maggior Tutela;Z141E3AEE8;SALDO Fatt.n. 230620403066034  del 10/03/2017 fattura;19-04-2017;354;0;245;1;Spese correnti;3;Acquisto di beni e servizi;2;Acquisto di servizi;5;Utenze e canoni;4;Energia elettrica;19-04-2017;
796;1;0;"73,25";"73,25";SERVIZIO ELETTRICO NAZIONALE  - Servizio Maggior Tutela;Z141E3AEE8;SALDO Fatt.n. 230600455010034  del 10/03/2017 fattura;19-04-2017;354;0;245;1;Spese correnti;3;Acquisto di beni e servizi;2;Acquisto di servizi;5;Utenze e canoni;4;Energia elettrica;19-04-2017;
797;1;0;"3.709,22";"3.709,22";AMMINISTRATORI COMUNALI; ;EROGAZIONE INDENNITA' DI CARICA MESE DI APRILE 2017;20-04-2017;10;0;8;1;Spese correnti;3;Acquisto di beni e servizi;2;Acquisto di servizi;1;Organi e incarichi istituzionali dell'amministrazione;1;Organi istituzionali dell'amministrazione - Indennità;20-04-2017;
913;1;0;"819,84";"819,84";CONSIGLIERI COMUNALI; ;LIQUIDAZIONE DEI GETTONI DI PRESENZA AI CONSIGLIERI COMUNALI ED AI MEMBRI DELLA COMMISSIONE EDILIZIA PER LE SEDUTE DAL 01/01/2016 AL 30/12/2016;21-04-2017;10;0;844;1;Spese correnti;3;Acquisto di beni e servizi;2;Acquisto di servizi;1;Organi e incarichi istituzionali dell'amministrazione;1;Organi istituzionali dell'amministrazione - Indennità;21-04-2017;
914;1;0;"24.500,00";"24.500,00";ASSITECA SPA - FILIALE DI VERONA;ZA119A6080;ASSICURAZIONI - POLIZZA RESPONSABILITA' CIVILE TERZI/OPERAI (R.C.T.O.) RISCHI DIVERSI - RINNOVO TRIENNALE E LIQUIDAZIONE PREMIO PERIODO 30/04/2016 - 30/04/2017. DETERMINAZIONI.;27-04-2017;120;0;261;1;Spese correnti;10;Altre spese correnti;4;Premi di assicurazione;1;Premi di assicurazione contro i danni;3;Premi di assicurazione per responsabilità civile verso terzi;27-04-2017;
915;1;0;"2,00";"2.057,23";EVO RECAPITI SRL;Z941B16D61;SALDO Fatt.n. 0000029  del 31/03/2017 FATTURA;28-04-2017;843;0;561;1;Spese correnti;3;Acquisto di beni e servizi;2;Acquisto di servizi;3;Aggi di riscossione;999;Altri aggi di riscossione n.a.c.;28-04-2017;
915;2;0;"2.055,23";"2.057,23";EVO RECAPITI SRL;Z941B16D61;ACCONTO Fatt.n. 0000029  del 31/03/2017 FATTURA;28-04-2017;843;0;561;1;Spese correnti;3;Acquisto di beni e servizi;2;Acquisto di servizi;3;Aggi di riscossione;999;Altri aggi di riscossione n.a.c.;28-04-2017;
916;1;0;"958,51";"958,51";ENEL ENERGIA SPA;Z141E3AEE8;SALDO Fatt.n. 004800329881  del 08/03/2017 fattura;28-04-2017;881;0;250;1;Spese correnti;3;Acquisto di beni e servizi;2;Acquisto di servizi;5;Utenze e canoni;4;Energia elettrica;28-04-2017;
917;1;0;"1.021,51";"1.021,51";ENEL ENERGIA SPA;Z6918F9622;SALDO Fatt.n. 004800024228  del 10/01/2017 fattura;28-04-2017;881;0;462;1;Spese correnti;3;Acquisto di beni e servizi;2;Acquisto di servizi;5;Utenze e canoni;4;Energia elettrica;28-04-2017;
918;1;0;"1.092,74";"1.092,74";ENEL ENERGIA SPA;Z6918F9622;SALDO Fatt.n. 004800190611  del 08/02/2017 CONSUMI GENNAIO 2017;28-04-2017;881;0;271;1;Spese correnti;3;Acquisto di beni e servizi;2;Acquisto di servizi;5;Utenze e canoni;4;Energia elettrica;28-04-2017;
919;1;0;"55,11";"55,11";OLIVETTI  SPA;ZA31A76D7F;ACCONTO Fatt.n. 1137901121  del 31/03/2017 fattura;28-04-2017;109;0;408;1;Spese correnti;3;Acquisto di beni e servizi;2;Acquisto di servizi;7;Utilizzo di beni di terzi;4;Noleggi di hardware;28-04-2017;
920;1;0;"133,62";"133,62";OLIVETTI  SPA;ZA31A76D7F;SALDO Fatt.n. 1137901121  del 31/03/2017 fattura;28-04-2017;109;0;408;1;Spese correnti;3;Acquisto di beni e servizi;2;Acquisto di servizi;7;Utilizzo di beni di terzi;4;Noleggi di hardware;28-04-2017;
921;1;0;"77,59";"77,59";LA BOTTEGA DELL'INFORMATICA SAS;Z3A1DB6B7E;SALDO Fatt.n. 2/PA  del 31/03/2017 Rif. Doc. di trasporto 5 del 24/03/2017;28-04-2017;110;0;153;1;Spese correnti;3;Acquisto di beni e servizi;1;Acquisto di beni;2;Altri beni di consumo;999;Altri beni e materiali di consumo n.a.c.;28-04-2017;
922;1;0;"8.043,72";"8.043,72";EURORISTORAZIONE SRL;Z891CD7954;SALDO Fatt.n. 17CPA00571  del 28/02/2017 fattura;28-04-2017;662;0;3;1;Spese correnti;3;Acquisto di beni e servizi;2;Acquisto di servizi;15;Contratti di servizio pubblico;6;Contratti di servizio per le mense scolastiche;28-04-2017;
923;1;0;"1.080,00";"1.080,00";CHORUS GRUPPO RITMICO CORALE;Z311DD1B6A;SALDO Fatt.n. 01/PA  del 06/04/2017 ESIBIZIONE CORALE E PRATICA SIAE;28-04-2017;686;0;200;1;Spese correnti;3;Acquisto di beni e servizi;2;Acquisto di servizi;2;"Organizzazione eventi, pubblicita` e servizi per trasferta";5;Organizzazione e partecipazione a manifestazioni e convegni;28-04-2017;
924;1;0;"400,00";"400,00";GANZERLA LUCA GIOVANNI;ZA41C2CD2D;SALDO Fatt.n. 2E/2017  del 12/04/2017 fattura;28-04-2017;686;0;693;1;Spese correnti;3;Acquisto di beni e servizi;2;Acquisto di servizi;2;"Organizzazione eventi, pubblicita` e servizi per trasferta";5;Organizzazione e partecipazione a manifestazioni e convegni;28-04-2017;
925;1;0;"30,00";"30,00";ANAC - AUTORITA' NAZIONALE ANTICORRUZIONE EX AVCP;5804527F32;ISTRUZIONE. SERVIZIO DI RISTORAZIONE SCOLASTICA A.S. 2014/15 E 2015/16. AUTORIZZAZIONE A CONTRATTARE E APPROVAZIONE ATTI DI GARA.;28-04-2017;662;0;302;1;Spese correnti;3;Acquisto di beni e servizi;2;Acquisto di servizi;15;Contratti di servizio pubblico;6;Contratti di servizio per le mense scolastiche;28-04-2017;
926;1;0;"8.800,00";"8.800,00";PRO LOCO DI CALDIERO; ;"ASSOCIAZIONE PROLOCO CALDIERO. CONTRIBUTO ECONOMICO PER LE ATTIVITA' DELL'ANNO 2017, APPROVATO CON DELIBERA DI GIUNTA COMUNALE N.23 DEL 21/03/2017. IMPEGNO DI SPESA ED EROGAZIONE ACCONTO.";29-04-2017;891;2;273;1;Spese correnti;4;Trasferimenti correnti;4;Trasferimenti correnti a Istituzioni Sociali Private;1;Trasferimenti correnti a Istituzioni Sociali Private;1;Trasferimenti correnti a Istituzioni Sociali Private;29-04-2017;
927;1;0;"2.613,56";"2.613,56";CONSORZIO BONIFICA ALTA PIANURA VENETA; ;CONCESSIONI DEMANIALI VARIE ANNO 2017 - LIQUIDAZIONE CANONI AL CONSORZIO DI BONIFICA ALTA PIANURA VENETA;29-04-2017;1000;0;275;1;Spese correnti;4;Trasferimenti correnti;1;Trasferimenti correnti a Amministrazioni Pubbliche;2;Trasferimenti correnti a Amministrazioni Locali;999;Trasferimenti correnti a altre Amministrazioni Locali n.a.c.;29-04-2017;
928;1;0;"1.194,46";"1.194,46";GP GLOBAL POWER SPA; ;BENEFICIARI DIVERSI-PAGAMENTI DIVERSI COD DISP 751704120TYC3D NOME GLOBAL POWER SPA MANDATO (P.      43 -R.     597);29-04-2017;111;0;146;1;Spese correnti;3;Acquisto di beni e servizi;2;Acquisto di servizi;5;Utenze e canoni;4;Energia elettrica;29-04-2017;
929;1;0;"0,08";"285,97";GP GLOBAL POWER SPA; ;BENEFICIARI DIVERSI-PAGAMENTI DIVERSI COD DISP 751704120TYC38 NOME GLOBAL POWER SPA MANDATO (P.      42 -R.     596);29-04-2017;960;0;147;1;Spese correnti;3;Acquisto di beni e servizi;2;Acquisto di servizi;5;Utenze e canoni;4;Energia elettrica;29-04-2017;
929;2;0;"285,89";"285,97";GP GLOBAL POWER SPA; ;BENEFICIARI DIVERSI-PAGAMENTI DIVERSI COD DISP 751704120TYC33 NOME GLOBAL POWER SPA MANDATO (P.      41 -R.     595);29-04-2017;960;0;147;1;Spese correnti;3;Acquisto di beni e servizi;2;Acquisto di servizi;5;Utenze e canoni;4;Energia elettrica;29-04-2017;
931;1;0;"0,02";"62,92";GP GLOBAL POWER SPA;622385037F;SALDO Fatt.n. V0/38103  del 04/04/2017 Fattura Energia Elettrica;29-04-2017;960;0;147;1;Spese correnti;3;Acquisto di beni e servizi;2;Acquisto di servizi;5;Utenze e canoni;4;Energia elettrica;29-04-2017;
931;2;0;"62,90";"62,92";GP GLOBAL POWER SPA;622385037F;SALDO Fatt.n. V0/38102  del 04/04/2017 Fattura Energia Elettrica;29-04-2017;960;0;147;1;Spese correnti;3;Acquisto di beni e servizi;2;Acquisto di servizi;5;Utenze e canoni;4;Energia elettrica;29-04-2017;
932;1;0;"262,78";"262,78";GP GLOBAL POWER SPA;622385037F;SALDO Fatt.n. V0/38104  del 04/04/2017 Fattura Energia Elettrica;29-04-2017;111;0;146;1;Spese correnti;3;Acquisto di beni e servizi;2;Acquisto di servizi;5;Utenze e canoni;4;Energia elettrica;29-04-2017;
934;1;0;"1.390,80";"1.390,80";ROSSIGNOLI FERRUCCIO - TINTEGGIATURE EDILI;Z51D2E240;SALDO Fatt.n. 000001-2017-E  del 20/04/2017 fattura;05-05-2017;352;0;204;1;Spese correnti;3;Acquisto di beni e servizi;2;Acquisto di servizi;9;Manutenzione ordinaria e riparazioni;8;Manutenzione ordinaria e riparazioni di beni immobili;05-05-2017;
935;1;0;"38.706,66";"38.706,66";FOSSA RENZO; ;SALDO Fatt.n. FATTPA 1_17  del 05/04/2017 FATTURA;05-05-2017;1180;1;577;2;Spese in conto capitale;2;Investimenti fissi lordi e acquisto di terreni;1;Beni materiali;9;Beni immobili;12;Infrastrutture stradali;05-05-2017;
936;1;0;"5.200,00";"5.200,00";AMBROSINI EDOARDO;ZF21A38DF7;SALDO Fatt.n. 2/FE  del 18/04/2017 Sistemazione dell'area e del marciapiede antistante l'ingresso del Cimitero di Caldiero                                  ( CUP G11B16000120004 -  CIG ZF21A38DF7 );05-05-2017;1180;1;342;2;Spese in conto capitale;2;Investimenti fissi lordi e acquisto di terreni;1;Beni materiali;9;Beni immobili;12;Infrastrutture stradali;05-05-2017;
937;1;0;"500,00";"500,00";ASSOCIAZIONE TENNIS CALDIERO; ;"IMPEGNO CONTRIBUTO ECONOMICO A FAVORE DELL'ASSOCIAZIONE TENNIS CALDIERO, APPROVATO CON DELIBERA DI GIUNTA COMUNALE N.152/2016.";05-05-2017;891;2;747;1;Spese correnti;4;Trasferimenti correnti;4;Trasferimenti correnti a Istituzioni Sociali Private;1;Trasferimenti correnti a Istituzioni Sociali Private;1;Trasferimenti correnti a Istituzioni Sociali Private;05-05-2017;
938;1;0;"3.709,22";"3.709,22";ISTITUTO OMNICOMPRENSIVO AMATRICE; ;SISMA DEL 24.08.2016 IN CENTRO ITALIA: SOSPENSIONE INDENNITA' DI CARICA SINDACO E ASSESSORE MESE DI SETTEMBRE E DEVOLUZIONE DELLE SOMME ALLE POPOLAZIONI COLPITE;05-05-2017;468;0;826;1;Spese correnti;3;Acquisto di beni e servizi;1;Acquisto di beni;2;Altri beni di consumo;6;Materiale informatico;05-05-2017;
939;1;0;"1.969,16";"1.969,16";SOCIETA' COOPERATIVA CULTURE;5539394489;SALDO Fatt.n. 482/FE  del 18/04/2017 FATTURA;05-05-2017;680;0;121;1;Spese correnti;3;Acquisto di beni e servizi;2;Acquisto di servizi;15;Contratti di servizio pubblico;999;Altre spese per contratti di servizio pubblico;05-05-2017;
940;1;0;"1.964,45";"1.964,45";COOPERATIVA SOCIALE VITA  ONLUS;Z661B48AD9;SALDO Fatt.n. 3/AP  del 31/03/2017 FATTURA VENDITA P.A .- Tipo A reg 3;05-05-2017;115;0;580;1;Spese correnti;3;Acquisto di beni e servizi;2;Acquisto di servizi;11;Prestazioni professionali e specialistiche;999;Altre prestazioni professionali e specialistiche n.a.c.;05-05-2017;
941;1;0;"-12,81";"107,77";INGROS CARTA GIUSTACCHINI SPA;ZBC19DBBCE;SALDO Fatt.n. PAM/0000370  del 19/04/2017 FATTURA;05-05-2017;110;0;330;1;Spese correnti;3;Acquisto di beni e servizi;1;Acquisto di beni;2;Altri beni di consumo;1;"Carta, cancelleria e stampati";05-05-2017;
941;2;0;"120,58";"107,77";INGROS CARTA GIUSTACCHINI SPA;ZBC19DBBCE;SALDO Fatt.n. PAM/0000362  del 31/03/2017 FATTURA;05-05-2017;110;0;330;1;Spese correnti;3;Acquisto di beni e servizi;1;Acquisto di beni;2;Altri beni di consumo;1;"Carta, cancelleria e stampati";05-05-2017;
942;1;0;"230,00";"230,00";LEGISLAZIONE TECNICA SRL;ZE31CFBC88;SALDO Fatt.n. 223/PA/2017  del 24/03/2017 Rinnovo abbonamento "formula Bollettino e Rassegne";05-05-2017;150;0;68;1;Spese correnti;3;Acquisto di beni e servizi;2;Acquisto di servizi;5;Utenze e canoni;3;Accesso a banche dati e a pubblicazioni on line;05-05-2017;
943;1;0;"58,22";"124,22";INGROS CARTA GIUSTACCHINI SPA;ZBC19DBBCE;SALDO Fatt.n. PAM/0000425  del 30/04/2017 FATTURA;05-05-2017;110;0;330;1;Spese correnti;3;Acquisto di beni e servizi;1;Acquisto di beni;2;Altri beni di consumo;1;"Carta, cancelleria e stampati";05-05-2017;
943;2;0;"66,00";"124,22";INGROS CARTA GIUSTACCHINI SPA;ZBC19DBBCE;SALDO Fatt.n. PAM/0000427  del 30/04/2017 FATTURA;05-05-2017;110;0;330;1;Spese correnti;3;Acquisto di beni e servizi;1;Acquisto di beni;2;Altri beni di consumo;1;"Carta, cancelleria e stampati";05-05-2017;
944;1;0;"655,04";"655,04";INGROS CARTA GIUSTACCHINI SPA;ZBC19DBBCE;SALDO Fatt.n. PAM/0000426  del 30/04/2017 fattura;05-05-2017;110;0;330;1;Spese correnti;3;Acquisto di beni e servizi;1;Acquisto di beni;2;Altri beni di consumo;1;"Carta, cancelleria e stampati";05-05-2017;
945;1;0;"1,76";"48,50";SVAI SPA;Z951D737EF;ACCONTO Fatt.n. 300137  del 31/03/2017 IDEM;05-05-2017;350;0;117;1;Spese correnti;3;Acquisto di beni e servizi;1;Acquisto di beni;2;Altri beni di consumo;999;Altri beni e materiali di consumo n.a.c.;05-05-2017;
945;2;0;"46,74";"48,50";SVAI SPA;Z951D737EF;SALDO Fatt.n. 300137  del 31/03/2017 IDEM;05-05-2017;350;0;117;1;Spese correnti;3;Acquisto di beni e servizi;1;Acquisto di beni;2;Altri beni di consumo;999;Altri beni e materiali di consumo n.a.c.;05-05-2017;
946;1;0;"38,99";"469,07";KUWAIT PETROLEUM ITALIA SPA;ZA91845EEC;ACCONTO Fatt.n. PJ00073435  del 31/03/2017 FATTURA;05-05-2017;290;0;86;1;Spese correnti;3;Acquisto di beni e servizi;1;Acquisto di beni;2;Altri beni di consumo;2;"Carburanti, combustibili e lubrificanti";05-05-2017;
946;2;0;"430,08";"469,07";KUWAIT PETROLEUM ITALIA SPA;ZA91845EEC;SALDO Fatt.n. PJ00073435  del 31/03/2017 FATTURA;05-05-2017;290;0;86;1;Spese correnti;3;Acquisto di beni e servizi;1;Acquisto di beni;2;Altri beni di consumo;2;"Carburanti, combustibili e lubrificanti";05-05-2017;
947;1;0;"129,17";"129,17";LA RONDA - SERVIZI DI VIGILANZA;ZE618FE5E8;SALDO Fatt.n. 0003680  del 31/03/2017 FATTURA;05-05-2017;357;0;171;1;Spese correnti;3;Acquisto di beni e servizi;2;Acquisto di servizi;13;Servizi ausiliari per il funzionamento dell'ente;1;"Servizi di sorveglianza, custodia e accoglienza";05-05-2017;
948;1;0;"13,07";"13,07";EDILTOSI S.R.L.;ZC71D737AF;SALDO Fatt.n. 001603  del 31/03/2017 FATTURA;05-05-2017;350;0;116;1;Spese correnti;3;Acquisto di beni e servizi;1;Acquisto di beni;2;Altri beni di consumo;999;Altri beni e materiali di consumo n.a.c.;05-05-2017;
949;1;0;"2.245,17";"2.245,17";COOPERATIVA SOCIALE VENETA ONLUS;Z1F1CDE21A;SALDO Fatt.n. 000069-2017-PA  del 31/03/2017 FATTURA;05-05-2017;782;0;766;1;Spese correnti;3;Acquisto di beni e servizi;2;Acquisto di servizi;9;Manutenzione ordinaria e riparazioni;8;Manutenzione ordinaria e riparazioni di beni immobili;05-05-2017;
950;1;0;"1.861,72";"1.861,72";SYNTEC SRL;Z701B08617;SALDO Fatt.n. 000001-2017-PA  del 31/03/2017 FATTURA;05-05-2017;549;0;518;1;Spese correnti;3;Acquisto di beni e servizi;2;Acquisto di servizi;9;Manutenzione ordinaria e riparazioni;8;Manutenzione ordinaria e riparazioni di beni immobili;05-05-2017;
951;1;0;"66,88";"66,88";CALDIERO GOMME DI GROBBERIO L.;Z161DC6793;SALDO Fatt.n. 81  del 07/04/2017 REVISIONI IMMEDIATE;05-05-2017;292;0;162;1;Spese correnti;3;Acquisto di beni e servizi;2;Acquisto di servizi;9;Manutenzione ordinaria e riparazioni;1;"Manutenzione ordinaria e riparazioni di mezzi di trasporto ad uso civile, di sicurezza e ordine pubblico";05-05-2017;
952;1;0;"3.566,47";"3.566,47";COOPERATIVA SOCIALE MONSCLEDA LAVORO SRL;ZF519B17F0;SALDO Fatt.n. 32/2017  del 31/03/2017 FATTURA;05-05-2017;952;0;264;1;Spese correnti;3;Acquisto di beni e servizi;2;Acquisto di servizi;9;Manutenzione ordinaria e riparazioni;8;Manutenzione ordinaria e riparazioni di beni immobili;05-05-2017;
953;1;0;"1.737,28";"1.737,28";UNI SECUR S.R.L.;Z480FE7FF2;SALDO Fatt.n. 4 B  del 28/02/2017 Ft. vendita split payment;05-05-2017;275;0;581;1;Spese correnti;3;Acquisto di beni e servizi;2;Acquisto di servizi;18;Servizi sanitari;1;Spese per accertamenti sanitari resi necessari dall'attività lavorativa;05-05-2017;
954;1;0;"118,07";"118,07";ACQUE VERONESI SCARL; ;SALDO Fatt.n. 0350120170800068400  del 08/02/2017 B/Bollettazione;15-05-2017;879;0;393;1;Spese correnti;3;Acquisto di beni e servizi;2;Acquisto di servizi;5;Utenze e canoni;5;Acqua;15-05-2017;
955;1;0;"124,34";"124,34";LEVORATO ANNALISA; ;SALDO Fatt.n. 1/E  del 28/04/2017 COMPENSO;16-05-2017;10;0;844;1;Spese correnti;3;Acquisto di beni e servizi;2;Acquisto di servizi;1;Organi e incarichi istituzionali dell'amministrazione;1;Organi istituzionali dell'amministrazione - Indennità;16-05-2017;
956;1;0;"148,50";"148,50";NICO & LORE DI MACCINI LORENZO;Z781E3E455;SALDO Fatt.n. PA01  del 04/05/2017 Fornitura di una corona d'alloro per cerimonia " 25 aprile" - Impegno 263/2017;16-05-2017;110;0;263;1;Spese correnti;3;Acquisto di beni e servizi;1;Acquisto di beni;2;Altri beni di consumo;9;Beni per attività di rappresentanza;16-05-2017;
957;1;0;"744,20";"744,20";SOLUZIONE SRL;ZE31CFBC88;SALDO Fatt.n. 1.504  del 04/05/2017 Vendita;16-05-2017;150;0;68;1;Spese correnti;3;Acquisto di beni e servizi;2;Acquisto di servizi;5;Utenze e canoni;3;Accesso a banche dati e a pubblicazioni on line;16-05-2017;
958;1;0;"2.125,00";"2.125,00";ASSITECA SPA - FILIALE DI VERONA;ZF51C82727;ASSICURAZIONI - POLIZZA FURTO CON LA COMPAGNIA ITALIANA ASSICURAZIONI - DETERMINAZIONI.;16-05-2017;120;0;713;1;Spese correnti;10;Altre spese correnti;4;Premi di assicurazione;1;Premi di assicurazione contro i danni;999;Altri premi di assicurazione contro i danni;16-05-2017;
959;1;0;"3.878,38";"3.878,38";SBP SPA;ZCF1C18972;SALDO Fatt.n. 2000140007  del 27/04/2017 FATTURA;16-05-2017;1183;1;570;2;Spese in conto capitale;2;Investimenti fissi lordi e acquisto di terreni;1;Beni materiali;9;Beni immobili;12;Infrastrutture stradali;16-05-2017;
960;1;0;"4.066,66";"4.066,66";ASD CALCIO CALDIERO TERME -  MATR. FIGC 8610;ZED16CDF72;SALDO Fatt.n. E-1  del 30/03/2017 FATTURA;16-05-2017;880;0;528;1;Spese correnti;3;Acquisto di beni e servizi;2;Acquisto di servizi;9;Manutenzione ordinaria e riparazioni;8;Manutenzione ordinaria e riparazioni di beni immobili;16-05-2017;
964;1;0;"1.589,50";"1.589,50";GP GLOBAL POWER SPA;5952652BD1;SALDO Fatt.n. V6/17929  del 05/05/2017 FORNITURA GAS;16-05-2017;582;0;295;1;Spese correnti;3;Acquisto di beni e servizi;2;Acquisto di servizi;5;Utenze e canoni;6;Gas;16-05-2017;
965;1;0;"1.480,84";"1.480,84";GP GLOBAL POWER SPA;5952652BD1;SALDO Fatt.n. V6/17924  del 05/05/2017 FORNITURA GAS;16-05-2017;542;0;296;1;Spese correnti;3;Acquisto di beni e servizi;2;Acquisto di servizi;5;Utenze e canoni;6;Gas;16-05-2017;
966;1;0;"671,01";"671,01";GP GLOBAL POWER SPA;5952652BD1;SALDO Fatt.n. V6/17925  del 05/05/2017 FORNITURA GAS;16-05-2017;542;0;296;1;Spese correnti;3;Acquisto di beni e servizi;2;Acquisto di servizi;5;Utenze e canoni;6;Gas;16-05-2017;
967;1;0;"324,67";"324,67";GP GLOBAL POWER SPA;5952652BD1;SALDO Fatt.n. V6/17926  del 05/05/2017 FORNITURA GAS;16-05-2017;112;0;297;1;Spese correnti;3;Acquisto di beni e servizi;2;Acquisto di servizi;5;Utenze e canoni;6;Gas;16-05-2017;
968;1;0;"414,37";"414,37";GP GLOBAL POWER SPA;5952652BD1;SALDO Fatt.n. V6/17927  del 05/05/2017 FORNITURA GAS;16-05-2017;212;0;298;1;Spese correnti;3;Acquisto di beni e servizi;2;Acquisto di servizi;5;Utenze e canoni;6;Gas;16-05-2017;
969;1;0;"1.267,07";"1.267,07";GP GLOBAL POWER SPA;5952652BD1;SALDO Fatt.n. V6/17928  del 05/05/2017 FORNITURA GAS;16-05-2017;884;0;299;1;Spese correnti;3;Acquisto di beni e servizi;2;Acquisto di servizi;5;Utenze e canoni;6;Gas;16-05-2017;
970;1;0;"1.371,51";"1.371,51";GP GLOBAL POWER SPA;5952652BD1;SALDO Fatt.n. V6/17922  del 05/05/2017 FORNITURA GAS;16-05-2017;888;0;300;1;Spese correnti;3;Acquisto di beni e servizi;2;Acquisto di servizi;5;Utenze e canoni;6;Gas;16-05-2017;
971;1;0;"2,69";"2,69";GP GLOBAL POWER SPA;5952652BD1;SALDO Fatt.n. V6/17923  del 05/05/2017 FORNITURA GAS;16-05-2017;353;0;301;1;Spese correnti;3;Acquisto di beni e servizi;2;Acquisto di servizi;5;Utenze e canoni;6;Gas;16-05-2017;
972;1;0;"-156,44";"168,71";GP GLOBAL POWER SPA;5952652BD1;SALDO Fatt.n. V6/17921  del 05/05/2017 FORNITURA GAS;16-05-2017;353;0;301;1;Spese correnti;3;Acquisto di beni e servizi;2;Acquisto di servizi;5;Utenze e canoni;6;Gas;16-05-2017;
972;2;0;"325,15";"168,71";GP GLOBAL POWER SPA;5952652BD1;SALDO Fatt.n. V6/17930  del 05/05/2017 FORNITURA GAS;16-05-2017;353;0;301;1;Spese correnti;3;Acquisto di beni e servizi;2;Acquisto di servizi;5;Utenze e canoni;6;Gas;16-05-2017;
973;1;0;"1.057,76";"1.057,76";GP GLOBAL POWER SPA;5952652BD1;SALDO Fatt.n. V6/17931  del 05/05/2017 FORNITURA GAS;16-05-2017;353;0;301;1;Spese correnti;3;Acquisto di beni e servizi;2;Acquisto di servizi;5;Utenze e canoni;6;Gas;16-05-2017;
974;1;0;"702,42";"1.697,73";ENEL ENERGIA SPA;Z141E3AEE8;SALDO Fatt.n. 004800608049  del 08/05/2017 FATTURA;16-05-2017;881;0;250;1;Spese correnti;3;Acquisto di beni e servizi;2;Acquisto di servizi;5;Utenze e canoni;4;Energia elettrica;16-05-2017;
974;2;0;"995,31";"1.697,73";ENEL ENERGIA SPA;Z141E3AEE8;SALDO Fatt.n. 004800471338  del 07/04/2017 fattura;16-05-2017;881;0;250;1;Spese correnti;3;Acquisto di beni e servizi;2;Acquisto di servizi;5;Utenze e canoni;4;Energia elettrica;16-05-2017;
975;1;0;"41,32";"89,41";SERVIZIO ELETTRICO NAZIONALE  - Servizio Maggior Tutela;Z141E3AEE8;SALDO Fatt.n. 230604105065854  del 10/04/2017 fattura;16-05-2017;354;0;245;1;Spese correnti;3;Acquisto di beni e servizi;2;Acquisto di servizi;5;Utenze e canoni;4;Energia elettrica;16-05-2017;
975;2;0;"48,09";"89,41";SERVIZIO ELETTRICO NAZIONALE  - Servizio Maggior Tutela;Z141E3AEE8;SALDO Fatt.n. 230604105066034  del 10/04/2017 fattura;16-05-2017;354;0;245;1;Spese correnti;3;Acquisto di beni e servizi;2;Acquisto di servizi;5;Utenze e canoni;4;Energia elettrica;16-05-2017;
976;1;0;"552,66";"552,66";SERVIZIO ELETTRICO NAZIONALE  - Servizio Maggior Tutela;Z141E3AEE8;SALDO Fatt.n. 230601205018237  del 10/04/2017 fattura;16-05-2017;581;0;242;1;Spese correnti;3;Acquisto di beni e servizi;2;Acquisto di servizi;5;Utenze e canoni;4;Energia elettrica;16-05-2017;
977;1;0;"809,26";"809,26";SERVIZIO ELETTRICO NAZIONALE  - Servizio Maggior Tutela;Z141E3AEE8;SALDO Fatt.n. 230600305006137  del 10/04/2017 fattura;16-05-2017;541;0;241;1;Spese correnti;3;Acquisto di beni e servizi;2;Acquisto di servizi;5;Utenze e canoni;4;Energia elettrica;16-05-2017;
978;1;0;"972,18";"972,18";SERVIZIO ELETTRICO NAZIONALE  - Servizio Maggior Tutela;ZC41E38DF2;SALDO Fatt.n. 230602555020037  del 10/04/2017 fattura;16-05-2017;960;0;239;1;Spese correnti;3;Acquisto di beni e servizi;2;Acquisto di servizi;5;Utenze e canoni;4;Energia elettrica;16-05-2017;
979;1;0;"1.348,39";"1.348,39";SERVIZIO ELETTRICO NAZIONALE  - Servizio Maggior Tutela;ZC41E38DF2;SALDO Fatt.n. 230604105054037  del 10/04/2017 fattura;16-05-2017;960;0;239;1;Spese correnti;3;Acquisto di beni e servizi;2;Acquisto di servizi;5;Utenze e canoni;4;Energia elettrica;16-05-2017;
980;1;0;"882,30";"882,30";SERVIZIO ELETTRICO NAZIONALE  - Servizio Maggior Tutela;ZC41E38DF2;SALDO Fatt.n. 230602305079537  del 10/04/2017 fattura;16-05-2017;960;0;239;1;Spese correnti;3;Acquisto di beni e servizi;2;Acquisto di servizi;5;Utenze e canoni;4;Energia elettrica;16-05-2017;
981;1;0;"418,61";"418,61";SERVIZIO ELETTRICO NAZIONALE  - Servizio Maggior Tutela;ZC41E38DF2;SALDO Fatt.n. 230600103002547  del 10/04/2017 fattura;16-05-2017;960;0;239;1;Spese correnti;3;Acquisto di beni e servizi;2;Acquisto di servizi;5;Utenze e canoni;4;Energia elettrica;16-05-2017;
982;1;0;"727,30";"727,30";SERVIZIO ELETTRICO NAZIONALE  - Servizio Maggior Tutela;ZC41E38DF2;SALDO Fatt.n. 230603085004044  del 10/04/2017 fattura;16-05-2017;960;0;239;1;Spese correnti;3;Acquisto di beni e servizi;2;Acquisto di servizi;5;Utenze e canoni;4;Energia elettrica;16-05-2017;
983;1;0;"884,13";"884,13";SERVIZIO ELETTRICO NAZIONALE  - Servizio Maggior Tutela;ZC41E38DF2;SALDO Fatt.n. 230621125008034  del 10/04/2017 fattura;16-05-2017;960;0;239;1;Spese correnti;3;Acquisto di beni e servizi;2;Acquisto di servizi;5;Utenze e canoni;4;Energia elettrica;16-05-2017;
984;1;0;"708,37";"708,37";SERVIZIO ELETTRICO NAZIONALE  - Servizio Maggior Tutela;ZC41E38DF2;SALDO Fatt.n. 230601605036037  del 10/04/2017 fattura;16-05-2017;960;0;239;1;Spese correnti;3;Acquisto di beni e servizi;2;Acquisto di servizi;5;Utenze e canoni;4;Energia elettrica;16-05-2017;
985;1;0;"366,00";"366,00";UNI SECUR S.R.L.;Z501B75881;SALDO Fatt.n. 8 B  del 28/04/2017 Ft. vendita split payment;16-05-2017;275;0;588;1;Spese correnti;3;Acquisto di beni e servizi;2;Acquisto di servizi;18;Servizi sanitari;1;Spese per accertamenti sanitari resi necessari dall'attività lavorativa;16-05-2017;
986;1;0;"1.677,50";"1.677,50";SUPERBETON SPA;Z521DC40D7;SALDO Fatt.n. 458  del 29/04/2017 VENDITE ASFALTO NERVESA;16-05-2017;950;0;206;1;Spese correnti;3;Acquisto di beni e servizi;1;Acquisto di beni;2;Altri beni di consumo;999;Altri beni e materiali di consumo n.a.c.;16-05-2017;
987;1;0;"1.235,85";"1.235,85";MATTARANETTA SOCIETA' COOPERATIVA SOCIALE;Z3C1CA95E4;SALDO Fatt.n. 12/FE  del 30/04/2017 FATTURA IMMEDIATA;16-05-2017;840;0;746;1;Spese correnti;3;Acquisto di beni e servizi;2;Acquisto di servizi;15;Contratti di servizio pubblico;4;Contratti di servizio per la raccolta rifiuti;16-05-2017;
988;1;0;"-0,01";"210,53";FERRAMENTA BELLOMI DI FOLLETTO G. E L. SAS;Z8F1DC66DA;SALDO Fatt.n. 9/P  del 31/03/2017 VENDITA;16-05-2017;350;0;158;1;Spese correnti;3;Acquisto di beni e servizi;1;Acquisto di beni;2;Altri beni di consumo;999;Altri beni e materiali di consumo n.a.c.;16-05-2017;
988;2;0;"210,54";"210,53";FERRAMENTA BELLOMI DI FOLLETTO G. E L. SAS;Z8F1DC66DA;SALDO Fatt.n. 9/P  del 31/03/2017 VENDITA;16-05-2017;350;0;158;1;Spese correnti;3;Acquisto di beni e servizi;1;Acquisto di beni;2;Altri beni di consumo;999;Altri beni e materiali di consumo n.a.c.;16-05-2017;
989;1;0;"129,17";"129,17";LA RONDA - SERVIZI DI VIGILANZA;ZE618FE5E8;SALDO Fatt.n. 0005860  del 30/04/2017 FATTURA;16-05-2017;357;0;171;1;Spese correnti;3;Acquisto di beni e servizi;2;Acquisto di servizi;13;Servizi ausiliari per il funzionamento dell'ente;1;"Servizi di sorveglianza, custodia e accoglienza";16-05-2017;
990;1;0;"811,30";"811,30";ZAMPINI CARLO - NON VALIDO;ZB61CC42E2;SALDO Fatt.n. 19/PA  del 04/05/2017 DETERMINA N. 160 DEL 30.12.2016;16-05-2017;1203;0;788;2;Spese in conto capitale;2;Investimenti fissi lordi e acquisto di terreni;1;Beni materiali;9;Beni immobili;12;Infrastrutture stradali;16-05-2017;
991;1;0;"50,00";"389,59";KUWAIT PETROLEUM ITALIA SPA;ZA91845EEC;ACCONTO Fatt.n. PJ00077367  del 30/04/2017 FATTURA;16-05-2017;290;0;86;1;Spese correnti;3;Acquisto di beni e servizi;1;Acquisto di beni;2;Altri beni di consumo;2;"Carburanti, combustibili e lubrificanti";16-05-2017;
991;2;0;"339,59";"389,59";KUWAIT PETROLEUM ITALIA SPA;ZA91845EEC;SALDO Fatt.n. PJ00077367  del 30/04/2017 FATTURA;16-05-2017;290;0;86;1;Spese correnti;3;Acquisto di beni e servizi;1;Acquisto di beni;2;Altri beni di consumo;2;"Carburanti, combustibili e lubrificanti";16-05-2017;
992;1;0;"1.483,89";"1.483,89";COOPERATIVA SOCIALE VENETA ONLUS;Z1F1CDE21A;SALDO Fatt.n. 000100-2017-PA  del 29/04/2017 FATTURA;16-05-2017;782;0;766;1;Spese correnti;3;Acquisto di beni e servizi;2;Acquisto di servizi;9;Manutenzione ordinaria e riparazioni;8;Manutenzione ordinaria e riparazioni di beni immobili;16-05-2017;
993;1;0;"3.248,45";"3.248,45";COOPERATIVA SOCIALE MONSCLEDA LAVORO SRL;ZF519B17F0;SALDO Fatt.n. 49/2017  del 30/04/2017 FATTURA;16-05-2017;352;0;263;1;Spese correnti;3;Acquisto di beni e servizi;2;Acquisto di servizi;9;Manutenzione ordinaria e riparazioni;8;Manutenzione ordinaria e riparazioni di beni immobili;16-05-2017;
994;1;0;"92,43";"92,43";EDILTOSI S.R.L.;ZC71D737AF;SALDO Fatt.n. 002261  del 30/04/2017 FATTURA;16-05-2017;350;0;116;1;Spese correnti;3;Acquisto di beni e servizi;1;Acquisto di beni;2;Altri beni di consumo;999;Altri beni e materiali di consumo n.a.c.;16-05-2017;
996;1;0;"153,60";"153,60";PEDACTA GMBH SRL;Z361DC0845;SALDO Fatt.n. RGPA-2017-147  del 10/04/2017 Vendita;17-05-2017;681;0;194;1;Spese correnti;3;Acquisto di beni e servizi;1;Acquisto di beni;1;"Giornali, riviste e pubblicazioni";2;Pubblicazioni;17-05-2017;
997;1;0;"10.610,31";"10.610,31";EURORISTORAZIONE SRL;6993767F17;SALDO Fatt.n. 17CPA01030  del 31/03/2017 FATTURA;17-05-2017;662;0;139;1;Spese correnti;3;Acquisto di beni e servizi;2;Acquisto di servizi;15;Contratti di servizio pubblico;6;Contratti di servizio per le mense scolastiche;17-05-2017;
998;1;0;"31.464,35";"31.464,35";CONSORZIO DI BACINO VERONA DUE DEL QUADRILATERO; ;SALDO Fatt.n. 001077/02  del 18/04/2017 fattura;17-05-2017;840;0;155;1;Spese correnti;3;Acquisto di beni e servizi;2;Acquisto di servizi;15;Contratti di servizio pubblico;4;Contratti di servizio per la raccolta rifiuti;17-05-2017;
